﻿Directorate,Service,Division,Responsible Unit,Expense Type,Payment Date,Trans No,Net Amount,Supplier Name
Adults Services,Adult Social Care,Older People (Aged 65 or over) including Older Mental Ill,Older People Commissioning,Social Care - Nursing Care,42373,3571348," 4,285.71 ",Havelock Court (Bupa)
Adults Services,Adult Social Care,Older People (Aged 65 or over) including Older Mental Ill,Older People Commissioning,Social Care - Nursing Care,42373,3571349," 3,596.19 ",Havelock Court (Bupa)
Adults Services,Adult Social Care,Older People (Aged 65 or over) including Older Mental Ill,Older People Commissioning,Social Care - Nursing Care,42373,3576003," 4,365.09 ",Glasgow City Council
Adults Services,Adult Social Care,Older People (Aged 65 or over) including Older Mental Ill,Older People Commissioning,Social Care - Nursing Care,42373,3576011," 2,426.86 ",BARCHESTER HEALTHCARE
Adults Services,Adult Social Care,Older People (Aged 65 or over) including Older Mental Ill,Older People Commissioning,Social Care - Nursing Care,42373,3576013," 2,426.86 ",BARCHESTER HEALTHCARE
Adults Services,Adult Social Care,Older People (Aged 65 or over) including Older Mental Ill,Older People Commissioning,Social Care - Nursing Care,42373,3576016," 2,714.71 ",BARCHESTER HEALTHCARE
Adults Services,Adult Social Care,Older People (Aged 65 or over) including Older Mental Ill,Older People Commissioning,Social Care - Nursing Care,42373,3576017," 3,268.29 ",BARCHESTER HEALTHCARE
Adults Services,Adult Social Care,Older People (Aged 65 or over) including Older Mental Ill,Older People Commissioning,Social Care - Residential Care,42373,3576004," 3,188.57 ",Federation of Jewish Services
Adults Services,Adult Social Care,Older People (Aged 65 or over) including Older Mental Ill,Older People Commissioning,Social Care - Residential Care,42373,3576008," 2,590.71 ",BARCHESTER HEALTHCARE
Adults Services,Adult Social Care,Older People (Aged 65 or over) including Older Mental Ill,Older People Commissioning,Social Care - Residential Care,42373,3576009," 2,795.54 ",BARCHESTER HEALTHCARE
Adults Services,Adult Social Care,Older People (Aged 65 or over) including Older Mental Ill,Older People Commissioning,Social Care - Residential Care,42373,3576010," 2,480.00 ",BARCHESTER HEALTHCARE
Adults Services,Adult Social Care,Older People (Aged 65 or over) including Older Mental Ill,Older People Commissioning,Social Care - Residential Care,42373,3576012," 2,325.00 ",BARCHESTER HEALTHCARE
Adults Services,Adult Social Care,Older People (Aged 65 or over) including Older Mental Ill,Older People Commissioning,Social Care - Residential Care,42373,3576012,-559.33 ,BARCHESTER HEALTHCARE
Adults Services,Adult Social Care,Older People (Aged 65 or over) including Older Mental Ill,Older People Commissioning,Social Care - Residential Care,42373,3576014," 2,797.75 ",BARCHESTER HEALTHCARE
Adults Services,Adult Social Care,Older People (Aged 65 or over) including Older Mental Ill,Older People Commissioning,Social Care - Residential Care,42373,3576241," 2,480.48 ",Forest Drive Residential Home Ltd
Adults Services,Adult Social Care,Older People (Aged 65 or over) including Older Mental Ill,Older People Commissioning,Social Care - Residential Care,42373,3576241,"-1,330.08 ",Forest Drive Residential Home Ltd
Adults Services,Adult Social Care,Older People (Aged 65 or over) including Older Mental Ill,Older People Commissioning,Social Care - Homecare,42373,3573904, 676.17 ,POSITIVE CARE LINK
Adults Services,Adult Social Care,Older People (Aged 65 or over) including Older Mental Ill,Learning Dis Commissioning,Social Care - Residential Care,42373,3576535," 7,971.43 ",ELEANOR NURSING CARE LTD
Adults Services,Adult Social Care,Older People (Aged 65 or over) including Older Mental Ill,Learning Dis Commissioning,Social Care - Day Care,42373,3573819, 918.00 ,THE GARWOOD FOUNDATION
Adults Services,Adult Social Care,Older People (Aged 65 or over) including Older Mental Ill,Learning Dis Commissioning,Social Care - Day Care,42373,3576061, 961.88 ,HEREWARD CARE SERVICES
Adults Services,Adult Social Care,Older People (Aged 65 or over) including Older Mental Ill,Learning Dis Commissioning,Social Care - Homecare,42373,3576210," 1,608.84 ",CARE SOLUTION BAREAU
Adults Services,Adult Social Care,Older People (Aged 65 or over) including Older Mental Ill,Physical Dis Commissioning,Social Care - Nursing Care,42373,3576015," 3,919.29 ",BARCHESTER HEALTHCARE
Adults Services,Adult Social Care,Older People (Aged 65 or over) including Older Mental Ill,Physical Dis Commissioning,Social Care - Residential Care,42373,3573045,-569.72 ,BARCHESTER HEALTHCARE
Adults Services,Adult Social Care,Older People (Aged 65 or over) including Older Mental Ill,Physical Dis Commissioning,Social Care - Residential Care,42373,3573046, 997.00 ,BARCHESTER HEALTHCARE
Adults Services,Adult Social Care,Older People (Aged 65 or over) including Older Mental Ill,Physical Dis Commissioning,Social Care - Homecare,42373,3570643," 2,652.24 ",Interserve Healthcare
Adults Services,Adult Social Care,Older People (Aged 65 or over) including Older Mental Ill,Physical Dis Commissioning,Social Care - Homecare,42373,3570644," 2,652.24 ",Interserve Healthcare
Adults Services,No Service Specified,No Division Specified,Community Equipment Store,Photocopier Charges - Consumables,42373,3565969, 534.72 ,Office Depot (Catalogue)
Adults Services,Public Health,Miscellaneous Public Health Services,Public Health Team - 3,Third Party Payments - Voluntary Associations,42373,3566082," 14,625.00 ",The Bromley by Bow Centre
Adults Services,Public Health,Miscellaneous Public Health Services,Public Health Team - 3,Third Party Payments - Voluntary Associations,42373,3566258," 14,625.00 ",The Bromley by Bow Centre
Adults Services,Public Health,Miscellaneous Public Health Services,Public Health Team - 3,Third Party Payments - Voluntary Associations,42373,3575843," 4,167.67 ",Ability Bow
Adults Services,Adult Social Care,Older People (Aged 65 or over) including Older Mental Ill,Older People Commissioning,Social Care - Extra Care Sheltered Housing,42375,3578294," 3,040.96 ",NOTTING HILL HOUSING TRUST
Adults Services,Adult Social Care,Older People (Aged 65 or over) including Older Mental Ill,Older People Commissioning,Social Care - Extra Care Sheltered Housing,42375,3578295," 1,386.07 ",NOTTING HILL HOUSING TRUST
Adults Services,Adult Social Care,Older People (Aged 65 or over) including Older Mental Ill,Older People Commissioning,Social Care - Extra Care Sheltered Housing,42375,3578296," 3,421.08 ",NOTTING HILL HOUSING TRUST
Adults Services,Adult Social Care,Older People (Aged 65 or over) including Older Mental Ill,Older People Commissioning,Social Care - Extra Care Sheltered Housing,42375,3578297, 594.03 ,NOTTING HILL HOUSING TRUST
Adults Services,Adult Social Care,Older People (Aged 65 or over) including Older Mental Ill,Older People Commissioning,Social Care - Extra Care Sheltered Housing,42375,3578298," 4,561.44 ",NOTTING HILL HOUSING TRUST
Adults Services,Adult Social Care,Older People (Aged 65 or over) including Older Mental Ill,Older People Commissioning,Social Care - Extra Care Sheltered Housing,42375,3578299," 2,178.11 ",NOTTING HILL HOUSING TRUST
Adults Services,Adult Social Care,Older People (Aged 65 or over) including Older Mental Ill,Older People Commissioning,Social Care - Nursing Care,42375,3578841," 2,188.20 ",Bennetts Castlle Care Home
Adults Services,Adult Social Care,Older People (Aged 65 or over) including Older Mental Ill,Older People Commissioning,Social Care - Nursing Care,42375,3578843," 1,628.87 ",Bennetts Castlle Care Home
Adults Services,Adult Social Care,Older People (Aged 65 or over) including Older Mental Ill,Older People Commissioning,Social Care - Nursing Care,42375,3578844," 2,188.20 ",Bennetts Castlle Care Home
Adults Services,Adult Social Care,Older People (Aged 65 or over) including Older Mental Ill,Older People Commissioning,Social Care - Nursing Care,42375,3578845," 2,495.35 ",LIFE STYLE CARE (2011) PLC
Adults Services,Adult Social Care,Older People (Aged 65 or over) including Older Mental Ill,Older People Commissioning,Social Care - Nursing Care,42375,3579048," 2,315.19 ",HAWKINGE HOUSE LTD
Adults Services,Adult Social Care,Older People (Aged 65 or over) including Older Mental Ill,Older People Commissioning,Social Care - Residential Care,42375,3578620," 3,291.57 ",J M CAREHOMES LIMITED
Adults Services,Adult Social Care,Older People (Aged 65 or over) including Older Mental Ill,Older People Commissioning,Social Care - Residential Care,42375,3578621," 3,401.29 ",J M CAREHOMES LIMITED
Adults Services,Adult Social Care,Older People (Aged 65 or over) including Older Mental Ill,Older People Commissioning,Social Care - Residential Care,42375,3578681," 3,300.00 ",St Georges Nursing Home
Adults Services,Adult Social Care,Older People (Aged 65 or over) including Older Mental Ill,Older People Commissioning,Social Care - Residential Care,42375,3578801," 2,764.29 ",QUANTUM CARE LTD
Adults Services,Adult Social Care,Older People (Aged 65 or over) including Older Mental Ill,Older People Commissioning,Social Care - Residential Care,42375,3578842," 2,878.57 ",Bennetts Castlle Care Home
Adults Services,Adult Social Care,Older People (Aged 65 or over) including Older Mental Ill,Older People Commissioning,Social Care - Residential Care,42375,3578842,-634.14 ,Bennetts Castlle Care Home
Adults Services,Adult Social Care,Older People (Aged 65 or over) including Older Mental Ill,Older People Commissioning,Social Care - Residential Care,42375,3578872," 2,263.13 ",JEWISH CARE
Adults Services,Adult Social Care,Older People (Aged 65 or over) including Older Mental Ill,Older People Commissioning,Social Care - Residential Care,42375,3578873," 1,966.06 ",JEWISH CARE
Adults Services,Adult Social Care,Older People (Aged 65 or over) including Older Mental Ill,Older People Commissioning,Social Care - Residential Care,42375,3578874," 2,291.43 ",JEWISH CARE
Adults Services,Adult Social Care,Older People (Aged 65 or over) including Older Mental Ill,Older People Commissioning,Social Care - Residential Care,42375,3578875," 2,409.98 ",JEWISH CARE
Adults Services,Adult Social Care,Older People (Aged 65 or over) including Older Mental Ill,Older People Commissioning,Social Care - Residential Care,42375,3578876," 1,836.48 ",JEWISH CARE
Adults Services,Adult Social Care,Older People (Aged 65 or over) including Older Mental Ill,Older People Commissioning,Social Care - Day Care,42375,3578961, 612.47 ,St Hilda's East Community Centre
Adults Services,Adult Social Care,Older People (Aged 65 or over) including Older Mental Ill,Older People Commissioning,Social Care - Day Care,42375,3578965, 561.08 ,St Hilda's East Community Centre
Adults Services,Adult Social Care,Older People (Aged 65 or over) including Older Mental Ill,Older People Commissioning,Social Care - Homecare,42375,3578703," 3,486.00 ",Bluebird Care (Havering)
Adults Services,Adult Social Care,Older People (Aged 65 or over) including Older Mental Ill,Older People Commissioning,Social Care - Homecare,42375,3578717, 513.19 ,Mantra Recruitment
Adults Services,Adult Social Care,Older People (Aged 65 or over) including Older Mental Ill,Older People Commissioning,Social Care - Homecare,42375,3578868, 583.80 ,AGE UK EAST LONDON
Adults Services,Adult Social Care,Older People (Aged 65 or over) including Older Mental Ill,Older People Commissioning,Social Care - Homecare,42375,3578883, 867.90 ,REDSPOT HOMECARE (CONTRACTS) LTD
Adults Services,Adult Social Care,Older People (Aged 65 or over) including Older Mental Ill,Older People Commissioning,Social Care - Homecare,42375,3578896, 598.33 ,REDSPOT HOMECARE (CONTRACTS) LTD
Adults Services,Adult Social Care,Older People (Aged 65 or over) including Older Mental Ill,Older People Commissioning,Social Care - Homecare,42375,3578910, 644.35 ,REDSPOT HOMECARE (CONTRACTS) LTD
Adults Services,Adult Social Care,Older People (Aged 65 or over) including Older Mental Ill,Older People Commissioning,Social Care - Homecare,42375,3578914, 598.33 ,REDSPOT HOMECARE (CONTRACTS) LTD
Adults Services,Adult Social Care,Older People (Aged 65 or over) including Older Mental Ill,Older People Commissioning,Social Care - Homecare,42375,3579046," 3,871.14 ",MiHOMECARE LIMITED
Adults Services,Adult Social Care,Older People (Aged 65 or over) including Older Mental Ill,Older People Commissioning,Social Care - Homecare,42375,3579070," 1,214.85 ",APASENTH
Adults Services,Adult Social Care,Older People (Aged 65 or over) including Older Mental Ill,Older People Commissioning,Social Care - Homecare,42375,3579073, 747.60 ,APASENTH
Adults Services,Adult Social Care,Older People (Aged 65 or over) including Older Mental Ill,Older People Commissioning,Social Care - Homecare,42375,3579076, 610.76 ,APASENTH
Adults Services,Adult Social Care,Older People (Aged 65 or over) including Older Mental Ill,Older People Commissioning,Social Care - Homecare,42375,3579174," 1,033.86 ",SANCTUARY HOME CARE LIMITED
Adults Services,Adult Social Care,Older People (Aged 65 or over) including Older Mental Ill,Older People Commissioning,Social Care - Homecare,42375,3579175, 577.54 ,SANCTUARY HOME CARE LIMITED
Adults Services,Adult Social Care,Older People (Aged 65 or over) including Older Mental Ill,Older People Commissioning,Social Care - Homecare,42375,3579177, 598.94 ,SANCTUARY HOME CARE LIMITED
Adults Services,Adult Social Care,Older People (Aged 65 or over) including Older Mental Ill,Older People Commissioning,Social Care - Homecare,42375,3579184, 566.86 ,SANCTUARY HOME CARE LIMITED
Adults Services,Adult Social Care,Older People (Aged 65 or over) including Older Mental Ill,Older People Commissioning,Social Care - Homecare,42375,3579207," 3,393.88 ",SANCTUARY HOME CARE LIMITED
Adults Services,Adult Social Care,Older People (Aged 65 or over) including Older Mental Ill,Older People Commissioning,Social Care - Homecare,42375,3579216, 620.34 ,SANCTUARY HOME CARE LIMITED
Adults Services,Adult Social Care,Older People (Aged 65 or over) including Older Mental Ill,Older People Commissioning,Social Care - Homecare,42375,3579224," 1,283.40 ",SANCTUARY HOME CARE LIMITED
Adults Services,Adult Social Care,Older People (Aged 65 or over) including Older Mental Ill,Older People Commissioning,Social Care - Homecare,42375,3579235, 520.50 ,SANCTUARY HOME CARE LIMITED
Adults Services,Adult Social Care,Older People (Aged 65 or over) including Older Mental Ill,Older People Commissioning,Social Care - Homecare,42375,3579236, 677.36 ,SANCTUARY HOME CARE LIMITED
Adults Services,Adult Social Care,Older People (Aged 65 or over) including Older Mental Ill,Older People Commissioning,Social Care - Homecare,42375,3579242," 1,404.61 ",SANCTUARY HOME CARE LIMITED
Adults Services,Adult Social Care,Older People (Aged 65 or over) including Older Mental Ill,Older People Commissioning,Social Care - Homecare,42375,3579263, 884.12 ,SANCTUARY HOME CARE LIMITED
Adults Services,Adult Social Care,Older People (Aged 65 or over) including Older Mental Ill,Older People Commissioning,Social Care - Homecare,42375,3579290," 1,055.24 ",SANCTUARY HOME CARE LIMITED
Adults Services,Adult Social Care,Older People (Aged 65 or over) including Older Mental Ill,Older People Commissioning,Social Care - Homecare,42375,3579309," 1,284.53 ",Soma Healthcare Ltd
Adults Services,Adult Social Care,Older People (Aged 65 or over) including Older Mental Ill,Older People Commissioning,Social Care - Homecare,42375,3579312, 623.70 ,Soma Healthcare Ltd
Adults Services,Adult Social Care,Older People (Aged 65 or over) including Older Mental Ill,Older People Commissioning,Social Care - Homecare,42375,3579316," 1,622.36 ",Soma Healthcare Ltd
Adults Services,Adult Social Care,Older People (Aged 65 or over) including Older Mental Ill,Older People Commissioning,Social Care - Homecare,42375,3579320, 772.20 ,Soma Healthcare Ltd
Adults Services,Adult Social Care,Older People (Aged 65 or over) including Older Mental Ill,Older People Commissioning,Social Care - Homecare,42375,3579327," 1,039.92 ",Soma Healthcare Ltd
Adults Services,Adult Social Care,Older People (Aged 65 or over) including Older Mental Ill,Older People Commissioning,Social Care - Homecare,42375,3579342, 983.81 ,Soma Healthcare Ltd
Adults Services,Adult Social Care,Older People (Aged 65 or over) including Older Mental Ill,Older People Commissioning,Social Care - Homecare,42375,3579343," 1,247.00 ",Soma Healthcare Ltd
Adults Services,Adult Social Care,Older People (Aged 65 or over) including Older Mental Ill,Older People Commissioning,Social Care - Homecare,42375,3579350," 1,704.04 ",Soma Healthcare Ltd
Adults Services,Adult Social Care,Older People (Aged 65 or over) including Older Mental Ill,Older People Commissioning,Client Contributions for Social Care - Nursing Care,42375,3578845,-672.04 ,LIFE STYLE CARE (2011) PLC
Adults Services,Adult Social Care,Older People (Aged 65 or over) including Older Mental Ill,Learning Dis Commissioning,Social Care - Nursing Care,42375,3578857," 6,909.36 ","Appletree Court Care Ltd,  Appletree Court Care Home"
Adults Services,Adult Social Care,Older People (Aged 65 or over) including Older Mental Ill,Learning Dis Commissioning,Social Care - Residential Care,42375,3578678," 7,753.10 ",Care Management Group Ltd
Adults Services,Adult Social Care,Older People (Aged 65 or over) including Older Mental Ill,Learning Dis Commissioning,Social Care - Residential Care,42375,3578854, 569.71 ,MAITLAND LODGE (Venus)
Adults Services,Adult Social Care,Older People (Aged 65 or over) including Older Mental Ill,Learning Dis Commissioning,Social Care - Residential Care,42375,3578855,"-11,370.43 ",MAITLAND LODGE (Venus)
Adults Services,Adult Social Care,Older People (Aged 65 or over) including Older Mental Ill,Learning Dis Commissioning,Social Care - Residential Care,42375,3578856," 14,808.00 ",MAITLAND LODGE (Venus)
Adults Services,Adult Social Care,Older People (Aged 65 or over) including Older Mental Ill,Learning Dis Commissioning,Social Care - Residential Care,42375,3578958," 9,241.14 ",NEW DIRECTIONS (ST LEONARDS ON SEA) LTD
Adults Services,Adult Social Care,Older People (Aged 65 or over) including Older Mental Ill,Learning Dis Commissioning,Social Care - Residential Care,42375,3578959," 4,714.20 ",SHERICO CARE SERVICES LTD
Adults Services,Adult Social Care,Older People (Aged 65 or over) including Older Mental Ill,Learning Dis Commissioning,Social Care - Residential Care,42375,3578960," 4,871.34 ",SHERICO CARE SERVICES LTD
Adults Services,Adult Social Care,Older People (Aged 65 or over) including Older Mental Ill,Learning Dis Commissioning,Social Care - Residential Care,42375,3579052," 4,950.00 ",APASENTH
Adults Services,Adult Social Care,Older People (Aged 65 or over) including Older Mental Ill,Learning Dis Commissioning,Social Care - Residential Care,42375,3579053," 4,950.00 ",APASENTH
Adults Services,Adult Social Care,Older People (Aged 65 or over) including Older Mental Ill,Learning Dis Commissioning,Social Care - Residential Care,42375,3579054," 4,500.00 ",APASENTH
Adults Services,Adult Social Care,Older People (Aged 65 or over) including Older Mental Ill,Learning Dis Commissioning,Social Care - Residential Care,42375,3579055," 4,500.00 ",APASENTH
Adults Services,Adult Social Care,Older People (Aged 65 or over) including Older Mental Ill,Learning Dis Commissioning,Social Care - Residential Care,42375,3579056," 3,625.20 ",APASENTH
Adults Services,Adult Social Care,Older People (Aged 65 or over) including Older Mental Ill,Learning Dis Commissioning,Social Care - Residential Care,42375,3579064," 4,650.00 ",APASENTH
Adults Services,Adult Social Care,Older People (Aged 65 or over) including Older Mental Ill,Learning Dis Commissioning,Social Care - Residential Care,42375,3579065," 5,115.00 ",APASENTH
Adults Services,Adult Social Care,Older People (Aged 65 or over) including Older Mental Ill,Learning Dis Commissioning,Social Care - Residential Care,42375,3579066," 4,650.00 ",APASENTH
Adults Services,Adult Social Care,Older People (Aged 65 or over) including Older Mental Ill,Learning Dis Commissioning,Social Care - Residential Care,42375,3579067," 5,115.00 ",APASENTH
Adults Services,Adult Social Care,Older People (Aged 65 or over) including Older Mental Ill,Learning Dis Commissioning,Social Care - Residential Care,42375,3579068," 3,746.04 ",APASENTH
Adults Services,Adult Social Care,Older People (Aged 65 or over) including Older Mental Ill,Learning Dis Commissioning,Social Care - Residential Care,42375,3579157," 4,115.52 ",Norwood Ravenswood Services LTD
Adults Services,Adult Social Care,Older People (Aged 65 or over) including Older Mental Ill,Learning Dis Commissioning,Social Care - Respite Care,42375,3573902," 1,462.50 ",QALB Centre Short Break Services
Adults Services,Adult Social Care,Older People (Aged 65 or over) including Older Mental Ill,Learning Dis Commissioning,Social Care - Respite Care,42375,3579058," 1,155.00 ",APASENTH
Adults Services,Adult Social Care,Older People (Aged 65 or over) including Older Mental Ill,Learning Dis Commissioning,Social Care - Respite Care,42375,3579059," 1,650.00 ",APASENTH
Adults Services,Adult Social Care,Older People (Aged 65 or over) including Older Mental Ill,Learning Dis Commissioning,Social Care - Respite Care,42375,3579060," 2,145.00 ",APASENTH
Adults Services,Adult Social Care,Older People (Aged 65 or over) including Older Mental Ill,Learning Dis Commissioning,Social Care - Respite Care,42375,3579061," 1,485.00 ",APASENTH
Adults Services,Adult Social Care,Older People (Aged 65 or over) including Older Mental Ill,Learning Dis Commissioning,Social Care - Respite Care,42375,3579062," 1,320.00 ",APASENTH
Adults Services,Adult Social Care,Older People (Aged 65 or over) including Older Mental Ill,Learning Dis Commissioning,Social Care - Respite Care,42375,3579063, 540.00 ,APASENTH
Adults Services,Adult Social Care,Older People (Aged 65 or over) including Older Mental Ill,Learning Dis Commissioning,Social Care - Day Care,42375,3578596," 1,356.00 ",VIBRANCE
Adults Services,Adult Social Care,Older People (Aged 65 or over) including Older Mental Ill,Learning Dis Commissioning,Social Care - Day Care,42375,3578597," 1,269.00 ",VIBRANCE
Adults Services,Adult Social Care,Older People (Aged 65 or over) including Older Mental Ill,Learning Dis Commissioning,Social Care - Day Care,42375,3578598," 1,227.00 ",VIBRANCE
Adults Services,Adult Social Care,Older People (Aged 65 or over) including Older Mental Ill,Learning Dis Commissioning,Social Care - Day Care,42375,3578599," 1,184.00 ",VIBRANCE
Adults Services,Adult Social Care,Older People (Aged 65 or over) including Older Mental Ill,Learning Dis Commissioning,Social Care - Day Care,42375,3578599, 530.00 ,VIBRANCE
Adults Services,Adult Social Care,Older People (Aged 65 or over) including Older Mental Ill,Learning Dis Commissioning,Social Care - Day Care,42375,3578600," 1,398.00 ",VIBRANCE
Adults Services,Adult Social Care,Older People (Aged 65 or over) including Older Mental Ill,Learning Dis Commissioning,Social Care - Day Care,42375,3578601, 987.00 ,VIBRANCE
Adults Services,Adult Social Care,Older People (Aged 65 or over) including Older Mental Ill,Learning Dis Commissioning,Social Care - Day Care,42375,3578602," 1,240.00 ",VIBRANCE
Adults Services,Adult Social Care,Older People (Aged 65 or over) including Older Mental Ill,Learning Dis Commissioning,Social Care - Day Care,42375,3578603, 744.00 ,VIBRANCE
Adults Services,Adult Social Care,Older People (Aged 65 or over) including Older Mental Ill,Learning Dis Commissioning,Social Care - Day Care,42375,3578604," 1,240.00 ",VIBRANCE
Adults Services,Adult Social Care,Older People (Aged 65 or over) including Older Mental Ill,Learning Dis Commissioning,Social Care - Day Care,42375,3578605," 1,692.00 ",VIBRANCE
Adults Services,Adult Social Care,Older People (Aged 65 or over) including Older Mental Ill,Learning Dis Commissioning,Social Care - Day Care,42375,3578606," 1,128.00 ",VIBRANCE
Adults Services,Adult Social Care,Older People (Aged 65 or over) including Older Mental Ill,Learning Dis Commissioning,Social Care - Day Care,42375,3578622, 930.00 ,STALLCOMBE HOUSE
Adults Services,Adult Social Care,Older People (Aged 65 or over) including Older Mental Ill,Learning Dis Commissioning,Social Care - Day Care,42375,3578684," 2,720.00 ",ST MARKS DAY SERVICE
Adults Services,Adult Social Care,Older People (Aged 65 or over) including Older Mental Ill,Learning Dis Commissioning,Social Care - Day Care,42375,3578810, 585.00 ,BANGLADESHI PARENTS & CARERS ASSOCIATION
Adults Services,Adult Social Care,Older People (Aged 65 or over) including Older Mental Ill,Learning Dis Commissioning,Social Care - Day Care,42375,3578811," 2,352.00 ",BANGLADESHI PARENTS & CARERS ASSOCIATION
Adults Services,Adult Social Care,Older People (Aged 65 or over) including Older Mental Ill,Learning Dis Commissioning,Social Care - Day Care,42375,3578812, 945.00 ,BANGLADESHI PARENTS & CARERS ASSOCIATION
Adults Services,Adult Social Care,Older People (Aged 65 or over) including Older Mental Ill,Learning Dis Commissioning,Social Care - Day Care,42375,3578813, 945.00 ,BANGLADESHI PARENTS & CARERS ASSOCIATION
Adults Services,Adult Social Care,Older People (Aged 65 or over) including Older Mental Ill,Learning Dis Commissioning,Social Care - Day Care,42375,3578814, 945.00 ,BANGLADESHI PARENTS & CARERS ASSOCIATION
Adults Services,Adult Social Care,Older People (Aged 65 or over) including Older Mental Ill,Learning Dis Commissioning,Social Care - Day Care,42375,3578816, 939.33 ,BANGLADESHI PARENTS & CARERS ASSOCIATION
Adults Services,Adult Social Care,Older People (Aged 65 or over) including Older Mental Ill,Learning Dis Commissioning,Social Care - Day Care,42375,3578817, 945.00 ,BANGLADESHI PARENTS & CARERS ASSOCIATION
Adults Services,Adult Social Care,Older People (Aged 65 or over) including Older Mental Ill,Learning Dis Commissioning,Social Care - Day Care,42375,3578818, 945.00 ,BANGLADESHI PARENTS & CARERS ASSOCIATION
Adults Services,Adult Social Care,Older People (Aged 65 or over) including Older Mental Ill,Learning Dis Commissioning,Social Care - Day Care,42375,3578819," 2,352.00 ",BANGLADESHI PARENTS & CARERS ASSOCIATION
Adults Services,Adult Social Care,Older People (Aged 65 or over) including Older Mental Ill,Learning Dis Commissioning,Social Care - Day Care,42375,3578821, 945.00 ,BANGLADESHI PARENTS & CARERS ASSOCIATION
Adults Services,Adult Social Care,Older People (Aged 65 or over) including Older Mental Ill,Learning Dis Commissioning,Social Care - Day Care,42375,3578822, 945.00 ,BANGLADESHI PARENTS & CARERS ASSOCIATION
Adults Services,Adult Social Care,Older People (Aged 65 or over) including Older Mental Ill,Learning Dis Commissioning,Social Care - Day Care,42375,3578823," 1,792.00 ",BANGLADESHI PARENTS & CARERS ASSOCIATION
Adults Services,Adult Social Care,Older People (Aged 65 or over) including Older Mental Ill,Learning Dis Commissioning,Social Care - Day Care,42375,3578824," 1,724.10 ",BANGLADESHI PARENTS & CARERS ASSOCIATION
Adults Services,Adult Social Care,Older People (Aged 65 or over) including Older Mental Ill,Learning Dis Commissioning,Social Care - Day Care,42375,3578825, 945.00 ,BANGLADESHI PARENTS & CARERS ASSOCIATION
Adults Services,Adult Social Care,Older People (Aged 65 or over) including Older Mental Ill,Learning Dis Commissioning,Social Care - Day Care,42375,3578826, 945.00 ,BANGLADESHI PARENTS & CARERS ASSOCIATION
Adults Services,Adult Social Care,Older People (Aged 65 or over) including Older Mental Ill,Learning Dis Commissioning,Social Care - Day Care,42375,3578827," 2,352.00 ",BANGLADESHI PARENTS & CARERS ASSOCIATION
Adults Services,Adult Social Care,Older People (Aged 65 or over) including Older Mental Ill,Learning Dis Commissioning,Social Care - Day Care,42375,3578828," 1,779.75 ",BANGLADESHI PARENTS & CARERS ASSOCIATION
Adults Services,Adult Social Care,Older People (Aged 65 or over) including Older Mental Ill,Learning Dis Commissioning,Social Care - Day Care,42375,3578829," 2,207.10 ",BANGLADESHI PARENTS & CARERS ASSOCIATION
Adults Services,Adult Social Care,Older People (Aged 65 or over) including Older Mental Ill,Learning Dis Commissioning,Social Care - Day Care,42375,3578830," 2,352.00 ",BANGLADESHI PARENTS & CARERS ASSOCIATION
Adults Services,Adult Social Care,Older People (Aged 65 or over) including Older Mental Ill,Learning Dis Commissioning,Social Care - Day Care,42375,3578831, 525.50 ,BANGLADESHI PARENTS & CARERS ASSOCIATION
Adults Services,Adult Social Care,Older People (Aged 65 or over) including Older Mental Ill,Learning Dis Commissioning,Social Care - Day Care,42375,3578832," 2,352.00 ",BANGLADESHI PARENTS & CARERS ASSOCIATION
Adults Services,Adult Social Care,Older People (Aged 65 or over) including Older Mental Ill,Learning Dis Commissioning,Social Care - Day Care,42375,3578833," 2,352.00 ",BANGLADESHI PARENTS & CARERS ASSOCIATION
Adults Services,Adult Social Care,Older People (Aged 65 or over) including Older Mental Ill,Learning Dis Commissioning,Social Care - Day Care,42375,3578834, 945.00 ,BANGLADESHI PARENTS & CARERS ASSOCIATION
Adults Services,Adult Social Care,Older People (Aged 65 or over) including Older Mental Ill,Learning Dis Commissioning,Social Care - Day Care,42375,3578835, 945.00 ,BANGLADESHI PARENTS & CARERS ASSOCIATION
Adults Services,Adult Social Care,Older People (Aged 65 or over) including Older Mental Ill,Learning Dis Commissioning,Social Care - Day Care,42375,3578836, 945.00 ,BANGLADESHI PARENTS & CARERS ASSOCIATION
Adults Services,Adult Social Care,Older People (Aged 65 or over) including Older Mental Ill,Learning Dis Commissioning,Social Care - Day Care,42375,3578837, 924.00 ,BANGLADESHI PARENTS & CARERS ASSOCIATION
Adults Services,Adult Social Care,Older People (Aged 65 or over) including Older Mental Ill,Learning Dis Commissioning,Social Care - Day Care,42375,3578838," 2,352.00 ",BANGLADESHI PARENTS & CARERS ASSOCIATION
Adults Services,Adult Social Care,Older People (Aged 65 or over) including Older Mental Ill,Learning Dis Commissioning,Social Care - Day Care,42375,3578877," 1,300.00 ",PERSON CENTRED CARE HOMES
Adults Services,Adult Social Care,Older People (Aged 65 or over) including Older Mental Ill,Learning Dis Commissioning,Social Care - Day Care,42375,3578917," 1,448.00 ",The Bromley by Bow Centre
Adults Services,Adult Social Care,Older People (Aged 65 or over) including Older Mental Ill,Learning Dis Commissioning,Social Care - Day Care,42375,3578919, 876.00 ,The Bromley by Bow Centre
Adults Services,Adult Social Care,Older People (Aged 65 or over) including Older Mental Ill,Learning Dis Commissioning,Social Care - Day Care,42375,3578923," 1,460.00 ",The Bromley by Bow Centre
Adults Services,Adult Social Care,Older People (Aged 65 or over) including Older Mental Ill,Learning Dis Commissioning,Social Care - Day Care,42375,3578925, 727.52 ,The Bromley by Bow Centre
Adults Services,Adult Social Care,Older People (Aged 65 or over) including Older Mental Ill,Learning Dis Commissioning,Social Care - Day Care,42375,3578928, 584.00 ,The Bromley by Bow Centre
Adults Services,Adult Social Care,Older People (Aged 65 or over) including Older Mental Ill,Learning Dis Commissioning,Social Care - Day Care,42375,3578932, 792.00 ,The Bromley by Bow Centre
Adults Services,Adult Social Care,Older People (Aged 65 or over) including Older Mental Ill,Learning Dis Commissioning,Social Care - Day Care,42375,3578933, 504.00 ,The Bromley by Bow Centre
Adults Services,Adult Social Care,Older People (Aged 65 or over) including Older Mental Ill,Learning Dis Commissioning,Social Care - Day Care,42375,3578968, 661.60 ,APASENTH
Adults Services,Adult Social Care,Older People (Aged 65 or over) including Older Mental Ill,Learning Dis Commissioning,Social Care - Day Care,42375,3578969, 694.68 ,APASENTH
Adults Services,Adult Social Care,Older People (Aged 65 or over) including Older Mental Ill,Learning Dis Commissioning,Social Care - Day Care,42375,3578971," 1,916.57 ",APASENTH
Adults Services,Adult Social Care,Older People (Aged 65 or over) including Older Mental Ill,Learning Dis Commissioning,Social Care - Day Care,42375,3578972, 751.32 ,APASENTH
Adults Services,Adult Social Care,Older People (Aged 65 or over) including Older Mental Ill,Learning Dis Commissioning,Social Care - Day Care,42375,3578973, 694.68 ,APASENTH
Adults Services,Adult Social Care,Older People (Aged 65 or over) including Older Mental Ill,Learning Dis Commissioning,Social Care - Day Care,42375,3578974, 538.68 ,APASENTH
Adults Services,Adult Social Care,Older People (Aged 65 or over) including Older Mental Ill,Learning Dis Commissioning,Social Care - Day Care,42375,3578975, 562.36 ,APASENTH
Adults Services,Adult Social Care,Older People (Aged 65 or over) including Older Mental Ill,Learning Dis Commissioning,Social Care - Day Care,42375,3578977, 763.13 ,APASENTH
Adults Services,Adult Social Care,Older People (Aged 65 or over) including Older Mental Ill,Learning Dis Commissioning,Social Care - Day Care,42375,3578978, 694.68 ,APASENTH
Adults Services,Adult Social Care,Older People (Aged 65 or over) including Older Mental Ill,Learning Dis Commissioning,Social Care - Day Care,42375,3578979, 942.69 ,APASENTH
Adults Services,Adult Social Care,Older People (Aged 65 or over) including Older Mental Ill,Learning Dis Commissioning,Social Care - Day Care,42375,3578981, 942.69 ,APASENTH
Adults Services,Adult Social Care,Older People (Aged 65 or over) including Older Mental Ill,Learning Dis Commissioning,Social Care - Day Care,42375,3578982," 1,753.08 ",APASENTH
Adults Services,Adult Social Care,Older People (Aged 65 or over) including Older Mental Ill,Learning Dis Commissioning,Social Care - Day Care,42375,3578984, 661.60 ,APASENTH
Adults Services,Adult Social Care,Older People (Aged 65 or over) including Older Mental Ill,Learning Dis Commissioning,Social Care - Day Care,42375,3578989, 673.35 ,APASENTH
Adults Services,Adult Social Care,Older People (Aged 65 or over) including Older Mental Ill,Learning Dis Commissioning,Social Care - Day Care,42375,3578990, 694.68 ,APASENTH
Adults Services,Adult Social Care,Older People (Aged 65 or over) including Older Mental Ill,Learning Dis Commissioning,Social Care - Day Care,42375,3578991, 694.68 ,APASENTH
Adults Services,Adult Social Care,Older People (Aged 65 or over) including Older Mental Ill,Learning Dis Commissioning,Social Care - Day Care,42375,3578993," 1,753.08 ",APASENTH
Adults Services,Adult Social Care,Older People (Aged 65 or over) including Older Mental Ill,Learning Dis Commissioning,Social Care - Day Care,42375,3578994," 1,215.80 ",APASENTH
Adults Services,Adult Social Care,Older People (Aged 65 or over) including Older Mental Ill,Learning Dis Commissioning,Social Care - Day Care,42375,3578996," 1,499.19 ",APASENTH
Adults Services,Adult Social Care,Older People (Aged 65 or over) including Older Mental Ill,Learning Dis Commissioning,Social Care - Day Care,42375,3578997, 583.57 ,APASENTH
Adults Services,Adult Social Care,Older People (Aged 65 or over) including Older Mental Ill,Learning Dis Commissioning,Social Care - Day Care,42375,3578998, 694.68 ,APASENTH
Adults Services,Adult Social Care,Older People (Aged 65 or over) including Older Mental Ill,Learning Dis Commissioning,Social Care - Day Care,42375,3579003, 694.68 ,APASENTH
Adults Services,Adult Social Care,Older People (Aged 65 or over) including Older Mental Ill,Learning Dis Commissioning,Social Care - Day Care,42375,3579004, 595.44 ,APASENTH
Adults Services,Adult Social Care,Older People (Aged 65 or over) including Older Mental Ill,Learning Dis Commissioning,Social Care - Day Care,42375,3579005, 694.68 ,APASENTH
Adults Services,Adult Social Care,Older People (Aged 65 or over) including Older Mental Ill,Learning Dis Commissioning,Social Care - Day Care,42375,3579006, 562.36 ,APASENTH
Adults Services,Adult Social Care,Older People (Aged 65 or over) including Older Mental Ill,Learning Dis Commissioning,Social Care - Day Care,42375,3579007, 942.69 ,APASENTH
Adults Services,Adult Social Care,Older People (Aged 65 or over) including Older Mental Ill,Learning Dis Commissioning,Social Care - Day Care,42375,3579009, 511.08 ,APASENTH
Adults Services,Adult Social Care,Older People (Aged 65 or over) including Older Mental Ill,Learning Dis Commissioning,Social Care - Day Care,42375,3579009, 589.24 ,APASENTH
Adults Services,Adult Social Care,Older People (Aged 65 or over) including Older Mental Ill,Learning Dis Commissioning,Social Care - Day Care,42375,3579010, 628.52 ,APASENTH
Adults Services,Adult Social Care,Older People (Aged 65 or over) including Older Mental Ill,Learning Dis Commissioning,Social Care - Day Care,42375,3579011, 694.68 ,APASENTH
Adults Services,Adult Social Care,Older People (Aged 65 or over) including Older Mental Ill,Learning Dis Commissioning,Social Care - Day Care,42375,3579012, 694.68 ,APASENTH
Adults Services,Adult Social Care,Older People (Aged 65 or over) including Older Mental Ill,Learning Dis Commissioning,Social Care - Day Care,42375,3579013, 897.80 ,APASENTH
Adults Services,Adult Social Care,Older People (Aged 65 or over) including Older Mental Ill,Learning Dis Commissioning,Social Care - Day Care,42375,3579014," 1,085.24 ",APASENTH
Adults Services,Adult Social Care,Older People (Aged 65 or over) including Older Mental Ill,Learning Dis Commissioning,Social Care - Day Care,42375,3579015, 583.57 ,APASENTH
Adults Services,Adult Social Care,Older People (Aged 65 or over) including Older Mental Ill,Learning Dis Commissioning,Social Care - Day Care,42375,3579016," 1,502.76 ",APASENTH
Adults Services,Adult Social Care,Older People (Aged 65 or over) including Older Mental Ill,Learning Dis Commissioning,Social Care - Day Care,42375,3579018, 584.36 ,APASENTH
Adults Services,Adult Social Care,Older People (Aged 65 or over) including Older Mental Ill,Learning Dis Commissioning,Social Care - Day Care,42375,3579021, 783.12 ,APASENTH
Adults Services,Adult Social Care,Older People (Aged 65 or over) including Older Mental Ill,Learning Dis Commissioning,Social Care - Day Care,42375,3579154," 1,104.00 ",POETRY IN WOOD
Adults Services,Adult Social Care,Older People (Aged 65 or over) including Older Mental Ill,Learning Dis Commissioning,Social Care - Homecare,42375,3578670, 646.40 ,TRIANGLE COMMUNITY SERVICES
Adults Services,Adult Social Care,Older People (Aged 65 or over) including Older Mental Ill,Learning Dis Commissioning,Social Care - Homecare,42375,3578680," 5,452.80 ",TRIANGLE COMMUNITY SERVICES
Adults Services,Adult Social Care,Older People (Aged 65 or over) including Older Mental Ill,Learning Dis Commissioning,Social Care - Homecare,42375,3578683, 672.00 ,Medstar Domiciliary Care Servies Ltd
Adults Services,Adult Social Care,Older People (Aged 65 or over) including Older Mental Ill,Learning Dis Commissioning,Social Care - Homecare,42375,3578686, 646.40 ,TRIANGLE COMMUNITY SERVICES
Adults Services,Adult Social Care,Older People (Aged 65 or over) including Older Mental Ill,Learning Dis Commissioning,Social Care - Homecare,42375,3578693," 5,452.80 ",TRIANGLE COMMUNITY SERVICES
Adults Services,Adult Social Care,Older People (Aged 65 or over) including Older Mental Ill,Learning Dis Commissioning,Social Care - Homecare,42375,3578694, 646.40 ,TRIANGLE COMMUNITY SERVICES
Adults Services,Adult Social Care,Older People (Aged 65 or over) including Older Mental Ill,Learning Dis Commissioning,Social Care - Homecare,42375,3578701," 5,444.80 ",TRIANGLE COMMUNITY SERVICES
Adults Services,Adult Social Care,Older People (Aged 65 or over) including Older Mental Ill,Learning Dis Commissioning,Social Care - Homecare,42375,3578726, 646.40 ,TRIANGLE COMMUNITY SERVICES
Adults Services,Adult Social Care,Older People (Aged 65 or over) including Older Mental Ill,Learning Dis Commissioning,Social Care - Homecare,42375,3578733," 5,452.80 ",TRIANGLE COMMUNITY SERVICES
Adults Services,Adult Social Care,Older People (Aged 65 or over) including Older Mental Ill,Learning Dis Commissioning,Social Care - Homecare,42375,3578734," 5,452.80 ",TRIANGLE COMMUNITY SERVICES
Adults Services,Adult Social Care,Older People (Aged 65 or over) including Older Mental Ill,Learning Dis Commissioning,Social Care - Homecare,42375,3578741, 646.40 ,TRIANGLE COMMUNITY SERVICES
Adults Services,Adult Social Care,Older People (Aged 65 or over) including Older Mental Ill,Learning Dis Commissioning,Social Care - Homecare,42375,3578751, 646.40 ,TRIANGLE COMMUNITY SERVICES
Adults Services,Adult Social Care,Older People (Aged 65 or over) including Older Mental Ill,Learning Dis Commissioning,Social Care - Homecare,42375,3578758," 5,491.20 ",TRIANGLE COMMUNITY SERVICES
Adults Services,Adult Social Care,Older People (Aged 65 or over) including Older Mental Ill,Learning Dis Commissioning,Social Care - Homecare,42375,3578760, 646.40 ,TRIANGLE COMMUNITY SERVICES
Adults Services,Adult Social Care,Older People (Aged 65 or over) including Older Mental Ill,Learning Dis Commissioning,Social Care - Homecare,42375,3578766," 5,452.80 ",TRIANGLE COMMUNITY SERVICES
Adults Services,Adult Social Care,Older People (Aged 65 or over) including Older Mental Ill,Learning Dis Commissioning,Social Care - Homecare,42375,3578767," 5,452.80 ",TRIANGLE COMMUNITY SERVICES
Adults Services,Adult Social Care,Older People (Aged 65 or over) including Older Mental Ill,Learning Dis Commissioning,Social Care - Homecare,42375,3578774, 646.40 ,TRIANGLE COMMUNITY SERVICES
Adults Services,Adult Social Care,Older People (Aged 65 or over) including Older Mental Ill,Learning Dis Commissioning,Social Care - Homecare,42375,3578776," 5,452.80 ",TRIANGLE COMMUNITY SERVICES
Adults Services,Adult Social Care,Older People (Aged 65 or over) including Older Mental Ill,Learning Dis Commissioning,Social Care - Homecare,42375,3578782, 646.40 ,TRIANGLE COMMUNITY SERVICES
Adults Services,Adult Social Care,Older People (Aged 65 or over) including Older Mental Ill,Learning Dis Commissioning,Social Care - Homecare,42375,3578785, 646.40 ,TRIANGLE COMMUNITY SERVICES
Adults Services,Adult Social Care,Older People (Aged 65 or over) including Older Mental Ill,Learning Dis Commissioning,Social Care - Homecare,42375,3578792," 5,452.80 ",TRIANGLE COMMUNITY SERVICES
Adults Services,Adult Social Care,Older People (Aged 65 or over) including Older Mental Ill,Learning Dis Commissioning,Social Care - Homecare,42375,3578794, 646.40 ,TRIANGLE COMMUNITY SERVICES
Adults Services,Adult Social Care,Older People (Aged 65 or over) including Older Mental Ill,Learning Dis Commissioning,Social Care - Homecare,42375,3578800," 5,452.80 ",TRIANGLE COMMUNITY SERVICES
Adults Services,Adult Social Care,Older People (Aged 65 or over) including Older Mental Ill,Learning Dis Commissioning,Social Care - Homecare,42375,3578803, 646.40 ,TRIANGLE COMMUNITY SERVICES
Adults Services,Adult Social Care,Older People (Aged 65 or over) including Older Mental Ill,Learning Dis Commissioning,Social Care - Homecare,42375,3578809," 5,452.80 ",TRIANGLE COMMUNITY SERVICES
Adults Services,Adult Social Care,Older People (Aged 65 or over) including Older Mental Ill,Learning Dis Commissioning,Social Care - Homecare,42375,3579071," 1,181.48 ",APASENTH
Adults Services,Adult Social Care,Older People (Aged 65 or over) including Older Mental Ill,Learning Dis Commissioning,Social Care - Homecare,42375,3579072, 774.30 ,APASENTH
Adults Services,Adult Social Care,Older People (Aged 65 or over) including Older Mental Ill,Learning Dis Commissioning,Social Care - Homecare,42375,3579074, 707.55 ,APASENTH
Adults Services,Adult Social Care,Older People (Aged 65 or over) including Older Mental Ill,Learning Dis Commissioning,Social Care - Homecare,42375,3579075, 614.10 ,APASENTH
Adults Services,Adult Social Care,Older People (Aged 65 or over) including Older Mental Ill,Learning Dis Commissioning,Social Care - Homecare,42375,3579077, 594.08 ,APASENTH
Adults Services,Adult Social Care,Older People (Aged 65 or over) including Older Mental Ill,Learning Dis Commissioning,Social Care - Homecare,42375,3579310, 816.75 ,Soma Healthcare Ltd
Adults Services,Adult Social Care,Older People (Aged 65 or over) including Older Mental Ill,Learning Dis Commissioning,Social Care - Help to Live at Home,42375,3578609," 8,871.24 ",PEMBROKE HOUSE
Adults Services,Adult Social Care,Older People (Aged 65 or over) including Older Mental Ill,Learning Dis Commissioning,Social Care - Help to Live at Home,42375,3578724," 4,395.77 ",HOLMLEIGH CARE HOMES LTD
Adults Services,Adult Social Care,Older People (Aged 65 or over) including Older Mental Ill,Learning Dis Commissioning,Social Care - Help to Live at Home,42375,3579050, 836.00 ,Choicy Care Homes Limited
Adults Services,Adult Social Care,Older People (Aged 65 or over) including Older Mental Ill,Learning Dis Commissioning,Social Care - Help to Live at Home,42375,3579051, 836.00 ,Choicy Care Homes Limited
Adults Services,Adult Social Care,Older People (Aged 65 or over) including Older Mental Ill,Learning Dis Commissioning,Social Care - Help to Live at Home,42375,3579069," 1,879.44 ",Precious Homes LTD
Adults Services,Adult Social Care,Older People (Aged 65 or over) including Older Mental Ill,Learning Dis Commissioning,Client Contributions for Social Care - Residential Care,42375,3578857,-679.43 ,"Appletree Court Care Ltd,  Appletree Court Care Home"
Adults Services,Adult Social Care,Older People (Aged 65 or over) including Older Mental Ill,Learning Dis Commissioning,Client Contributions for Social Care - Residential Care,42375,3579157,-541.28 ,Norwood Ravenswood Services LTD
Adults Services,Adult Social Care,Older People (Aged 65 or over) including Older Mental Ill,Physical Dis Commissioning,Social Care - Day Care,42375,3578963, 928.55 ,St Hilda's East Community Centre
Adults Services,Adult Social Care,Older People (Aged 65 or over) including Older Mental Ill,Physical Dis Commissioning,Social Care - Day Care,42375,3578966, 742.84 ,St Hilda's East Community Centre
Adults Services,Adult Social Care,Older People (Aged 65 or over) including Older Mental Ill,Physical Dis Commissioning,Social Care - Homecare,42375,3578626," 1,379.00 ",Active Assistance
Adults Services,Adult Social Care,Older People (Aged 65 or over) including Older Mental Ill,Physical Dis Commissioning,Social Care - Homecare,42375,3578627," 1,379.00 ",Active Assistance
Adults Services,Adult Social Care,Older People (Aged 65 or over) including Older Mental Ill,Physical Dis Commissioning,Social Care - Homecare,42375,3578628," 1,379.00 ",Active Assistance
Adults Services,Adult Social Care,Older People (Aged 65 or over) including Older Mental Ill,Physical Dis Commissioning,Social Care - Homecare,42375,3578651, 710.88 ,ATHLONE CARE LTD
Adults Services,Adult Social Care,Older People (Aged 65 or over) including Older Mental Ill,Physical Dis Commissioning,Social Care - Homecare,42375,3578669, 696.00 ,TRIANGLE COMMUNITY SERVICES
Adults Services,Adult Social Care,Older People (Aged 65 or over) including Older Mental Ill,Physical Dis Commissioning,Social Care - Homecare,42375,3578715, 624.75 ,Mantra Recruitment
Adults Services,Adult Social Care,Older People (Aged 65 or over) including Older Mental Ill,Physical Dis Commissioning,Social Care - Homecare,42375,3578904, 644.35 ,REDSPOT HOMECARE (CONTRACTS) LTD
Adults Services,Adult Social Care,Older People (Aged 65 or over) including Older Mental Ill,Physical Dis Commissioning,Social Care - Homecare,42375,3579246, 556.16 ,SANCTUARY HOME CARE LIMITED
Adults Services,Adult Social Care,Older People (Aged 65 or over) including Older Mental Ill,Physical Dis Commissioning,Social Care - Homecare,42375,3579261, 541.88 ,SANCTUARY HOME CARE LIMITED
Adults Services,Adult Social Care,Older People (Aged 65 or over) including Older Mental Ill,Physical Dis Commissioning,Social Care - Homecare,42375,3579275," 1,597.12 ",SANCTUARY HOME CARE LIMITED
Adults Services,Adult Social Care,Older People (Aged 65 or over) including Older Mental Ill,Physical Dis Commissioning,Social Care - Homecare,42375,3579291, 541.90 ,SANCTUARY HOME CARE LIMITED
Adults Services,Adult Social Care,Older People (Aged 65 or over) including Older Mental Ill,Physical Dis Commissioning,Social Care - Homecare,42375,3579315, 638.55 ,Soma Healthcare Ltd
Adults Services,Adult Social Care,Older People (Aged 65 or over) including Older Mental Ill,Physical Dis Commissioning,Social Care - Homecare,42375,3579339," 2,123.55 ",Soma Healthcare Ltd
Adults Services,Adult Social Care,Older People (Aged 65 or over) including Older Mental Ill,Physical Dis Commissioning,Social Care - Direct Payments,42375,3578850," 1,898.45 ",DAVID HOWARD LTD CLIENT ACCOUNT
Adults Services,Adult Social Care,Older People (Aged 65 or over) including Older Mental Ill,Mental Health Commissioning,Social Care - Nursing Care,42375,3579158," 3,958.52 ",THE BRITISH HOME
Adults Services,Adult Social Care,Older People (Aged 65 or over) including Older Mental Ill,Mental Health Commissioning,Social Care - Residential Care,42375,3579049," 2,820.11 ",AVANTE CARE & SUPPORT
Adults Services,Adult Social Care,Older People (Aged 65 or over) including Older Mental Ill,Mental Health Commissioning,Social Care - Residential Care,42375,3579159," 2,258.57 ",SUMMERDALE COURT CARE CENTRE
Adults Services,Adult Social Care,Older People (Aged 65 or over) including Older Mental Ill,Mental Health Commissioning,Social Care - Day Care,42375,3578962, 758.22 ,St Hilda's East Community Centre
Adults Services,Adult Social Care,Older People (Aged 65 or over) including Older Mental Ill,Mental Health Commissioning,Social Care - Homecare,42375,3578672, 704.00 ,TRIANGLE COMMUNITY SERVICES
Adults Services,Adult Social Care,Older People (Aged 65 or over) including Older Mental Ill,Mental Health Commissioning,Social Care - Homecare,42375,3578688, 704.00 ,TRIANGLE COMMUNITY SERVICES
Adults Services,Adult Social Care,Older People (Aged 65 or over) including Older Mental Ill,Mental Health Commissioning,Social Care - Homecare,42375,3578696, 704.00 ,TRIANGLE COMMUNITY SERVICES
Adults Services,Adult Social Care,Older People (Aged 65 or over) including Older Mental Ill,Mental Health Commissioning,Social Care - Homecare,42375,3578728, 704.00 ,TRIANGLE COMMUNITY SERVICES
Adults Services,Adult Social Care,Older People (Aged 65 or over) including Older Mental Ill,Mental Health Commissioning,Social Care - Homecare,42375,3578739, 704.00 ,TRIANGLE COMMUNITY SERVICES
Adults Services,Adult Social Care,Older People (Aged 65 or over) including Older Mental Ill,Mental Health Commissioning,Social Care - Homecare,42375,3578753, 710.40 ,TRIANGLE COMMUNITY SERVICES
Adults Services,Adult Social Care,Older People (Aged 65 or over) including Older Mental Ill,Mental Health Commissioning,Social Care - Homecare,42375,3578762, 704.00 ,TRIANGLE COMMUNITY SERVICES
Adults Services,Adult Social Care,Older People (Aged 65 or over) including Older Mental Ill,Mental Health Commissioning,Social Care - Homecare,42375,3578772, 704.00 ,TRIANGLE COMMUNITY SERVICES
Adults Services,Adult Social Care,Older People (Aged 65 or over) including Older Mental Ill,Mental Health Commissioning,Social Care - Homecare,42375,3578780, 704.00 ,TRIANGLE COMMUNITY SERVICES
Adults Services,Adult Social Care,Older People (Aged 65 or over) including Older Mental Ill,Mental Health Commissioning,Social Care - Homecare,42375,3578787, 704.00 ,TRIANGLE COMMUNITY SERVICES
Adults Services,Adult Social Care,Older People (Aged 65 or over) including Older Mental Ill,Mental Health Commissioning,Social Care - Homecare,42375,3578796, 704.00 ,TRIANGLE COMMUNITY SERVICES
Adults Services,Adult Social Care,Older People (Aged 65 or over) including Older Mental Ill,Mental Health Commissioning,Social Care - Homecare,42375,3578805, 704.00 ,TRIANGLE COMMUNITY SERVICES
Adults Services,Adult Social Care,Older People (Aged 65 or over) including Older Mental Ill,Mental Health Commissioning,Social Care - Homecare,42375,3579252, 855.60 ,SANCTUARY HOME CARE LIMITED
Adults Services,Adult Social Care,Older People (Aged 65 or over) including Older Mental Ill,Mental Health Commissioning,Social Care - Homecare,42375,3579305, 580.00 ,Soma Healthcare Ltd
Adults Services,Adult Social Care,Older People (Aged 65 or over) including Older Mental Ill,Mental Health Commissioning,Social Care - Homecare,42375,3579306," 1,212.00 ",Soma Healthcare Ltd
Adults Services,Adult Social Care,Older People (Aged 65 or over) including Older Mental Ill,Mental Health Commissioning,Social Care - Homecare,42375,3579321, 594.00 ,Soma Healthcare Ltd
Adults Services,Adult Social Care,Older People (Aged 65 or over) including Older Mental Ill,Mental Health Commissioning,Social Care - Prevention & Support,42375,3578676," 2,214.29 ",Sign Health
Adults Services,Adult Social Care,Older People (Aged 65 or over) including Older Mental Ill,Mental Health Commissioning,Social Care - Prevention & Support,42375,3579027," 1,059.17 ",Alma Attic Ltd T/A Glorydale Inn
Adults Services,Adult Social Care,Older People (Aged 65 or over) including Older Mental Ill,Mental Health Commissioning,Social Care - Prevention & Support,42375,3579028," 1,834.17 ",Alma Attic Ltd T/A Glorydale Inn
Adults Services,Adult Social Care,Older People (Aged 65 or over) including Older Mental Ill,Mental Health Commissioning,Social Care - Supported Accommodation,42375,3578608," 2,435.71 ",HAROLD LODGE
Adults Services,Adult Social Care,Older People (Aged 65 or over) including Older Mental Ill,Mental Health Commissioning,Social Care - Supported Accommodation,42375,3578623," 1,705.71 ",J M CAREHOMES LIMITED
Adults Services,Adult Social Care,Older People (Aged 65 or over) including Older Mental Ill,Mental Health Commissioning,Social Care - Supported Accommodation,42375,3578624," 2,192.14 ",HAROLD LODGE
Adults Services,Adult Social Care,Older People (Aged 65 or over) including Older Mental Ill,Mental Health Commissioning,Social Care - Supported Accommodation,42375,3578625," 1,992.86 ",HAROLD LODGE
Adults Services,Adult Social Care,Older People (Aged 65 or over) including Older Mental Ill,Mental Health Commissioning,Social Care - Supported Accommodation,42375,3578677," 3,522.84 ",Sign Health
Adults Services,Adult Social Care,Older People (Aged 65 or over) including Older Mental Ill,Carers,Social Care - Black Women's Health & FS,42375,3579349," 4,125.00 ",Black Women's Health & Family Support
Adults Services,No Service Specified,No Division Specified,Community Equipment Store,Healthy & Safety Supplies,42375,3572794, 602.64 ,ACTION ON HEARING LOSS
Adults Services,No Service Specified,No Division Specified,Capital-Minor Works (SC),Other External Fees - Mech & Elect Engineers Fees,42375,3563288, 914.50 ,Cunnington Clark Ltd
Adults Services,No Service Specified,No Division Specified,Capital-Minor Works (SC),Other External Fees - Mech & Elect Engineers Fees,42375,3563289, 868.00 ,Cunnington Clark Ltd
Adults Services,No Service Specified,No Division Specified,Capital-Minor Works (SC),Building Works - Main Works,42375,3578387, 635.41 ,Tower Hamlets Schools LTD
Adults Services,Adult Social Care,Older People (Aged 65 or over) including Older Mental Ill,Strategic Commissioning,Social Care - MSG Lunch Clubs,42377,3580729, 666.67 ,Kingsley Hall Community Centre
Adults Services,Adult Social Care,Older People (Aged 65 or over) including Older Mental Ill,Strategic Commissioning,Social Care - MSG Lunch Clubs,42377,3580730," 2,333.33 ",POPLAR BANGLADESHI COMMUNITY PROJECT
Adults Services,Adult Social Care,Older People (Aged 65 or over) including Older Mental Ill,Strategic Commissioning,Social Care - MSG Lunch Clubs,42377,3580731, 666.67 ,Kingsley Hall Community Centre
Adults Services,Adult Social Care,Older People (Aged 65 or over) including Older Mental Ill,Strategic Commissioning,Social Care - MSG Lunch Clubs,42377,3580732," 1,166.66 ",POPLAR BANGLADESHI COMMUNITY PROJECT
Adults Services,Adult Social Care,Older People (Aged 65 or over) including Older Mental Ill,Strategic Commissioning,Social Care - MSG Lunch Clubs,42377,3580733, 666.67 ,Kingsley Hall Community Centre
Adults Services,Adult Social Care,Older People (Aged 65 or over) including Older Mental Ill,Strategic Commissioning,Social Care - MSG Lunch Clubs,42377,3580736, 666.67 ,Kingsley Hall Community Centre
Adults Services,Adult Social Care,Older People (Aged 65 or over) including Older Mental Ill,Older People Commissioning,Social Care - Residential Care,42377,3580703," 2,435.71 ",Cheriton Residential Care Home
Adults Services,Adult Social Care,Older People (Aged 65 or over) including Older Mental Ill,Older People Commissioning,Social Care - Residential Care,42377,3580728, 748.00 ,H-C ONE
Adults Services,Adult Social Care,Older People (Aged 65 or over) including Older Mental Ill,Older People Commissioning,Social Care - Residential Care,42377,3580797," 1,857.90 ",RUNWOOD HOMES PLC
Adults Services,Adult Social Care,Older People (Aged 65 or over) including Older Mental Ill,Older People Commissioning,Social Care - Residential Care,42377,3580797,-724.54 ,RUNWOOD HOMES PLC
Adults Services,Adult Social Care,Older People (Aged 65 or over) including Older Mental Ill,Older People Commissioning,Social Care - Residential Care,42377,3580798," 1,990.16 ",RUNWOOD HOMES PLC
Adults Services,Adult Social Care,Older People (Aged 65 or over) including Older Mental Ill,Older People Commissioning,Social Care - Residential Care,42377,3580799," 2,019.70 ",RUNWOOD HOMES PLC
Adults Services,Adult Social Care,Older People (Aged 65 or over) including Older Mental Ill,Older People Commissioning,Social Care - Residential Care,42377,3580799,-584.13 ,RUNWOOD HOMES PLC
Adults Services,Adult Social Care,Older People (Aged 65 or over) including Older Mental Ill,Older People Commissioning,Social Care - Residential Care,42377,3580800," 1,919.84 ",RUNWOOD HOMES PLC
Adults Services,Adult Social Care,Older People (Aged 65 or over) including Older Mental Ill,Older People Commissioning,Social Care - Residential Care,42377,3580800,-748.70 ,RUNWOOD HOMES PLC
Adults Services,Adult Social Care,Older People (Aged 65 or over) including Older Mental Ill,Older People Commissioning,Social Care - Homecare,42377,3580649, 612.67 ,ATHLONE CARE LTD
Adults Services,Adult Social Care,Older People (Aged 65 or over) including Older Mental Ill,Older People Commissioning,Social Care - Homecare,42377,3580657," 1,117.88 ",Carewatch Newham Ltd
Adults Services,Adult Social Care,Older People (Aged 65 or over) including Older Mental Ill,Older People Commissioning,Social Care - Homecare,42377,3580666, 902.86 ,Carewatch Newham Ltd
Adults Services,Adult Social Care,Older People (Aged 65 or over) including Older Mental Ill,Older People Commissioning,Social Care - Homecare,42377,3580671, 594.78 ,Carewatch Newham Ltd
Adults Services,Adult Social Care,Older People (Aged 65 or over) including Older Mental Ill,Older People Commissioning,Social Care - Homecare,42377,3580682," 1,003.10 ",Carewatch Newham Ltd
Adults Services,Adult Social Care,Older People (Aged 65 or over) including Older Mental Ill,Older People Commissioning,Social Care - Homecare,42377,3580694," 3,864.00 ",Bluebird Care (Havering)
Adults Services,Adult Social Care,Older People (Aged 65 or over) including Older Mental Ill,Older People Commissioning,Social Care - Homecare,42377,3580817, 898.38 ,SANCTUARY HOME CARE LIMITED
Adults Services,Adult Social Care,Older People (Aged 65 or over) including Older Mental Ill,Older People Commissioning,Social Care - Homecare,42377,3580825, 598.60 ,Soma Healthcare Ltd
Adults Services,Adult Social Care,Older People (Aged 65 or over) including Older Mental Ill,Learning Dis Commissioning,Social Care - Homecare,42377,3580691, 586.50 ,Mantra Recruitment
Adults Services,Adult Social Care,Older People (Aged 65 or over) including Older Mental Ill,Learning Dis Commissioning,Social Care - Homecare,42377,3580709," 4,906.80 ",Tower Project
Adults Services,Adult Social Care,Older People (Aged 65 or over) including Older Mental Ill,Learning Dis Commissioning,Social Care - Homecare,42377,3580710," 5,024.87 ",Tower Project
Adults Services,Adult Social Care,Older People (Aged 65 or over) including Older Mental Ill,Learning Dis Commissioning,Social Care - Homecare,42377,3580717," 1,997.53 ",MiHOMECARE LIMITED
Adults Services,Adult Social Care,Older People (Aged 65 or over) including Older Mental Ill,Learning Dis Commissioning,Social Care - Homecare,42377,3580832," 1,228.80 ",Outward Housing
Adults Services,Adult Social Care,Older People (Aged 65 or over) including Older Mental Ill,Learning Dis Commissioning,Social Care - Homecare,42377,3580833," 1,098.72 ",Outward Housing
Adults Services,Adult Social Care,Older People (Aged 65 or over) including Older Mental Ill,Learning Dis Commissioning,Social Care - Homecare,42377,3580835, 765.60 ,Outward Housing
Adults Services,Adult Social Care,Older People (Aged 65 or over) including Older Mental Ill,Learning Dis Commissioning,Social Care - Homecare,42377,3580836," 2,679.60 ",Outward Housing
Adults Services,Adult Social Care,Older People (Aged 65 or over) including Older Mental Ill,Learning Dis Commissioning,Social Care - Homecare,42377,3580838, 765.60 ,Outward Housing
Adults Services,Adult Social Care,Older People (Aged 65 or over) including Older Mental Ill,Learning Dis Commissioning,Social Care - Homecare,42377,3580841," 2,411.64 ",Outward Housing
Adults Services,Adult Social Care,Older People (Aged 65 or over) including Older Mental Ill,Learning Dis Commissioning,Social Care - Homecare,42377,3580843, 918.72 ,Outward Housing
Adults Services,Adult Social Care,Older People (Aged 65 or over) including Older Mental Ill,Learning Dis Commissioning,Social Care - Homecare,42377,3580844, 612.48 ,Outward Housing
Adults Services,Adult Social Care,Older People (Aged 65 or over) including Older Mental Ill,Learning Dis Commissioning,Social Care - Homecare,42377,3580846, 669.90 ,Outward Housing
Adults Services,Adult Social Care,Older People (Aged 65 or over) including Older Mental Ill,Learning Dis Commissioning,Social Care - Homecare,42377,3580847, 612.48 ,Outward Housing
Adults Services,Adult Social Care,Older People (Aged 65 or over) including Older Mental Ill,Learning Dis Commissioning,Social Care - Homecare,42377,3580850," 1,224.96 ",Outward Housing
Adults Services,Adult Social Care,Older People (Aged 65 or over) including Older Mental Ill,Learning Dis Commissioning,Social Care - Homecare,42377,3580851," 1,454.64 ",Outward Housing
Adults Services,Adult Social Care,Older People (Aged 65 or over) including Older Mental Ill,Learning Dis Commissioning,Social Care - Homecare,42377,3580854," 1,071.84 ",Outward Housing
Adults Services,Adult Social Care,Older People (Aged 65 or over) including Older Mental Ill,Learning Dis Commissioning,Social Care - Homecare,42377,3580855, 765.60 ,Outward Housing
Adults Services,Adult Social Care,Older People (Aged 65 or over) including Older Mental Ill,Learning Dis Commissioning,Social Care - Homecare,42377,3580857, 689.04 ,Outward Housing
Adults Services,Adult Social Care,Older People (Aged 65 or over) including Older Mental Ill,Physical Dis Commissioning,Social Care - Day Care,42377,3580712, 566.16 ,Tower Project
Adults Services,Adult Social Care,Older People (Aged 65 or over) including Older Mental Ill,Physical Dis Commissioning,Social Care - Homecare,42377,3580643," 1,703.56 ",ATHLONE CARE LTD
Adults Services,Adult Social Care,Older People (Aged 65 or over) including Older Mental Ill,Physical Dis Commissioning,Social Care - Homecare,42377,3580658," 1,063.00 ",Carewatch Newham Ltd
Adults Services,Adult Social Care,Older People (Aged 65 or over) including Older Mental Ill,Physical Dis Commissioning,Social Care - Homecare,42377,3580679," 1,289.13 ",Carewatch Newham Ltd
Adults Services,Adult Social Care,Older People (Aged 65 or over) including Older Mental Ill,Physical Dis Commissioning,Social Care - Homecare,42377,3580685, 580.36 ,Carewatch Newham Ltd
Adults Services,Adult Social Care,Older People (Aged 65 or over) including Older Mental Ill,Physical Dis Commissioning,Social Care - Homecare,42377,3580716," 4,705.45 ",MiHOMECARE LIMITED
Adults Services,Adult Social Care,Older People (Aged 65 or over) including Older Mental Ill,Physical Dis Commissioning,Social Care - Homecare,42377,3580821, 513.00 ,Soma Healthcare Ltd
Adults Services,Adult Social Care,Older People (Aged 65 or over) including Older Mental Ill,Physical Dis Commissioning,Social Care - Homecare,42377,3580826, 525.60 ,Soma Healthcare Ltd
Adults Services,Adult Social Care,Older People (Aged 65 or over) including Older Mental Ill,Physical Dis Commissioning,Social Care - Direct Payments,42377,3580708," 1,000.00 ",DAVID HOWARD LTD CLIENT ACCOUNT
Adults Services,Adult Social Care,Older People (Aged 65 or over) including Older Mental Ill,Mental Health Commissioning,Social Care - Homecare,42377,3580659, 573.20 ,Carewatch Newham Ltd
Adults Services,Adult Social Care,Older People (Aged 65 or over) including Older Mental Ill,Mental Health Commissioning,Social Care - Homecare,42377,3580673, 501.70 ,Carewatch Newham Ltd
Adults Services,Adult Social Care,Older People (Aged 65 or over) including Older Mental Ill,Mental Health Commissioning,Social Care - Homecare,42377,3580715, 524.76 ,MiHOMECARE LIMITED
Adults Services,Adult Social Care,Older People (Aged 65 or over) including Older Mental Ill,Mental Health Commissioning,Social Care - Supported Accommodation,42377,3580625," 2,192.14 ",HAROLD LODGE
Adults Services,Adult Social Care,Older People (Aged 65 or over) including Older Mental Ill,Mental Health Commissioning,Social Care - Supported Accommodation,42377,3580630," 1,762.57 ",J M CAREHOMES LIMITED
Adults Services,Adult Social Care,Older People (Aged 65 or over) including Older Mental Ill,Mental Health Commissioning,Social Care - Supported Accommodation,42377,3580704," 3,225.00 ",Providence Row Housing Association
Adults Services,Adult Social Care,Other Adult Services,Integration Project,Agency Staff,42377,3564175," 6,500.00 ",East London NHS Foundation Trust
Adults Services,Adult Social Care,Other Adult Services,Integration Project,Agency Staff,42377,3569109," 6,500.00 ",East London NHS Foundation Trust
Adults Services,Public Health,Children 519 Public Health Programmes,Public Health Team 1,Third Party Payments - Voluntary Associations,42377,3577616," 68,750.00 ",Osmani Trust
Adults Services,Public Health,Children 519 Public Health Programmes,Public Health Team 1,Third Party Payments - Voluntary Associations,42377,3579950," 10,000.00 ",Island House Community Centre
Adults Services,Public Health,Children 519 Public Health Programmes,Public Health Team 1,Third Party Payments - Voluntary Associations,42377,3579951," 7,500.00 ",Island House Community Centre
Adults Services,Public Health,Smoking and Tobacco,Public Health Team - 2,Third Party Payments - Other Establishments,42377,3577487," 15,173.60 ",Homerton University Hospital Trust
Adults Services,Public Health,Smoking and Tobacco,Public Health Team - 2,Third Party Payments - Other Establishments,42377,3580396," 17,097.01 ",Homerton University Hospital Trust
Adults Services,Public Health,Smoking and Tobacco,Public Health Team - 2,Payments to Private Contractors - Other Contractors,42377,3580057," 1,774.27 ",Redacted Section 40 FOI Act
Adults Services,Public Health,Smoking and Tobacco,Public Health Team - 2,Payments to Private Contractors - Other Contractors,42377,3580067, 793.20 ,FLORIDA PHARMACY
Adults Services,Public Health,Smoking and Tobacco,Public Health Team - 2,Payments to Private Contractors - Other Contractors,42377,3580068, 531.39 ,FLORIDA PHARMACY
Adults Services,Adult Social Care,Adults Aged Under 65 with Mental Health Needs,"BCF-Autism Strategy	",Social Care - Prevention & Support - Block,42377,3580735," 82,930.64 ",East London NHS Foundation Trust
Adults Services,Adult Social Care,Older People (Aged 65 or over) including Older Mental Ill,Physical Dis Commissioning,Social Care - Homecare,42380,3580655," 3,920.00 ",SPINAL & DISABLED HOMECARE
Adults Services,Adult Social Care,Older People (Aged 65 or over) including Older Mental Ill,Mental Health Commissioning,Events & Exhibition Supplies,42380,3580360," 4,875.00 ",Sainsburys Business Direct
Adults Services,No Service Specified,No Division Specified,Community Equipment Store,Services - Professional Fees - Legal Fees/Expenses,42380,3543434," 1,128.08 ",Workspace Group PLC
Adults Services,Public Health,Smoking and Tobacco,Public Health Team - 2,Third Party Payments - Other Establishments,42380,3547410, 645.69 ,St George's Healthcare NHS Trust
Adults Services,Public Health,Miscellaneous Public Health Services,Public Health Team - 3,Third Party Payments - Voluntary Associations,42380,3580943," 3,000.00 ",Ocean Somali Community Association
Adults Services,Public Health,Miscellaneous Public Health Services,Public Health Team - 3,Third Party Payments - Voluntary Associations,42380,3581047," 7,000.00 ",AGE UK EAST LONDON
Adults Services,No Service Specified,No Division Specified,Capital-Minor Works (SC),Building Works - Main Works,42380,3563269," 7,695.00 ",Tower Hamlets Schools LTD
Adults Services,No Service Specified,No Division Specified,Capital-Minor Works (SC),Building Works - Main Works,42380,3575832," 7,964.67 ",VMS Network Cabling Ltd
Adults Services,No Service Specified,No Division Specified,Capital-Minor Works (SC),Building Works - Main Works,42380,3580343," 3,825.00 ",Pollard Thomas & Edwards LTD
Adults Services,Coburn S.E.C.,Coburn S.E.C.,General,General,42382,Payment Card, 570.00 ,office reality ltd
Adults Services,Adult Social Care,Older People (Aged 65 or over) including Older Mental Ill,Older People Commissioning,Social Care - Nursing Care,42382,3576491," 2,558.48 ",H-C ONE LTD - TOWER BRIDGE
Adults Services,Adult Social Care,Older People (Aged 65 or over) including Older Mental Ill,Older People Commissioning,Social Care - Nursing Care,42382,3582062," 2,252.51 ",LIFE STYLE CARE (2011) PLC
Adults Services,Adult Social Care,Older People (Aged 65 or over) including Older Mental Ill,Older People Commissioning,Social Care - Residential Care,42382,3582275," 3,757.20 ",ACTION ON HEARING LOSS
Adults Services,Adult Social Care,Older People (Aged 65 or over) including Older Mental Ill,Older People Commissioning,Social Care - Day Care,42382,3582123, 605.62 ,St Hilda's East Community Centre
Adults Services,Adult Social Care,Older People (Aged 65 or over) including Older Mental Ill,Older People Commissioning,Social Care - Homecare,42382,3581912, 591.55 ,ATHLONE CARE LTD
Adults Services,Adult Social Care,Older People (Aged 65 or over) including Older Mental Ill,Older People Commissioning,Social Care - Homecare,42382,3581936, 612.67 ,ATHLONE CARE LTD
Adults Services,Adult Social Care,Older People (Aged 65 or over) including Older Mental Ill,Older People Commissioning,Social Care - Homecare,42382,3581972," 4,284.00 ",Mantra Recruitment
Adults Services,Adult Social Care,Older People (Aged 65 or over) including Older Mental Ill,Older People Commissioning,Social Care - Homecare,42382,3581981, 714.00 ,Mantra Recruitment
Adults Services,Adult Social Care,Older People (Aged 65 or over) including Older Mental Ill,Older People Commissioning,Social Care - Homecare,42382,3582083, 828.30 ,REDSPOT HOMECARE (CONTRACTS) LTD
Adults Services,Adult Social Care,Older People (Aged 65 or over) including Older Mental Ill,Older People Commissioning,Social Care - Homecare,42382,3582084, 894.20 ,REDSPOT HOMECARE (CONTRACTS) LTD
Adults Services,Adult Social Care,Older People (Aged 65 or over) including Older Mental Ill,Older People Commissioning,Social Care - Homecare,42382,3582087, 736.40 ,REDSPOT HOMECARE (CONTRACTS) LTD
Adults Services,Adult Social Care,Older People (Aged 65 or over) including Older Mental Ill,Older People Commissioning,Social Care - Homecare,42382,3582108, 867.90 ,REDSPOT HOMECARE (CONTRACTS) LTD
Adults Services,Adult Social Care,Older People (Aged 65 or over) including Older Mental Ill,Older People Commissioning,Social Care - Homecare,42382,3582254, 532.08 ,MiHOMECARE LIMITED
Adults Services,Adult Social Care,Older People (Aged 65 or over) including Older Mental Ill,Older People Commissioning,Social Care - Homecare,42382,3582282," 2,429.70 ",APASENTH
Adults Services,Adult Social Care,Older People (Aged 65 or over) including Older Mental Ill,Older People Commissioning,Social Care - Homecare,42382,3582285," 1,495.20 ",APASENTH
Adults Services,Adult Social Care,Older People (Aged 65 or over) including Older Mental Ill,Older People Commissioning,Social Care - Homecare,42382,3582288," 1,214.85 ",APASENTH
Adults Services,Adult Social Care,Older People (Aged 65 or over) including Older Mental Ill,Older People Commissioning,Social Care - Homecare,42382,3582290, 917.81 ,APASENTH
Adults Services,Adult Social Care,Older People (Aged 65 or over) including Older Mental Ill,Older People Commissioning,Client Contributions for Social Care - Nursing Care,42382,3576491,-559.33 ,H-C ONE LTD - TOWER BRIDGE
Adults Services,Adult Social Care,Older People (Aged 65 or over) including Older Mental Ill,Older People Commissioning,Client Contributions for Social Care - Nursing Care,42382,3582062,-664.84 ,LIFE STYLE CARE (2011) PLC
Adults Services,Adult Social Care,Older People (Aged 65 or over) including Older Mental Ill,Learning Dis Commissioning,Non Staff Transport Costs - Client Transport Costs,42382,3573898, 871.32 ,DIMENSIONS (UK) LTD
Adults Services,Adult Social Care,Older People (Aged 65 or over) including Older Mental Ill,Learning Dis Commissioning,Non Staff Transport Costs - Client Transport Costs,42382,3576522, 871.32 ,DIMENSIONS (UK) LTD
Adults Services,Adult Social Care,Older People (Aged 65 or over) including Older Mental Ill,Learning Dis Commissioning,Social Care - Residential Care,42382,3581947," 42,762.70 ",The Camden Society
Adults Services,Adult Social Care,Older People (Aged 65 or over) including Older Mental Ill,Learning Dis Commissioning,Social Care - Residential Care,42382,3581984," 9,200.00 ",Coppice Care Burgess Hill LLP
Adults Services,Adult Social Care,Older People (Aged 65 or over) including Older Mental Ill,Learning Dis Commissioning,Social Care - Residential Care,42382,3582394," 8,096.69 ",Outward Housing
Adults Services,Adult Social Care,Older People (Aged 65 or over) including Older Mental Ill,Learning Dis Commissioning,Social Care - Respite Care,42382,3582280, 990.00 ,APASENTH
Adults Services,Adult Social Care,Older People (Aged 65 or over) including Older Mental Ill,Learning Dis Commissioning,Social Care - Day Care,42382,3573899, 871.32 ,DIMENSIONS (UK) LTD
Adults Services,Adult Social Care,Older People (Aged 65 or over) including Older Mental Ill,Learning Dis Commissioning,Social Care - Day Care,42382,3576523, 871.32 ,DIMENSIONS (UK) LTD
Adults Services,Adult Social Care,Older People (Aged 65 or over) including Older Mental Ill,Learning Dis Commissioning,Social Care - Day Care,42382,3578937," 1,144.00 ",The Bromley by Bow Centre
Adults Services,Adult Social Care,Older People (Aged 65 or over) including Older Mental Ill,Learning Dis Commissioning,Social Care - Day Care,42382,3578938," 1,408.00 ",The Bromley by Bow Centre
Adults Services,Adult Social Care,Older People (Aged 65 or over) including Older Mental Ill,Learning Dis Commissioning,Social Care - Day Care,42382,3578940, 876.00 ,The Bromley by Bow Centre
Adults Services,Adult Social Care,Older People (Aged 65 or over) including Older Mental Ill,Learning Dis Commissioning,Social Care - Day Care,42382,3578944," 1,460.00 ",The Bromley by Bow Centre
Adults Services,Adult Social Care,Older People (Aged 65 or over) including Older Mental Ill,Learning Dis Commissioning,Social Care - Day Care,42382,3578946, 727.52 ,The Bromley by Bow Centre
Adults Services,Adult Social Care,Older People (Aged 65 or over) including Older Mental Ill,Learning Dis Commissioning,Social Care - Day Care,42382,3578947, 696.00 ,The Bromley by Bow Centre
Adults Services,Adult Social Care,Older People (Aged 65 or over) including Older Mental Ill,Learning Dis Commissioning,Social Care - Day Care,42382,3578949, 584.00 ,The Bromley by Bow Centre
Adults Services,Adult Social Care,Older People (Aged 65 or over) including Older Mental Ill,Learning Dis Commissioning,Social Care - Day Care,42382,3578953, 792.00 ,The Bromley by Bow Centre
Adults Services,Adult Social Care,Older People (Aged 65 or over) including Older Mental Ill,Learning Dis Commissioning,Social Care - Day Care,42382,3578954, 504.00 ,The Bromley by Bow Centre
Adults Services,Adult Social Care,Older People (Aged 65 or over) including Older Mental Ill,Learning Dis Commissioning,Social Care - Day Care,42382,3581949," 2,720.00 ",ST MARKS DAY SERVICE
Adults Services,Adult Social Care,Older People (Aged 65 or over) including Older Mental Ill,Learning Dis Commissioning,Social Care - Day Care,42382,3582071," 2,660.03 ",Tower Project
Adults Services,Adult Social Care,Older People (Aged 65 or over) including Older Mental Ill,Learning Dis Commissioning,Social Care - Day Care,42382,3582147, 694.68 ,APASENTH
Adults Services,Adult Social Care,Older People (Aged 65 or over) including Older Mental Ill,Learning Dis Commissioning,Social Care - Day Care,42382,3582148, 694.68 ,APASENTH
Adults Services,Adult Social Care,Older People (Aged 65 or over) including Older Mental Ill,Learning Dis Commissioning,Social Care - Day Care,42382,3582150," 1,916.57 ",APASENTH
Adults Services,Adult Social Care,Older People (Aged 65 or over) including Older Mental Ill,Learning Dis Commissioning,Social Care - Day Care,42382,3582151, 918.28 ,APASENTH
Adults Services,Adult Social Care,Older People (Aged 65 or over) including Older Mental Ill,Learning Dis Commissioning,Social Care - Day Care,42382,3582152, 661.60 ,APASENTH
Adults Services,Adult Social Care,Older People (Aged 65 or over) including Older Mental Ill,Learning Dis Commissioning,Social Care - Day Care,42382,3582153, 808.02 ,APASENTH
Adults Services,Adult Social Care,Older People (Aged 65 or over) including Older Mental Ill,Learning Dis Commissioning,Social Care - Day Care,42382,3582154, 595.44 ,APASENTH
Adults Services,Adult Social Care,Older People (Aged 65 or over) including Older Mental Ill,Learning Dis Commissioning,Social Care - Day Care,42382,3582156, 942.69 ,APASENTH
Adults Services,Adult Social Care,Older People (Aged 65 or over) including Older Mental Ill,Learning Dis Commissioning,Social Care - Day Care,42382,3582157, 661.60 ,APASENTH
Adults Services,Adult Social Care,Older People (Aged 65 or over) including Older Mental Ill,Learning Dis Commissioning,Social Care - Day Care,42382,3582158, 942.69 ,APASENTH
Adults Services,Adult Social Care,Older People (Aged 65 or over) including Older Mental Ill,Learning Dis Commissioning,Social Care - Day Care,42382,3582160, 942.69 ,APASENTH
Adults Services,Adult Social Care,Older People (Aged 65 or over) including Older Mental Ill,Learning Dis Commissioning,Social Care - Day Care,42382,3582161," 1,586.12 ",APASENTH
Adults Services,Adult Social Care,Older People (Aged 65 or over) including Older Mental Ill,Learning Dis Commissioning,Social Care - Day Care,42382,3582163, 595.44 ,APASENTH
Adults Services,Adult Social Care,Older People (Aged 65 or over) including Older Mental Ill,Learning Dis Commissioning,Social Care - Day Care,42382,3582169, 694.68 ,APASENTH
Adults Services,Adult Social Care,Older People (Aged 65 or over) including Older Mental Ill,Learning Dis Commissioning,Social Care - Day Care,42382,3582170, 595.44 ,APASENTH
Adults Services,Adult Social Care,Older People (Aged 65 or over) including Older Mental Ill,Learning Dis Commissioning,Social Care - Day Care,42382,3582172," 1,753.08 ",APASENTH
Adults Services,Adult Social Care,Older People (Aged 65 or over) including Older Mental Ill,Learning Dis Commissioning,Social Care - Day Care,42382,3582173," 1,276.59 ",APASENTH
Adults Services,Adult Social Care,Older People (Aged 65 or over) including Older Mental Ill,Learning Dis Commissioning,Social Care - Day Care,42382,3582174," 1,142.24 ",APASENTH
Adults Services,Adult Social Care,Older People (Aged 65 or over) including Older Mental Ill,Learning Dis Commissioning,Social Care - Day Care,42382,3582176, 694.68 ,APASENTH
Adults Services,Adult Social Care,Older People (Aged 65 or over) including Older Mental Ill,Learning Dis Commissioning,Social Care - Day Care,42382,3582180, 628.52 ,APASENTH
Adults Services,Adult Social Care,Older People (Aged 65 or over) including Older Mental Ill,Learning Dis Commissioning,Social Care - Day Care,42382,3582181, 595.44 ,APASENTH
Adults Services,Adult Social Care,Older People (Aged 65 or over) including Older Mental Ill,Learning Dis Commissioning,Social Care - Day Care,42382,3582183, 694.68 ,APASENTH
Adults Services,Adult Social Care,Older People (Aged 65 or over) including Older Mental Ill,Learning Dis Commissioning,Social Care - Day Care,42382,3582185, 942.69 ,APASENTH
Adults Services,Adult Social Care,Older People (Aged 65 or over) including Older Mental Ill,Learning Dis Commissioning,Social Care - Day Care,42382,3582187, 528.10 ,APASENTH
Adults Services,Adult Social Care,Older People (Aged 65 or over) including Older Mental Ill,Learning Dis Commissioning,Social Care - Day Care,42382,3582187, 656.86 ,APASENTH
Adults Services,Adult Social Care,Older People (Aged 65 or over) including Older Mental Ill,Learning Dis Commissioning,Social Care - Day Care,42382,3582188, 661.60 ,APASENTH
Adults Services,Adult Social Care,Older People (Aged 65 or over) including Older Mental Ill,Learning Dis Commissioning,Social Care - Day Care,42382,3582189, 661.60 ,APASENTH
Adults Services,Adult Social Care,Older People (Aged 65 or over) including Older Mental Ill,Learning Dis Commissioning,Social Care - Day Care,42382,3582190, 562.36 ,APASENTH
Adults Services,Adult Social Care,Older People (Aged 65 or over) including Older Mental Ill,Learning Dis Commissioning,Social Care - Day Care,42382,3582191, 897.80 ,APASENTH
Adults Services,Adult Social Care,Older People (Aged 65 or over) including Older Mental Ill,Learning Dis Commissioning,Social Care - Day Care,42382,3582192," 1,502.64 ",APASENTH
Adults Services,Adult Social Care,Older People (Aged 65 or over) including Older Mental Ill,Learning Dis Commissioning,Social Care - Day Care,42382,3582193, 583.57 ,APASENTH
Adults Services,Adult Social Care,Older People (Aged 65 or over) including Older Mental Ill,Learning Dis Commissioning,Social Care - Day Care,42382,3582194," 1,502.76 ",APASENTH
Adults Services,Adult Social Care,Older People (Aged 65 or over) including Older Mental Ill,Learning Dis Commissioning,Social Care - Day Care,42382,3582199," 1,272.57 ",APASENTH
Adults Services,Adult Social Care,Older People (Aged 65 or over) including Older Mental Ill,Learning Dis Commissioning,Social Care - Day Care,42382,3582202, 978.90 ,APASENTH
Adults Services,Adult Social Care,Older People (Aged 65 or over) including Older Mental Ill,Learning Dis Commissioning,Social Care - Day Care,42382,3582204," 1,984.71 ",Tower Project
Adults Services,Adult Social Care,Older People (Aged 65 or over) including Older Mental Ill,Learning Dis Commissioning,Social Care - Day Care,42382,3582205," 1,984.71 ",Tower Project
Adults Services,Adult Social Care,Older People (Aged 65 or over) including Older Mental Ill,Learning Dis Commissioning,Social Care - Day Care,42382,3582206," 1,984.71 ",Tower Project
Adults Services,Adult Social Care,Older People (Aged 65 or over) including Older Mental Ill,Learning Dis Commissioning,Social Care - Day Care,42382,3582207," 1,984.71 ",Tower Project
Adults Services,Adult Social Care,Older People (Aged 65 or over) including Older Mental Ill,Learning Dis Commissioning,Social Care - Day Care,42382,3582208," 1,400.28 ",Tower Project
Adults Services,Adult Social Care,Older People (Aged 65 or over) including Older Mental Ill,Learning Dis Commissioning,Social Care - Day Care,42382,3582209," 1,984.71 ",Tower Project
Adults Services,Adult Social Care,Older People (Aged 65 or over) including Older Mental Ill,Learning Dis Commissioning,Social Care - Day Care,42382,3582210," 1,400.28 ",Tower Project
Adults Services,Adult Social Care,Older People (Aged 65 or over) including Older Mental Ill,Learning Dis Commissioning,Social Care - Day Care,42382,3582211," 1,984.71 ",Tower Project
Adults Services,Adult Social Care,Older People (Aged 65 or over) including Older Mental Ill,Learning Dis Commissioning,Social Care - Day Care,42382,3582212," 1,400.28 ",Tower Project
Adults Services,Adult Social Care,Older People (Aged 65 or over) including Older Mental Ill,Learning Dis Commissioning,Social Care - Day Care,42382,3582213, 533.44 ,Tower Project
Adults Services,Adult Social Care,Older People (Aged 65 or over) including Older Mental Ill,Learning Dis Commissioning,Social Care - Day Care,42382,3582214, 866.84 ,Tower Project
Adults Services,Adult Social Care,Older People (Aged 65 or over) including Older Mental Ill,Learning Dis Commissioning,Social Care - Day Care,42382,3582215," 1,984.71 ",Tower Project
Adults Services,Adult Social Care,Older People (Aged 65 or over) including Older Mental Ill,Learning Dis Commissioning,Social Care - Day Care,42382,3582216," 1,984.71 ",Tower Project
Adults Services,Adult Social Care,Older People (Aged 65 or over) including Older Mental Ill,Learning Dis Commissioning,Social Care - Day Care,42382,3582217," 1,400.28 ",Tower Project
Adults Services,Adult Social Care,Older People (Aged 65 or over) including Older Mental Ill,Learning Dis Commissioning,Social Care - Day Care,42382,3582218," 1,984.71 ",Tower Project
Adults Services,Adult Social Care,Older People (Aged 65 or over) including Older Mental Ill,Learning Dis Commissioning,Social Care - Day Care,42382,3582219," 1,984.71 ",Tower Project
Adults Services,Adult Social Care,Older People (Aged 65 or over) including Older Mental Ill,Learning Dis Commissioning,Social Care - Day Care,42382,3582220," 1,400.28 ",Tower Project
Adults Services,Adult Social Care,Older People (Aged 65 or over) including Older Mental Ill,Learning Dis Commissioning,Social Care - Day Care,42382,3582221," 1,400.28 ",Tower Project
Adults Services,Adult Social Care,Older People (Aged 65 or over) including Older Mental Ill,Learning Dis Commissioning,Social Care - Day Care,42382,3582223," 1,984.71 ",Tower Project
Adults Services,Adult Social Care,Older People (Aged 65 or over) including Older Mental Ill,Learning Dis Commissioning,Social Care - Day Care,42382,3582224," 1,984.71 ",Tower Project
Adults Services,Adult Social Care,Older People (Aged 65 or over) including Older Mental Ill,Learning Dis Commissioning,Social Care - Day Care,42382,3582225," 1,984.71 ",Tower Project
Adults Services,Adult Social Care,Older People (Aged 65 or over) including Older Mental Ill,Learning Dis Commissioning,Social Care - Day Care,42382,3582226," 1,984.71 ",Tower Project
Adults Services,Adult Social Care,Older People (Aged 65 or over) including Older Mental Ill,Learning Dis Commissioning,Social Care - Day Care,42382,3582227," 1,984.71 ",Tower Project
Adults Services,Adult Social Care,Older People (Aged 65 or over) including Older Mental Ill,Learning Dis Commissioning,Social Care - Day Care,42382,3582229," 1,984.71 ",Tower Project
Adults Services,Adult Social Care,Older People (Aged 65 or over) including Older Mental Ill,Learning Dis Commissioning,Social Care - Day Care,42382,3582230," 2,289.21 ",Tower Project
Adults Services,Adult Social Care,Older People (Aged 65 or over) including Older Mental Ill,Learning Dis Commissioning,Social Care - Day Care,42382,3582231," 1,400.28 ",Tower Project
Adults Services,Adult Social Care,Older People (Aged 65 or over) including Older Mental Ill,Learning Dis Commissioning,Social Care - Day Care,42382,3582232," 1,133.56 ",Tower Project
Adults Services,Adult Social Care,Older People (Aged 65 or over) including Older Mental Ill,Learning Dis Commissioning,Social Care - Day Care,42382,3582233," 1,133.56 ",Tower Project
Adults Services,Adult Social Care,Older People (Aged 65 or over) including Older Mental Ill,Learning Dis Commissioning,Social Care - Day Care,42382,3582234," 1,984.71 ",Tower Project
Adults Services,Adult Social Care,Older People (Aged 65 or over) including Older Mental Ill,Learning Dis Commissioning,Social Care - Day Care,42382,3582235," 1,134.12 ",Tower Project
Adults Services,Adult Social Care,Older People (Aged 65 or over) including Older Mental Ill,Learning Dis Commissioning,Social Care - Day Care,42382,3582236," 1,984.71 ",Tower Project
Adults Services,Adult Social Care,Older People (Aged 65 or over) including Older Mental Ill,Learning Dis Commissioning,Social Care - Day Care,42382,3582239," 1,984.71 ",Tower Project
Adults Services,Adult Social Care,Older People (Aged 65 or over) including Older Mental Ill,Learning Dis Commissioning,Social Care - Day Care,42382,3582240," 1,400.28 ",Tower Project
Adults Services,Adult Social Care,Older People (Aged 65 or over) including Older Mental Ill,Learning Dis Commissioning,Social Care - Day Care,42382,3582241, 990.78 ,Tower Project
Adults Services,Adult Social Care,Older People (Aged 65 or over) including Older Mental Ill,Learning Dis Commissioning,Social Care - Day Care,42382,3582242," 1,984.71 ",Tower Project
Adults Services,Adult Social Care,Older People (Aged 65 or over) including Older Mental Ill,Learning Dis Commissioning,Social Care - Day Care,42382,3582243, 990.78 ,Tower Project
Adults Services,Adult Social Care,Older People (Aged 65 or over) including Older Mental Ill,Learning Dis Commissioning,Social Care - Day Care,42382,3582244," 1,984.71 ",Tower Project
Adults Services,Adult Social Care,Older People (Aged 65 or over) including Older Mental Ill,Learning Dis Commissioning,Social Care - Day Care,42382,3582245," 1,984.71 ",Tower Project
Adults Services,Adult Social Care,Older People (Aged 65 or over) including Older Mental Ill,Learning Dis Commissioning,Social Care - Homecare,42382,3582075," 1,724.45 ",Tower Project
Adults Services,Adult Social Care,Older People (Aged 65 or over) including Older Mental Ill,Learning Dis Commissioning,Social Care - Homecare,42382,3582076," 4,739.15 ",Tower Project
Adults Services,Adult Social Care,Older People (Aged 65 or over) including Older Mental Ill,Learning Dis Commissioning,Social Care - Homecare,42382,3582077," 1,648.40 ",Tower Project
Adults Services,Adult Social Care,Older People (Aged 65 or over) including Older Mental Ill,Learning Dis Commissioning,Social Care - Homecare,42382,3582078," 1,815.45 ",Tower Project
Adults Services,Adult Social Care,Older People (Aged 65 or over) including Older Mental Ill,Learning Dis Commissioning,Social Care - Homecare,42382,3582079," 4,636.19 ",Tower Project
Adults Services,Adult Social Care,Older People (Aged 65 or over) including Older Mental Ill,Learning Dis Commissioning,Social Care - Homecare,42382,3582080," 2,060.50 ",Tower Project
Adults Services,Adult Social Care,Older People (Aged 65 or over) including Older Mental Ill,Learning Dis Commissioning,Social Care - Homecare,42382,3582081," 5,070.36 ",Tower Project
Adults Services,Adult Social Care,Older People (Aged 65 or over) including Older Mental Ill,Learning Dis Commissioning,Social Care - Homecare,42382,3582082," 5,192.37 ",Tower Project
Adults Services,Adult Social Care,Older People (Aged 65 or over) including Older Mental Ill,Learning Dis Commissioning,Social Care - Homecare,42382,3582283," 2,362.95 ",APASENTH
Adults Services,Adult Social Care,Older People (Aged 65 or over) including Older Mental Ill,Learning Dis Commissioning,Social Care - Homecare,42382,3582284," 1,548.60 ",APASENTH
Adults Services,Adult Social Care,Older People (Aged 65 or over) including Older Mental Ill,Learning Dis Commissioning,Social Care - Homecare,42382,3582286," 1,415.10 ",APASENTH
Adults Services,Adult Social Care,Older People (Aged 65 or over) including Older Mental Ill,Learning Dis Commissioning,Social Care - Homecare,42382,3582287," 1,228.20 ",APASENTH
Adults Services,Adult Social Care,Older People (Aged 65 or over) including Older Mental Ill,Learning Dis Commissioning,Social Care - Homecare,42382,3582289," 1,188.15 ",APASENTH
Adults Services,Adult Social Care,Older People (Aged 65 or over) including Older Mental Ill,Learning Dis Commissioning,Social Care - Homecare,42382,3582291, 907.80 ,APASENTH
Adults Services,Adult Social Care,Older People (Aged 65 or over) including Older Mental Ill,Learning Dis Commissioning,Social Care - Homecare,42382,3582292, 881.10 ,APASENTH
Adults Services,Adult Social Care,Older People (Aged 65 or over) including Older Mental Ill,Learning Dis Commissioning,Social Care - Homecare,42382,3582293, 697.54 ,APASENTH
Adults Services,Adult Social Care,Older People (Aged 65 or over) including Older Mental Ill,Learning Dis Commissioning,Social Care - Homecare,42382,3582294, 667.50 ,APASENTH
Adults Services,Adult Social Care,Older People (Aged 65 or over) including Older Mental Ill,Learning Dis Commissioning,Social Care - Homecare,42382,3582295, 640.80 ,APASENTH
Adults Services,Adult Social Care,Older People (Aged 65 or over) including Older Mental Ill,Learning Dis Commissioning,Social Care - Homecare,42382,3582296, 627.45 ,APASENTH
Adults Services,Adult Social Care,Older People (Aged 65 or over) including Older Mental Ill,Learning Dis Commissioning,Social Care - Homecare,42382,3582297, 594.08 ,APASENTH
Adults Services,Adult Social Care,Older People (Aged 65 or over) including Older Mental Ill,Learning Dis Commissioning,Social Care - Homecare,42382,3582298, 547.35 ,APASENTH
Adults Services,Adult Social Care,Older People (Aged 65 or over) including Older Mental Ill,Learning Dis Commissioning,Social Care - Homecare,42382,3582299, 534.00 ,APASENTH
Adults Services,Adult Social Care,Older People (Aged 65 or over) including Older Mental Ill,Learning Dis Commissioning,Social Care - Homecare,42382,3582300, 534.00 ,APASENTH
Adults Services,Adult Social Care,Older People (Aged 65 or over) including Older Mental Ill,Physical Dis Commissioning,Social Care - Nursing Care,42382,3573824," 5,220.47 ",Samkar Ltd
Adults Services,Adult Social Care,Older People (Aged 65 or over) including Older Mental Ill,Physical Dis Commissioning,Social Care - Homecare,42382,3582088," 1,275.55 ",REDSPOT HOMECARE (CONTRACTS) LTD
Adults Services,Adult Social Care,Older People (Aged 65 or over) including Older Mental Ill,Physical Dis Commissioning,Social Care - Homecare,42382,3582247," 2,793.46 ",MiHOMECARE LIMITED
Adults Services,Adult Social Care,Older People (Aged 65 or over) including Older Mental Ill,Physical Dis Commissioning,Social Care - Homecare,42382,3582264, 657.78 ,MiHOMECARE LIMITED
Adults Services,Adult Social Care,Older People (Aged 65 or over) including Older Mental Ill,Physical Dis Commissioning,Social Care - Homecare,42382,3582301, 500.63 ,APASENTH
Adults Services,Adult Social Care,Older People (Aged 65 or over) including Older Mental Ill,Physical Dis Commissioning,Social Care - Homecare,42382,3582365, 584.67 ,SANCTUARY HOME CARE LIMITED
Adults Services,Adult Social Care,Older People (Aged 65 or over) including Older Mental Ill,Physical Dis Commissioning,Social Care - Homecare,42382,3582392, 642.26 ,Soma Healthcare Ltd
Adults Services,Adult Social Care,Older People (Aged 65 or over) including Older Mental Ill,Physical Dis Commissioning,Social Care - Prevention & Support,42382,3582281," 1,400.00 ",Plaza London Hotel
Adults Services,Adult Social Care,Older People (Aged 65 or over) including Older Mental Ill,Mental Health Commissioning,Social Care - Residential Care,42382,3582393," 3,321.43 ",Thanet Healthcare Ltd
Adults Services,Adult Social Care,Older People (Aged 65 or over) including Older Mental Ill,Mental Health Commissioning,Social Care - Day Care,42382,3582130, 727.88 ,St Hilda's East Community Centre
Adults Services,Adult Social Care,Older People (Aged 65 or over) including Older Mental Ill,Mental Health Commissioning,Social Care - Day Care,42382,3582134, 877.84 ,St Hilda's East Community Centre
Adults Services,Adult Social Care,Older People (Aged 65 or over) including Older Mental Ill,Mental Health Commissioning,Social Care - Day Care,42382,3582135, 668.07 ,St Hilda's East Community Centre
Adults Services,Adult Social Care,Older People (Aged 65 or over) including Older Mental Ill,Mental Health Commissioning,Social Care - Supported Accommodation,42382,3581952," 2,037.01 ",ANTRIM CARE SERVICES LIMITED
Adults Services,Adult Social Care,Older People (Aged 65 or over) including Older Mental Ill,Mental Health Commissioning,Social Care - Supported Accommodation,42382,3581955," 2,037.01 ",ANTRIM CARE SERVICES LIMITED
Adults Services,Adult Social Care,Adults Aged Under 65 with Mental Health Needs,MH Commissioner,Social Care - Prevention & Support - Block,42382,3571356," 1,875.00 ",Praxis Community Project
Adults Services,Adult Social Care,Adults Aged Under 65 with Mental Health Needs,MH Commissioner,Social Care - Prevention & Support - Block,42382,3581950," 17,680.00 ",Family Action
Adults Services,No Service Specified,No Division Specified,Community Equipment Store,Services - Professional Fees - Legal Fees/Expenses,42382,3580361," 37,331.00 ",Workspace Group PLC
Adults Services,No Service Specified,No Division Specified,Community Equipment Store,Third Party Payments - Payments to Schools,42382,3575875, 502.37 ,RNIB
Adults Services,Adult Social Care,Other Adult Services,Reablement,Office Furniture/Equipment,42382,3577232, 630.00 ,Unique Office Solutions
Adults Services,Public Health,Miscellaneous Public Health Services,Public Health - Director,Catering - Hospitality,42382,3577211, 618.75 ,Poplar HARCA LTD
Adults Services,Public Health,Children 519 Public Health Programmes,Public Health Team 1,Third Party Payments - Voluntary Associations,42382,3568412," 7,500.00 ",SOCIAL ACTION FOR HEALTH
Adults Services,Public Health,Children 519 Public Health Programmes,Public Health Team 1,Third Party Payments - Voluntary Associations,42382,3574099," 7,461.25 ",Toyhouse
Adults Services,Public Health,Children 519 Public Health Programmes,Public Health Team 1,Third Party Payments - Voluntary Associations,42382,3574100," 13,612.75 ",Toyhouse
Adults Services,Public Health,Children 519 Public Health Programmes,Public Health Team 1,Third Party Payments - Voluntary Associations,42382,3580992," 20,040.50 ",Sustrans
Adults Services,Adult Social Care,Older People (Aged 65 or over) including Older Mental Ill,Older People Nursing,Social Care - Residential Care,42383,3015824, 527.89 ,ASHBROOK NURSING HOME
Adults Services,Adult Social Care,Older People (Aged 65 or over) including Older Mental Ill,Older People Nursing,Social Care - Residential Care,42383,8093771,-527.89 ,ASHBROOK NURSING HOME
Adults Services,Adult Social Care,Older People (Aged 65 or over) including Older Mental Ill,Older People Commissioning,Social Care - Nursing Care,42383,3015824,"-2,666.01 ",ASHBROOK NURSING HOME
Adults Services,Adult Social Care,Older People (Aged 65 or over) including Older Mental Ill,Older People Commissioning,Social Care - Nursing Care,42383,8093771," 2,666.01 ",ASHBROOK NURSING HOME
Adults Services,Adult Social Care,Older People (Aged 65 or over) including Older Mental Ill,Strategic Commissioning,Social Care - MSG Prevention Health & Wellbeing,42384,3576506," 3,750.00 ",Deaf Plus London
Adults Services,Adult Social Care,Adults Aged Under 65 with Physical or Sensory Disabilities,PD Day Opportunities,Kitchen Supplies - Food and Beverages,42384,3580365, 725.52 ,Boulevard Events Ltd
Adults Services,Adult Social Care,Older People (Aged 65 or over) including Older Mental Ill,Mayfield House Day Centre,Computing - Purchase of Software,42384,3575801," 2,763.30 ",Agilisys Professional Services
Adults Services,Adult Social Care,Older People (Aged 65 or over) including Older Mental Ill,Fides Care,Services - Professional Fees - Design Fees,42384,3574557," 1,393.00 ",Praxis Community Project
Adults Services,Public Health,Children 519 Public Health Programmes,Public Health Team 1,Third Party Payments - Other Establishments,42384,3572672," 35,750.00 ",Barts Health NHS Trust
Adults Services,Public Health,Children 519 Public Health Programmes,Public Health Team 1,Third Party Payments - Other Establishments,42384,3572675,"-9,413.36 ",Barts Health NHS Trust
Adults Services,Public Health,Children 519 Public Health Programmes,Public Health Team 1,Third Party Payments - Other Establishments,42384,3572825,"-35,750.00 ",Barts Health NHS Trust
Adults Services,Public Health,Children 519 Public Health Programmes,Public Health Team 1,Third Party Payments - Other Establishments,42384,3572826,"-82,008.00 ",Barts Health NHS Trust
Adults Services,Public Health,Children 519 Public Health Programmes,Public Health Team 1,Third Party Payments - Other Establishments,42384,3577237," 107,449.00 ",Mytime Active
Adults Services,Public Health,Children 519 Public Health Programmes,Public Health Team 1,Third Party Payments - Other Establishments,42384,3581570," 263,486.50 ",COMPASS WELLBEING CIC
Adults Services,Public Health,Smoking and Tobacco,Public Health Team - 2,Third Party Payments - Other Establishments,42384,3475758, 553.82 ,St George's Healthcare NHS Trust
Adults Services,Public Health,Smoking and Tobacco,Public Health Team - 2,Third Party Payments - Other Establishments,42384,3493022, 641.26 ,St George's Healthcare NHS Trust
Adults Services,Public Health,Smoking and Tobacco,Public Health Team - 2,Third Party Payments - Other Establishments,42384,3503063, 670.42 ,St George's Healthcare NHS Trust
Adults Services,Public Health,Smoking and Tobacco,Public Health Team - 2,Third Party Payments - Other Establishments,42384,3516165, 553.83 ,St George's Healthcare NHS Trust
Adults Services,Public Health,Smoking and Tobacco,Public Health Team - 2,Third Party Payments - Other Establishments,42384,3542327," 249,995.00 ",Barts Health NHS Trust
Adults Services,Public Health,Smoking and Tobacco,Public Health Team - 2,Third Party Payments - Other Establishments,42384,3544295,"-3,812.57 ",Barts Health NHS Trust
Adults Services,Public Health,Smoking and Tobacco,Public Health Team - 2,Third Party Payments - Other Establishments,42384,3544296,"-1,595.91 ",Barts Health NHS Trust
Adults Services,Public Health,Smoking and Tobacco,Public Health Team - 2,Third Party Payments - Other Establishments,42384,3546025," 85,424.61 ",Chelsea and Westmeinster Hospital NHS Foundation Trust
Adults Services,Public Health,Smoking and Tobacco,Public Health Team - 2,Third Party Payments - Other Establishments,42384,3569860, 645.17 ,St George's Healthcare NHS Trust
Adults Services,Public Health,Smoking and Tobacco,Public Health Team - 2,Third Party Payments - Other Establishments,42384,3570247," 85,424.61 ",Chelsea and Westmeinster Hospital NHS Foundation Trust
Adults Services,Public Health,Smoking and Tobacco,Public Health Team - 2,Third Party Payments - Other Establishments,42384,3577515," 14,176.50 ",Homerton University Hospital Trust
Adults Services,Public Health,Smoking and Tobacco,Public Health Team - 2,Third Party Payments - Other Local Authorities,42384,3580405," 47,339.70 ",London Borough of Lambeth
Adults Services,Public Health,Smoking and Tobacco,Public Health Team - 2,Third Party Payments - Voluntary Associations,42384,3548591," 14,985.00 ",Positive East
Adults Services,Public Health,Smoking and Tobacco,Public Health Team - 2,Payments to Private Contractors - Other Contractors,42384,3582482, 994.31 ,Medichem (Bright Bridge Ltd)
Adults Services,Public Health,Smoking and Tobacco,Public Health Team - 2,Payments to Private Contractors - Other Contractors,42384,3582483, 758.64 ,Sai Chemist
Adults Services,No Service Specified,No Division Specified,Capital Works-Social Services,Building Works - Main Works,42384,3581653, 525.00 ,British Gas Business
Adults Services,No Service Specified,No Division Specified,Capital-Minor Works (SC),Other External Fees - Consultants Fees,42384,3580344," 3,080.00 ",Pollard Thomas & Edwards LTD
Adults Services,Adult Social Care,Older People (Aged 65 or over) including Older Mental Ill,Older People Commissioning,Social Care - Residential Care,42387,3578847,"-1,414.29 ",GATEWAY HOUSING ASSOCIATION
Adults Services,Adult Social Care,Older People (Aged 65 or over) including Older Mental Ill,Older People Commissioning,Social Care - Residential Care,42387,3578848,"-1,760.00 ",GATEWAY HOUSING ASSOCIATION
Adults Services,Adult Social Care,Older People (Aged 65 or over) including Older Mental Ill,Older People Commissioning,Social Care - Residential Care,42387,3578849," 2,750.00 ",GATEWAY HOUSING ASSOCIATION
Adults Services,Adult Social Care,Older People (Aged 65 or over) including Older Mental Ill,Older People Commissioning,Social Care - Residential Care,42387,3584733," 26,480.00 ",GATEWAY HOUSING ASSOCIATION
Adults Services,Adult Social Care,Older People (Aged 65 or over) including Older Mental Ill,Older People Commissioning,Social Care - Residential Care,42387,3584734," 10,135.72 ",GATEWAY HOUSING ASSOCIATION
Adults Services,Adult Social Care,Older People (Aged 65 or over) including Older Mental Ill,Older People Commissioning,Social Care - Residential Care,42387,3584736,"-11,157.15 ",GATEWAY HOUSING ASSOCIATION
Adults Services,Adult Social Care,Older People (Aged 65 or over) including Older Mental Ill,Older People Commissioning,Social Care - Residential Care,42387,3584737,-720.00 ,GATEWAY HOUSING ASSOCIATION
Adults Services,Adult Social Care,Older People (Aged 65 or over) including Older Mental Ill,Older People Commissioning,Social Care - Homecare,42387,3576501," 2,751.00 ",Supporting Care
Adults Services,Adult Social Care,Older People (Aged 65 or over) including Older Mental Ill,Older People Commissioning,Social Care - Homecare,42387,3576502," 2,751.00 ",Supporting Care
Adults Services,Adult Social Care,Older People (Aged 65 or over) including Older Mental Ill,Older People Commissioning,Social Care - Homecare,42387,3584710, 967.36 ,Carewatch Newham Ltd
Adults Services,Adult Social Care,Older People (Aged 65 or over) including Older Mental Ill,Older People Commissioning,Social Care - Homecare,42387,3584745, 894.20 ,REDSPOT HOMECARE (CONTRACTS) LTD
Adults Services,Adult Social Care,Older People (Aged 65 or over) including Older Mental Ill,Older People Commissioning,Social Care - Homecare,42387,3584746, 558.88 ,REDSPOT HOMECARE (CONTRACTS) LTD
Adults Services,Adult Social Care,Older People (Aged 65 or over) including Older Mental Ill,Older People Commissioning,Social Care - Homecare,42387,3584748, 736.40 ,REDSPOT HOMECARE (CONTRACTS) LTD
Adults Services,Adult Social Care,Older People (Aged 65 or over) including Older Mental Ill,Older People Commissioning,Social Care - Homecare,42387,3584756, 736.40 ,REDSPOT HOMECARE (CONTRACTS) LTD
Adults Services,Adult Social Care,Older People (Aged 65 or over) including Older Mental Ill,Older People Commissioning,Social Care - Homecare,42387,3584765, 644.35 ,REDSPOT HOMECARE (CONTRACTS) LTD
Adults Services,Adult Social Care,Older People (Aged 65 or over) including Older Mental Ill,Older People Commissioning,Social Care - Homecare,42387,3584768, 782.43 ,REDSPOT HOMECARE (CONTRACTS) LTD
Adults Services,Adult Social Care,Older People (Aged 65 or over) including Older Mental Ill,Older People Commissioning,Social Care - Homecare,42387,3584784, 730.52 ,MiHOMECARE LIMITED
Adults Services,Adult Social Care,Older People (Aged 65 or over) including Older Mental Ill,Older People Commissioning,Social Care - Homecare,42387,3584787, 517.64 ,MiHOMECARE LIMITED
Adults Services,Adult Social Care,Older People (Aged 65 or over) including Older Mental Ill,Older People Commissioning,Social Care - Homecare,42387,3584796," 1,038.90 ",MiHOMECARE LIMITED
Adults Services,Adult Social Care,Older People (Aged 65 or over) including Older Mental Ill,Older People Commissioning,Social Care - Homecare,42387,3584812, 561.70 ,MiHOMECARE LIMITED
Adults Services,Adult Social Care,Older People (Aged 65 or over) including Older Mental Ill,Older People Commissioning,Social Care - Homecare,42387,3584833, 886.94 ,MiHOMECARE LIMITED
Adults Services,Adult Social Care,Older People (Aged 65 or over) including Older Mental Ill,Older People Commissioning,Social Care - Homecare,42387,3584846, 554.32 ,MiHOMECARE LIMITED
Adults Services,Adult Social Care,Older People (Aged 65 or over) including Older Mental Ill,Older People Commissioning,Social Care - Homecare,42387,3584850, 672.56 ,MiHOMECARE LIMITED
Adults Services,Adult Social Care,Older People (Aged 65 or over) including Older Mental Ill,Older People Commissioning,Social Care - Homecare,42387,3584851," 1,068.09 ",MiHOMECARE LIMITED
Adults Services,Adult Social Care,Older People (Aged 65 or over) including Older Mental Ill,Older People Commissioning,Social Care - Homecare,42387,3584852," 1,130.67 ",MiHOMECARE LIMITED
Adults Services,Adult Social Care,Older People (Aged 65 or over) including Older Mental Ill,Older People Commissioning,Social Care - Homecare,42387,3584856," 3,547.20 ",MiHOMECARE LIMITED
Adults Services,Adult Social Care,Older People (Aged 65 or over) including Older Mental Ill,Older People Commissioning,Social Care - Homecare,42387,3584858," 1,019.82 ",MiHOMECARE LIMITED
Adults Services,Adult Social Care,Older People (Aged 65 or over) including Older Mental Ill,Older People Commissioning,Social Care - Homecare,42387,3584861, 509.93 ,MiHOMECARE LIMITED
Adults Services,Adult Social Care,Older People (Aged 65 or over) including Older Mental Ill,Older People Commissioning,Social Care - Homecare,42387,3584877, 509.98 ,MiHOMECARE LIMITED
Adults Services,Adult Social Care,Older People (Aged 65 or over) including Older Mental Ill,Older People Commissioning,Social Care - Homecare,42387,3584885, 554.31 ,MiHOMECARE LIMITED
Adults Services,Adult Social Care,Older People (Aged 65 or over) including Older Mental Ill,Older People Commissioning,Social Care - Homecare,42387,3584886, 576.42 ,MiHOMECARE LIMITED
Adults Services,Adult Social Care,Older People (Aged 65 or over) including Older Mental Ill,Older People Commissioning,Social Care - Homecare,42387,3584891, 702.25 ,MiHOMECARE LIMITED
Adults Services,Adult Social Care,Older People (Aged 65 or over) including Older Mental Ill,Older People Commissioning,Social Care - Homecare,42387,3584900," 2,429.70 ",APASENTH
Adults Services,Adult Social Care,Older People (Aged 65 or over) including Older Mental Ill,Older People Commissioning,Social Care - Homecare,42387,3584904," 1,241.85 ",APASENTH
Adults Services,Adult Social Care,Older People (Aged 65 or over) including Older Mental Ill,Older People Commissioning,Social Care - Homecare,42387,3584916, 557.36 ,APASENTH
Adults Services,Adult Social Care,Older People (Aged 65 or over) including Older Mental Ill,Older People Commissioning,Social Care - Homecare,42387,3584919, 527.33 ,APASENTH
Adults Services,Adult Social Care,Older People (Aged 65 or over) including Older Mental Ill,Older People Commissioning,Social Care - Homecare,42387,3584995," 1,108.72 ",SANCTUARY HOME CARE LIMITED
Adults Services,Adult Social Care,Older People (Aged 65 or over) including Older Mental Ill,Older People Commissioning,Social Care - Homecare,42387,3584996," 1,368.96 ",SANCTUARY HOME CARE LIMITED
Adults Services,Adult Social Care,Older People (Aged 65 or over) including Older Mental Ill,Older People Commissioning,Social Care - Homecare,42387,3585010, 598.94 ,SANCTUARY HOME CARE LIMITED
Adults Services,Adult Social Care,Older People (Aged 65 or over) including Older Mental Ill,Older People Commissioning,Social Care - Homecare,42387,3585025, 705.87 ,SANCTUARY HOME CARE LIMITED
Adults Services,Adult Social Care,Older People (Aged 65 or over) including Older Mental Ill,Older People Commissioning,Social Care - Homecare,42387,3585037," 1,057.31 ",SANCTUARY HOME CARE LIMITED
Adults Services,Adult Social Care,Older People (Aged 65 or over) including Older Mental Ill,Older People Commissioning,Social Care - Homecare,42387,3585045," 1,050.05 ",SANCTUARY HOME CARE LIMITED
Adults Services,Adult Social Care,Older People (Aged 65 or over) including Older Mental Ill,Older People Commissioning,Social Care - Homecare,42387,3585048, 604.19 ,SANCTUARY HOME CARE LIMITED
Adults Services,Adult Social Care,Older People (Aged 65 or over) including Older Mental Ill,Older People Commissioning,Social Care - Homecare,42387,3585056, 575.42 ,SANCTUARY HOME CARE LIMITED
Adults Services,Adult Social Care,Older People (Aged 65 or over) including Older Mental Ill,Older People Commissioning,Social Care - Homecare,42387,3585080, 661.59 ,SANCTUARY HOME CARE LIMITED
Adults Services,Adult Social Care,Older People (Aged 65 or over) including Older Mental Ill,Older People Commissioning,Social Care - Homecare,42387,3585082," 3,423.63 ",SANCTUARY HOME CARE LIMITED
Adults Services,Adult Social Care,Older People (Aged 65 or over) including Older Mental Ill,Older People Commissioning,Social Care - Homecare,42387,3585091, 614.89 ,SANCTUARY HOME CARE LIMITED
Adults Services,Adult Social Care,Older People (Aged 65 or over) including Older Mental Ill,Older People Commissioning,Social Care - Homecare,42387,3585097," 1,294.66 ",SANCTUARY HOME CARE LIMITED
Adults Services,Adult Social Care,Older People (Aged 65 or over) including Older Mental Ill,Older People Commissioning,Social Care - Homecare,42387,3585106, 525.07 ,SANCTUARY HOME CARE LIMITED
Adults Services,Adult Social Care,Older People (Aged 65 or over) including Older Mental Ill,Older People Commissioning,Social Care - Homecare,42387,3585107, 683.30 ,SANCTUARY HOME CARE LIMITED
Adults Services,Adult Social Care,Older People (Aged 65 or over) including Older Mental Ill,Older People Commissioning,Social Care - Homecare,42387,3585111," 1,409.73 ",SANCTUARY HOME CARE LIMITED
Adults Services,Adult Social Care,Older People (Aged 65 or over) including Older Mental Ill,Older People Commissioning,Social Care - Homecare,42387,3585115, 604.19 ,SANCTUARY HOME CARE LIMITED
Adults Services,Adult Social Care,Older People (Aged 65 or over) including Older Mental Ill,Older People Commissioning,Social Care - Homecare,42387,3585129, 632.96 ,SANCTUARY HOME CARE LIMITED
Adults Services,Adult Social Care,Older People (Aged 65 or over) including Older Mental Ill,Older People Commissioning,Social Care - Homecare,42387,3585135, 503.49 ,SANCTUARY HOME CARE LIMITED
Adults Services,Adult Social Care,Older People (Aged 65 or over) including Older Mental Ill,Older People Commissioning,Social Care - Homecare,42387,3585154, 719.25 ,SANCTUARY HOME CARE LIMITED
Adults Services,Adult Social Care,Older People (Aged 65 or over) including Older Mental Ill,Older People Commissioning,Social Care - Homecare,42387,3585158, 906.26 ,SANCTUARY HOME CARE LIMITED
Adults Services,Adult Social Care,Older People (Aged 65 or over) including Older Mental Ill,Older People Commissioning,Social Care - Homecare,42387,3585161, 515.83 ,SANCTUARY HOME CARE LIMITED
Adults Services,Adult Social Care,Older People (Aged 65 or over) including Older Mental Ill,Older People Commissioning,Social Care - Homecare,42387,3585175," 1,210.10 ",SANCTUARY HOME CARE LIMITED
Adults Services,Adult Social Care,Older People (Aged 65 or over) including Older Mental Ill,Older People Commissioning,Social Care - Homecare,42387,3585188," 1,399.05 ",SANCTUARY HOME CARE LIMITED
Adults Services,Adult Social Care,Older People (Aged 65 or over) including Older Mental Ill,Older People Commissioning,Social Care - Homecare,42387,3585195," 1,064.50 ",SANCTUARY HOME CARE LIMITED
Adults Services,Adult Social Care,Older People (Aged 65 or over) including Older Mental Ill,Older People Commissioning,Social Care - Homecare,42387,3585203, 906.26 ,SANCTUARY HOME CARE LIMITED
Adults Services,Adult Social Care,Older People (Aged 65 or over) including Older Mental Ill,Older People Commissioning,Social Care - Homecare,42387,3585225, 579.15 ,Soma Healthcare Ltd
Adults Services,Adult Social Care,Older People (Aged 65 or over) including Older Mental Ill,Older People Commissioning,Social Care - Homecare,42387,3585228, 549.45 ,Soma Healthcare Ltd
Adults Services,Adult Social Care,Older People (Aged 65 or over) including Older Mental Ill,Older People Commissioning,Social Care - Homecare,42387,3585232," 1,032.08 ",Soma Healthcare Ltd
Adults Services,Adult Social Care,Older People (Aged 65 or over) including Older Mental Ill,Older People Commissioning,Social Care - Homecare,42387,3585233, 534.60 ,Soma Healthcare Ltd
Adults Services,Adult Social Care,Older People (Aged 65 or over) including Older Mental Ill,Older People Commissioning,Social Care - Homecare,42387,3585237, 631.13 ,Soma Healthcare Ltd
Adults Services,Adult Social Care,Older People (Aged 65 or over) including Older Mental Ill,Older People Commissioning,Social Care - Homecare,42387,3585241," 1,414.46 ",Soma Healthcare Ltd
Adults Services,Adult Social Care,Older People (Aged 65 or over) including Older Mental Ill,Older People Commissioning,Social Care - Homecare,42387,3585244, 564.30 ,Soma Healthcare Ltd
Adults Services,Adult Social Care,Older People (Aged 65 or over) including Older Mental Ill,Older People Commissioning,Social Care - Homecare,42387,3585253, 564.30 ,Soma Healthcare Ltd
Adults Services,Adult Social Care,Older People (Aged 65 or over) including Older Mental Ill,Older People Commissioning,Social Care - Homecare,42387,3585254," 1,039.50 ",Soma Healthcare Ltd
Adults Services,Adult Social Care,Older People (Aged 65 or over) including Older Mental Ill,Older People Commissioning,Social Care - Homecare,42387,3585255, 534.60 ,Soma Healthcare Ltd
Adults Services,Adult Social Care,Older People (Aged 65 or over) including Older Mental Ill,Older People Commissioning,Social Care - Homecare,42387,3585257, 623.70 ,Soma Healthcare Ltd
Adults Services,Adult Social Care,Older People (Aged 65 or over) including Older Mental Ill,Older People Commissioning,Social Care - Homecare,42387,3585258," 1,885.95 ",Soma Healthcare Ltd
Adults Services,Adult Social Care,Older People (Aged 65 or over) including Older Mental Ill,Older People Commissioning,Social Care - Homecare,42387,3585266," 1,039.50 ",Soma Healthcare Ltd
Adults Services,Adult Social Care,Older People (Aged 65 or over) including Older Mental Ill,Older People Commissioning,Social Care - Homecare,42387,3585285, 579.15 ,Soma Healthcare Ltd
Adults Services,Adult Social Care,Older People (Aged 65 or over) including Older Mental Ill,Older People Commissioning,Social Care - Homecare,42387,3585286," 1,124.89 ",Soma Healthcare Ltd
Adults Services,Adult Social Care,Older People (Aged 65 or over) including Older Mental Ill,Older People Commissioning,Social Care - Homecare,42387,3585287, 935.55 ,Soma Healthcare Ltd
Adults Services,Adult Social Care,Older People (Aged 65 or over) including Older Mental Ill,Older People Commissioning,Social Care - Homecare,42387,3585297, 601.43 ,Soma Healthcare Ltd
Adults Services,Adult Social Care,Older People (Aged 65 or over) including Older Mental Ill,Older People Commissioning,Social Care - Homecare,42387,3585318, 534.60 ,Soma Healthcare Ltd
Adults Services,Adult Social Care,Older People (Aged 65 or over) including Older Mental Ill,Older People Commissioning,Social Care - Homecare,42387,3585319, 527.18 ,Soma Healthcare Ltd
Adults Services,Adult Social Care,Older People (Aged 65 or over) including Older Mental Ill,Older People Commissioning,Social Care - Homecare,42387,3585321," 1,811.70 ",Soma Healthcare Ltd
Adults Services,Adult Social Care,Older People (Aged 65 or over) including Older Mental Ill,Learning Dis Commissioning,Social Care - Residential Care,42387,3576517," 9,100.48 ",ROSELOCK LTD
Adults Services,Adult Social Care,Older People (Aged 65 or over) including Older Mental Ill,Learning Dis Commissioning,Social Care - Residential Care,42387,3584692," 6,642.99 ",INDEPENDENCE HOMES LTD
Adults Services,Adult Social Care,Older People (Aged 65 or over) including Older Mental Ill,Learning Dis Commissioning,Social Care - Residential Care,42387,3584744," 6,720.80 ",OVERLEY HALL SCHOOL LTD
Adults Services,Adult Social Care,Older People (Aged 65 or over) including Older Mental Ill,Learning Dis Commissioning,Social Care - Residential Care,42387,3584899," 1,055.37 ",GRACE EYRE FOUNDATION
Adults Services,Adult Social Care,Older People (Aged 65 or over) including Older Mental Ill,Learning Dis Commissioning,Social Care - Residential Care,42387,3584989," 6,600.00 ",FAIRKYTES
Adults Services,Adult Social Care,Older People (Aged 65 or over) including Older Mental Ill,Learning Dis Commissioning,Social Care - Residential Care,42387,3584990," 5,360.00 ",ROSELOCK LTD
Adults Services,Adult Social Care,Older People (Aged 65 or over) including Older Mental Ill,Learning Dis Commissioning,Social Care - Day Care,42387,3584691," 1,304.00 ",SOUTHBANK MOSAICS CIC
Adults Services,Adult Social Care,Older People (Aged 65 or over) including Older Mental Ill,Learning Dis Commissioning,Social Care - Day Care,42387,3584741," 1,429.74 ",Tower Project
Adults Services,Adult Social Care,Older People (Aged 65 or over) including Older Mental Ill,Learning Dis Commissioning,Social Care - Day Care,42387,3584742," 1,630.72 ",Tower Project
Adults Services,Adult Social Care,Older People (Aged 65 or over) including Older Mental Ill,Learning Dis Commissioning,Social Care - Day Care,42387,3584743," 1,915.20 ",Tower Project
Adults Services,Adult Social Care,Older People (Aged 65 or over) including Older Mental Ill,Learning Dis Commissioning,Social Care - Day Care,42387,3584897," 1,166.34 ",GRACE EYRE FOUNDATION
Adults Services,Adult Social Care,Older People (Aged 65 or over) including Older Mental Ill,Learning Dis Commissioning,Social Care - Homecare,42387,3584782, 737.36 ,MiHOMECARE LIMITED
Adults Services,Adult Social Care,Older People (Aged 65 or over) including Older Mental Ill,Learning Dis Commissioning,Social Care - Homecare,42387,3584783, 737.36 ,MiHOMECARE LIMITED
Adults Services,Adult Social Care,Older People (Aged 65 or over) including Older Mental Ill,Learning Dis Commissioning,Social Care - Homecare,42387,3584785, 737.36 ,MiHOMECARE LIMITED
Adults Services,Adult Social Care,Older People (Aged 65 or over) including Older Mental Ill,Learning Dis Commissioning,Social Care - Homecare,42387,3584792, 737.36 ,MiHOMECARE LIMITED
Adults Services,Adult Social Care,Older People (Aged 65 or over) including Older Mental Ill,Learning Dis Commissioning,Social Care - Homecare,42387,3584797, 768.56 ,MiHOMECARE LIMITED
Adults Services,Adult Social Care,Older People (Aged 65 or over) including Older Mental Ill,Learning Dis Commissioning,Social Care - Homecare,42387,3584801, 768.56 ,MiHOMECARE LIMITED
Adults Services,Adult Social Care,Older People (Aged 65 or over) including Older Mental Ill,Learning Dis Commissioning,Social Care - Homecare,42387,3584841, 561.64 ,MiHOMECARE LIMITED
Adults Services,Adult Social Care,Older People (Aged 65 or over) including Older Mental Ill,Learning Dis Commissioning,Social Care - Homecare,42387,3584874, 768.56 ,MiHOMECARE LIMITED
Adults Services,Adult Social Care,Older People (Aged 65 or over) including Older Mental Ill,Learning Dis Commissioning,Social Care - Homecare,42387,3584901," 2,362.95 ",APASENTH
Adults Services,Adult Social Care,Older People (Aged 65 or over) including Older Mental Ill,Learning Dis Commissioning,Social Care - Homecare,42387,3584902," 1,548.60 ",APASENTH
Adults Services,Adult Social Care,Older People (Aged 65 or over) including Older Mental Ill,Learning Dis Commissioning,Social Care - Homecare,42387,3584903," 1,415.10 ",APASENTH
Adults Services,Adult Social Care,Older People (Aged 65 or over) including Older Mental Ill,Learning Dis Commissioning,Social Care - Homecare,42387,3584905," 1,188.15 ",APASENTH
Adults Services,Adult Social Care,Older People (Aged 65 or over) including Older Mental Ill,Learning Dis Commissioning,Social Care - Homecare,42387,3584906, 987.90 ,APASENTH
Adults Services,Adult Social Care,Older People (Aged 65 or over) including Older Mental Ill,Learning Dis Commissioning,Social Care - Homecare,42387,3584907, 907.80 ,APASENTH
Adults Services,Adult Social Care,Older People (Aged 65 or over) including Older Mental Ill,Learning Dis Commissioning,Social Care - Homecare,42387,3584908, 881.10 ,APASENTH
Adults Services,Adult Social Care,Older People (Aged 65 or over) including Older Mental Ill,Learning Dis Commissioning,Social Care - Homecare,42387,3584909, 714.23 ,APASENTH
Adults Services,Adult Social Care,Older People (Aged 65 or over) including Older Mental Ill,Learning Dis Commissioning,Social Care - Homecare,42387,3584910, 707.55 ,APASENTH
Adults Services,Adult Social Care,Older People (Aged 65 or over) including Older Mental Ill,Learning Dis Commissioning,Social Care - Homecare,42387,3584911, 640.80 ,APASENTH
Adults Services,Adult Social Care,Older People (Aged 65 or over) including Older Mental Ill,Learning Dis Commissioning,Social Care - Homecare,42387,3584912, 620.78 ,APASENTH
Adults Services,Adult Social Care,Older People (Aged 65 or over) including Older Mental Ill,Learning Dis Commissioning,Social Care - Homecare,42387,3584913, 610.76 ,APASENTH
Adults Services,Adult Social Care,Older People (Aged 65 or over) including Older Mental Ill,Learning Dis Commissioning,Social Care - Homecare,42387,3584914, 567.38 ,APASENTH
Adults Services,Adult Social Care,Older People (Aged 65 or over) including Older Mental Ill,Learning Dis Commissioning,Social Care - Homecare,42387,3584915, 560.70 ,APASENTH
Adults Services,Adult Social Care,Older People (Aged 65 or over) including Older Mental Ill,Learning Dis Commissioning,Social Care - Homecare,42387,3584917, 534.00 ,APASENTH
Adults Services,Adult Social Care,Older People (Aged 65 or over) including Older Mental Ill,Learning Dis Commissioning,Social Care - Homecare,42387,3584918, 534.00 ,APASENTH
Adults Services,Adult Social Care,Older People (Aged 65 or over) including Older Mental Ill,Learning Dis Commissioning,Social Care - Homecare,42387,3585176, 561.02 ,SANCTUARY HOME CARE LIMITED
Adults Services,Adult Social Care,Older People (Aged 65 or over) including Older Mental Ill,Learning Dis Commissioning,Social Care - Homecare,42387,3585264, 608.85 ,Soma Healthcare Ltd
Adults Services,Adult Social Care,Older People (Aged 65 or over) including Older Mental Ill,Learning Dis Commissioning,Client Contributions for Social Care - Residential Care,42387,3576517,-956.27 ,ROSELOCK LTD
Adults Services,Adult Social Care,Older People (Aged 65 or over) including Older Mental Ill,Physical Dis Commissioning,Social Care - Homecare,42387,3584701, 673.58 ,Carewatch Newham Ltd
Adults Services,Adult Social Care,Older People (Aged 65 or over) including Older Mental Ill,Physical Dis Commissioning,Social Care - Homecare,42387,3584749, 737.24 ,REDSPOT HOMECARE (CONTRACTS) LTD
Adults Services,Adult Social Care,Older People (Aged 65 or over) including Older Mental Ill,Physical Dis Commissioning,Social Care - Homecare,42387,3584759, 644.35 ,REDSPOT HOMECARE (CONTRACTS) LTD
Adults Services,Adult Social Care,Older People (Aged 65 or over) including Older Mental Ill,Physical Dis Commissioning,Social Care - Homecare,42387,3584788, 538.92 ,MiHOMECARE LIMITED
Adults Services,Adult Social Care,Older People (Aged 65 or over) including Older Mental Ill,Physical Dis Commissioning,Social Care - Homecare,42387,3584790, 538.92 ,MiHOMECARE LIMITED
Adults Services,Adult Social Care,Older People (Aged 65 or over) including Older Mental Ill,Physical Dis Commissioning,Social Care - Homecare,42387,3584793, 538.92 ,MiHOMECARE LIMITED
Adults Services,Adult Social Care,Older People (Aged 65 or over) including Older Mental Ill,Physical Dis Commissioning,Social Care - Homecare,42387,3584814, 561.72 ,MiHOMECARE LIMITED
Adults Services,Adult Social Care,Older People (Aged 65 or over) including Older Mental Ill,Physical Dis Commissioning,Social Care - Homecare,42387,3584864," 5,340.79 ",MiHOMECARE LIMITED
Adults Services,Adult Social Care,Older People (Aged 65 or over) including Older Mental Ill,Physical Dis Commissioning,Social Care - Homecare,42387,3584888, 561.72 ,MiHOMECARE LIMITED
Adults Services,Adult Social Care,Older People (Aged 65 or over) including Older Mental Ill,Physical Dis Commissioning,Social Care - Homecare,42387,3584920, 500.63 ,APASENTH
Adults Services,Adult Social Care,Older People (Aged 65 or over) including Older Mental Ill,Physical Dis Commissioning,Social Care - Homecare,42387,3585009, 527.62 ,SANCTUARY HOME CARE LIMITED
Adults Services,Adult Social Care,Older People (Aged 65 or over) including Older Mental Ill,Physical Dis Commissioning,Social Care - Homecare,42387,3585061," 1,193.96 ",SANCTUARY HOME CARE LIMITED
Adults Services,Adult Social Care,Older People (Aged 65 or over) including Older Mental Ill,Physical Dis Commissioning,Social Care - Homecare,42387,3585074, 733.64 ,SANCTUARY HOME CARE LIMITED
Adults Services,Adult Social Care,Older People (Aged 65 or over) including Older Mental Ill,Physical Dis Commissioning,Social Care - Homecare,42387,3585127, 546.64 ,SANCTUARY HOME CARE LIMITED
Adults Services,Adult Social Care,Older People (Aged 65 or over) including Older Mental Ill,Physical Dis Commissioning,Social Care - Homecare,42387,3585169," 1,611.12 ",SANCTUARY HOME CARE LIMITED
Adults Services,Adult Social Care,Older People (Aged 65 or over) including Older Mental Ill,Physical Dis Commissioning,Social Care - Homecare,42387,3585207, 546.65 ,SANCTUARY HOME CARE LIMITED
Adults Services,Adult Social Care,Older People (Aged 65 or over) including Older Mental Ill,Physical Dis Commissioning,Social Care - Homecare,42387,3585212, 551.38 ,SANCTUARY HOME CARE LIMITED
Adults Services,Adult Social Care,Older People (Aged 65 or over) including Older Mental Ill,Physical Dis Commissioning,Social Care - Homecare,42387,3585245, 697.95 ,Soma Healthcare Ltd
Adults Services,Adult Social Care,Older People (Aged 65 or over) including Older Mental Ill,Physical Dis Commissioning,Social Care - Homecare,42387,3585262, 809.33 ,Soma Healthcare Ltd
Adults Services,Adult Social Care,Older People (Aged 65 or over) including Older Mental Ill,Physical Dis Commissioning,Social Care - Homecare,42387,3585263," 1,421.33 ",Soma Healthcare Ltd
Adults Services,Adult Social Care,Older People (Aged 65 or over) including Older Mental Ill,Physical Dis Commissioning,Social Care - Homecare,42387,3585281, 742.50 ,Soma Healthcare Ltd
Adults Services,Public Health,Children 519 Public Health Programmes,Public Health Team 1,Payments to Private Contractors - Other Contractors,42387,3574096," 3,286.64 ",Rice Retail Marketing Ltd
Adults Services,Coburn S.E.C.,Coburn S.E.C.,General,General,42389,Payment Card, 821.42 ,cult furniture ltd
Adults Services,General Fund/Council Fund,Homelessness,Supporting People Services,SP - Block-Gross - Domestic Violence,42389,3586712," 25,722.58 ",HESTIA HOUSING & SUPPORT
Adults Services,General Fund/Council Fund,Homelessness,Supporting People Services,SP - Block-Gross - Generic,42389,3586716," 58,006.92 ",Look Ahead Care & Support Ltd
Adults Services,General Fund/Council Fund,Homelessness,Supporting People Services,SP - Block-Gross - Learning Disabilities,42389,3586711," 40,768.62 ",Outward Housing
Adults Services,General Fund/Council Fund,Homelessness,Supporting People Services,SP - Block-Gross - Learning Disabilities,42389,3586716," 50,388.14 ",Look Ahead Care & Support Ltd
Adults Services,General Fund/Council Fund,Homelessness,Supporting People Services,SP - Block-Gross - Mental Health,42389,3586710," 6,651.25 ",Providence Row Housing Association
Adults Services,General Fund/Council Fund,Homelessness,Supporting People Services,SP - Block-Gross - Mental Health,42389,3586712," 57,064.19 ",HESTIA HOUSING & SUPPORT
Adults Services,General Fund/Council Fund,Homelessness,Supporting People Services,SP - Block-Gross - Mental Health,42389,3586716," 207,367.27 ",Look Ahead Care & Support Ltd
Adults Services,General Fund/Council Fund,Homelessness,Supporting People Services,SP - Block-Gross - Old People-Supp Needs,42389,3552916,"-4,680.00 ",London Borough Of Newham
Adults Services,General Fund/Council Fund,Homelessness,Supporting People Services,SP - Block-Gross - Old People-Supp Needs,42389,3586715, 606.67 ,CIRCLE SUPPORT CONSORTIUM
Adults Services,General Fund/Council Fund,Homelessness,Supporting People Services,SP - Block-Gross - Others,42389,3586708," 12,522.92 ",THE EX-SERVICE FELLOWSHIP CENTRES
Adults Services,General Fund/Council Fund,Homelessness,Supporting People Services,SP - Block-Gross - Single Homeless,42389,3586709," 75,781.05 ",Salvation Army
Adults Services,General Fund/Council Fund,Homelessness,Supporting People Services,SP - Block-Gross - Single Homeless,42389,3586710," 147,492.66 ",Providence Row Housing Association
Adults Services,General Fund/Council Fund,Homelessness,Supporting People Services,SP - Block-Gross - Single Homeless,42389,3586716," 143,530.83 ",Look Ahead Care & Support Ltd
Adults Services,General Fund/Council Fund,Homelessness,Supporting People Services,SP - Block-Gross - Y People Risk/Care Lev,42389,3586713," 46,283.17 ",Kipper Project
Adults Services,General Fund/Council Fund,Homelessness,Supporting People Services,SP - Block-Gross - Y People Risk/Care Lev,42389,3586716," 62,943.49 ",Look Ahead Care & Support Ltd
Adults Services,General Fund/Council Fund,Homelessness,Supporting People Services,SP - Block Subsidy - Old People-Supp Needs,42389,3586693, 535.78 ,GATEWAY HOUSING ASSOCIATION
Adults Services,General Fund/Council Fund,Homelessness,Supporting People Services,SP - Block Subsidy - Old People-Supp Needs,42389,3586705, 681.48 ,One Housing Group
Adults Services,General Fund/Council Fund,Homelessness,Supporting People Services,SP - Block Subsidy - Old People-Supp Needs,42389,3586707, 510.86 ,GATEWAY HOUSING ASSOCIATION
Adults Services,Adult Social Care,Older People (Aged 65 or over) including Older Mental Ill,Older People Commissioning,Social Care - Nursing Care,42389,3585979,"-12,573.24 ",Loughton Care Centre
Adults Services,Adult Social Care,Older People (Aged 65 or over) including Older Mental Ill,Older People Commissioning,Social Care - Nursing Care,42389,3585980," 22,526.71 ",Loughton Care Centre
Adults Services,Adult Social Care,Older People (Aged 65 or over) including Older Mental Ill,Older People Commissioning,Social Care - Nursing Care,42389,3586092," 2,089.18 ",LIFE STYLE CARE (2011) PLC
Adults Services,Adult Social Care,Older People (Aged 65 or over) including Older Mental Ill,Older People Commissioning,Social Care - Nursing Care,42389,3586095," 2,578.54 ",LIFE STYLE CARE (2011) PLC
Adults Services,Adult Social Care,Older People (Aged 65 or over) including Older Mental Ill,Older People Commissioning,Social Care - Nursing Care,42389,3587594," 1,378.64 ",JEWISH CARE
Adults Services,Adult Social Care,Older People (Aged 65 or over) including Older Mental Ill,Older People Commissioning,Social Care - Nursing Care,42389,3587595," 2,337.66 ",JEWISH CARE
Adults Services,Adult Social Care,Older People (Aged 65 or over) including Older Mental Ill,Older People Commissioning,Social Care - Nursing Care,42389,3587708," 4,596.86 ",Heathlands Care Home
Adults Services,Adult Social Care,Older People (Aged 65 or over) including Older Mental Ill,Older People Commissioning,Social Care - Nursing Care,42389,3587709," 3,711.14 ",Heathlands Care Home
Adults Services,Adult Social Care,Older People (Aged 65 or over) including Older Mental Ill,Older People Commissioning,Social Care - Nursing Care,42389,3587710," 4,448.57 ",Heathlands Care Home
Adults Services,Adult Social Care,Older People (Aged 65 or over) including Older Mental Ill,Older People Commissioning,Social Care - Nursing Care,42389,3587711," 3,591.43 ",Heathlands Care Home
Adults Services,Adult Social Care,Older People (Aged 65 or over) including Older Mental Ill,Older People Commissioning,Social Care - Nursing Care,42389,3587712," 4,596.86 ",Heathlands Care Home
Adults Services,Adult Social Care,Older People (Aged 65 or over) including Older Mental Ill,Older People Commissioning,Social Care - Nursing Care,42389,3587713," 3,711.14 ",Heathlands Care Home
Adults Services,Adult Social Care,Older People (Aged 65 or over) including Older Mental Ill,Older People Commissioning,Social Care - Residential Care,42389,3585981,-593.16 ,MILLARD HOUSE RESIDENTAIL CARE HOME
Adults Services,Adult Social Care,Older People (Aged 65 or over) including Older Mental Ill,Older People Commissioning,Social Care - Residential Care,42389,3585981," 2,160.39 ",MILLARD HOUSE RESIDENTAIL CARE HOME
Adults Services,Adult Social Care,Older People (Aged 65 or over) including Older Mental Ill,Older People Commissioning,Social Care - Residential Care,42389,3587593," 2,332.24 ",JEWISH CARE
Adults Services,Adult Social Care,Older People (Aged 65 or over) including Older Mental Ill,Older People Commissioning,Social Care - Residential Care,42389,3587632," 2,900.71 ",Leona Enterprises Ltd
Adults Services,Adult Social Care,Older People (Aged 65 or over) including Older Mental Ill,Older People Commissioning,Social Care - Day Care,42389,3546688, 621.00 ,London Borough Of Newham
Adults Services,Adult Social Care,Older People (Aged 65 or over) including Older Mental Ill,Older People Commissioning,Social Care - Homecare,42389,3585982," 1,912.68 ",FOCUS CARE LINK LTD
Adults Services,Adult Social Care,Older People (Aged 65 or over) including Older Mental Ill,Older People Commissioning,Social Care - Homecare,42389,3585985," 2,043.09 ",FOCUS CARE LINK LTD
Adults Services,Adult Social Care,Older People (Aged 65 or over) including Older Mental Ill,Older People Commissioning,Social Care - Homecare,42389,3585986," 1,117.88 ",Carewatch Newham Ltd
Adults Services,Adult Social Care,Older People (Aged 65 or over) including Older Mental Ill,Older People Commissioning,Social Care - Homecare,42389,3585998, 902.86 ,Carewatch Newham Ltd
Adults Services,Adult Social Care,Older People (Aged 65 or over) including Older Mental Ill,Older People Commissioning,Social Care - Homecare,42389,3586003, 594.78 ,Carewatch Newham Ltd
Adults Services,Adult Social Care,Older People (Aged 65 or over) including Older Mental Ill,Older People Commissioning,Social Care - Homecare,42389,3586012," 1,003.10 ",Carewatch Newham Ltd
Adults Services,Adult Social Care,Older People (Aged 65 or over) including Older Mental Ill,Older People Commissioning,Social Care - Homecare,42389,3586016, 601.86 ,Carewatch Newham Ltd
Adults Services,Adult Social Care,Older People (Aged 65 or over) including Older Mental Ill,Older People Commissioning,Social Care - Homecare,42389,3586020, 559.08 ,Carewatch Newham Ltd
Adults Services,Adult Social Care,Older People (Aged 65 or over) including Older Mental Ill,Older People Commissioning,Social Care - Homecare,42389,3586033, 967.36 ,Carewatch Newham Ltd
Adults Services,Adult Social Care,Older People (Aged 65 or over) including Older Mental Ill,Older People Commissioning,Social Care - Homecare,42389,3586042, 541.88 ,Mantra Recruitment
Adults Services,Adult Social Care,Older People (Aged 65 or over) including Older Mental Ill,Older People Commissioning,Social Care - Homecare,42389,3587297, 608.30 ,DAVID HOWARD LTD CLIENT ACCOUNT
Adults Services,Adult Social Care,Older People (Aged 65 or over) including Older Mental Ill,Older People Commissioning,Social Care - Homecare,42389,3587307, 687.18 ,DAVID HOWARD LTD CLIENT ACCOUNT
Adults Services,Adult Social Care,Older People (Aged 65 or over) including Older Mental Ill,Older People Commissioning,Social Care - Homecare,42389,3587308," 1,920.13 ",D D PAYROLL SERVICES
Adults Services,Adult Social Care,Older People (Aged 65 or over) including Older Mental Ill,Older People Commissioning,Social Care - Homecare,42389,3587325, 594.50 ,SEVACARE UK LTD
Adults Services,Adult Social Care,Older People (Aged 65 or over) including Older Mental Ill,Older People Commissioning,Social Care - Homecare,42389,3587336," 1,116.50 ",SEVACARE UK LTD
Adults Services,Adult Social Care,Older People (Aged 65 or over) including Older Mental Ill,Older People Commissioning,Social Care - Homecare,42389,3587339," 1,116.50 ",SEVACARE UK LTD
Adults Services,Adult Social Care,Older People (Aged 65 or over) including Older Mental Ill,Older People Commissioning,Social Care - Homecare,42389,3587344," 1,138.25 ",SEVACARE UK LTD
Adults Services,Adult Social Care,Older People (Aged 65 or over) including Older Mental Ill,Older People Commissioning,Social Care - Homecare,42389,3587353, 659.75 ,SEVACARE UK LTD
Adults Services,Adult Social Care,Older People (Aged 65 or over) including Older Mental Ill,Older People Commissioning,Social Care - Homecare,42389,3587357, 768.50 ,SEVACARE UK LTD
Adults Services,Adult Social Care,Older People (Aged 65 or over) including Older Mental Ill,Older People Commissioning,Social Care - Homecare,42389,3587358," 1,080.25 ",SEVACARE UK LTD
Adults Services,Adult Social Care,Older People (Aged 65 or over) including Older Mental Ill,Older People Commissioning,Social Care - Homecare,42389,3587369, 780.60 ,SEVACARE UK LTD
Adults Services,Adult Social Care,Older People (Aged 65 or over) including Older Mental Ill,Older People Commissioning,Social Care - Homecare,42389,3587375," 1,015.00 ",SEVACARE UK LTD
Adults Services,Adult Social Care,Older People (Aged 65 or over) including Older Mental Ill,Older People Commissioning,Social Care - Homecare,42389,3587382, 565.50 ,SEVACARE UK LTD
Adults Services,Adult Social Care,Older People (Aged 65 or over) including Older Mental Ill,Older People Commissioning,Social Care - Homecare,42389,3587391, 507.50 ,SEVACARE UK LTD
Adults Services,Adult Social Care,Older People (Aged 65 or over) including Older Mental Ill,Older People Commissioning,Social Care - Homecare,42389,3587401, 710.50 ,SEVACARE UK LTD
Adults Services,Adult Social Care,Older People (Aged 65 or over) including Older Mental Ill,Older People Commissioning,Social Care - Homecare,42389,3587413, 522.00 ,SEVACARE UK LTD
Adults Services,Adult Social Care,Older People (Aged 65 or over) including Older Mental Ill,Older People Commissioning,Social Care - Homecare,42389,3587421," 1,624.00 ",SEVACARE UK LTD
Adults Services,Adult Social Care,Older People (Aged 65 or over) including Older Mental Ill,Older People Commissioning,Social Care - Homecare,42389,3587429, 565.50 ,SEVACARE UK LTD
Adults Services,Adult Social Care,Older People (Aged 65 or over) including Older Mental Ill,Older People Commissioning,Social Care - Homecare,42389,3587436, 503.88 ,SEVACARE UK LTD
Adults Services,Adult Social Care,Older People (Aged 65 or over) including Older Mental Ill,Older People Commissioning,Social Care - Homecare,42389,3587442, 565.50 ,SEVACARE UK LTD
Adults Services,Adult Social Care,Older People (Aged 65 or over) including Older Mental Ill,Older People Commissioning,Social Care - Homecare,42389,3587443, 572.75 ,SEVACARE UK LTD
Adults Services,Adult Social Care,Older People (Aged 65 or over) including Older Mental Ill,Older People Commissioning,Social Care - Homecare,42389,3587462, 549.90 ,Oasis Care & Training Agency
Adults Services,Adult Social Care,Older People (Aged 65 or over) including Older Mental Ill,Older People Commissioning,Social Care - Homecare,42389,3587481, 542.92 ,LONDON COMMUNITY HOMECARE LTD
Adults Services,Adult Social Care,Older People (Aged 65 or over) including Older Mental Ill,Older People Commissioning,Social Care - Homecare,42389,3587487," 1,156.34 ",LONDON COMMUNITY HOMECARE LTD
Adults Services,Adult Social Care,Older People (Aged 65 or over) including Older Mental Ill,Older People Commissioning,Social Care - Homecare,42389,3587488, 965.92 ,LONDON COMMUNITY HOMECARE LTD
Adults Services,Adult Social Care,Older People (Aged 65 or over) including Older Mental Ill,Older People Commissioning,Social Care - Homecare,42389,3587490," 1,156.34 ",LONDON COMMUNITY HOMECARE LTD
Adults Services,Adult Social Care,Older People (Aged 65 or over) including Older Mental Ill,Older People Commissioning,Social Care - Homecare,42389,3587491," 1,029.58 ",LONDON COMMUNITY HOMECARE LTD
Adults Services,Adult Social Care,Older People (Aged 65 or over) including Older Mental Ill,Older People Commissioning,Social Care - Homecare,42389,3587497," 2,704.77 ",LONDON COMMUNITY HOMECARE LTD
Adults Services,Adult Social Care,Older People (Aged 65 or over) including Older Mental Ill,Older People Commissioning,Social Care - Homecare,42389,3587503, 571.20 ,LONDON COMMUNITY HOMECARE LTD
Adults Services,Adult Social Care,Older People (Aged 65 or over) including Older Mental Ill,Older People Commissioning,Social Care - Homecare,42389,3587505," 1,170.51 ",LONDON COMMUNITY HOMECARE LTD
Adults Services,Adult Social Care,Older People (Aged 65 or over) including Older Mental Ill,Older People Commissioning,Social Care - Homecare,42389,3587513, 677.02 ,LONDON COMMUNITY HOMECARE LTD
Adults Services,Adult Social Care,Older People (Aged 65 or over) including Older Mental Ill,Older People Commissioning,Social Care - Homecare,42389,3587516, 987.00 ,LONDON COMMUNITY HOMECARE LTD
Adults Services,Adult Social Care,Older People (Aged 65 or over) including Older Mental Ill,Older People Commissioning,Social Care - Homecare,42389,3587546, 542.92 ,LONDON COMMUNITY HOMECARE LTD
Adults Services,Adult Social Care,Older People (Aged 65 or over) including Older Mental Ill,Older People Commissioning,Social Care - Homecare,42389,3587552," 1,156.34 ",LONDON COMMUNITY HOMECARE LTD
Adults Services,Adult Social Care,Older People (Aged 65 or over) including Older Mental Ill,Older People Commissioning,Social Care - Homecare,42389,3587553, 965.92 ,LONDON COMMUNITY HOMECARE LTD
Adults Services,Adult Social Care,Older People (Aged 65 or over) including Older Mental Ill,Older People Commissioning,Social Care - Homecare,42389,3587555," 1,156.34 ",LONDON COMMUNITY HOMECARE LTD
Adults Services,Adult Social Care,Older People (Aged 65 or over) including Older Mental Ill,Older People Commissioning,Social Care - Homecare,42389,3587556," 1,029.58 ",LONDON COMMUNITY HOMECARE LTD
Adults Services,Adult Social Care,Older People (Aged 65 or over) including Older Mental Ill,Older People Commissioning,Social Care - Homecare,42389,3587561," 2,601.26 ",LONDON COMMUNITY HOMECARE LTD
Adults Services,Adult Social Care,Older People (Aged 65 or over) including Older Mental Ill,Older People Commissioning,Social Care - Homecare,42389,3587567, 571.20 ,LONDON COMMUNITY HOMECARE LTD
Adults Services,Adult Social Care,Older People (Aged 65 or over) including Older Mental Ill,Older People Commissioning,Social Care - Homecare,42389,3587577, 677.00 ,LONDON COMMUNITY HOMECARE LTD
Adults Services,Adult Social Care,Older People (Aged 65 or over) including Older Mental Ill,Older People Commissioning,Social Care - Homecare,42389,3587580, 972.90 ,LONDON COMMUNITY HOMECARE LTD
Adults Services,Adult Social Care,Older People (Aged 65 or over) including Older Mental Ill,Older People Commissioning,Social Care - Homecare,42389,3587616, 867.90 ,REDSPOT HOMECARE (CONTRACTS) LTD
Adults Services,Adult Social Care,Older People (Aged 65 or over) including Older Mental Ill,Older People Commissioning,Social Care - Homecare,42389,3587629, 598.33 ,REDSPOT HOMECARE (CONTRACTS) LTD
Adults Services,Adult Social Care,Older People (Aged 65 or over) including Older Mental Ill,Older People Commissioning,Social Care - Homecare,42389,3587702, 849.99 ,MiHOMECARE LIMITED
Adults Services,Adult Social Care,Older People (Aged 65 or over) including Older Mental Ill,Older People Commissioning,Social Care - Homecare,42389,3587719," 2,374.04 ",SANCTUARY HOME CARE LIMITED
Adults Services,Adult Social Care,Older People (Aged 65 or over) including Older Mental Ill,Older People Commissioning,Social Care - Homecare,42389,3587723," 1,380.97 ",SANCTUARY HOME CARE LIMITED
Adults Services,Adult Social Care,Older People (Aged 65 or over) including Older Mental Ill,Older People Commissioning,Social Care - Homecare,42389,3587751, 609.44 ,SANCTUARY HOME CARE LIMITED
Adults Services,Adult Social Care,Older People (Aged 65 or over) including Older Mental Ill,Older People Commissioning,Social Care - Homecare,42389,3587758, 580.42 ,SANCTUARY HOME CARE LIMITED
Adults Services,Adult Social Care,Older People (Aged 65 or over) including Older Mental Ill,Older People Commissioning,Social Care - Homecare,42389,3587784," 1,305.92 ",SANCTUARY HOME CARE LIMITED
Adults Services,Adult Social Care,Older People (Aged 65 or over) including Older Mental Ill,Older People Commissioning,Social Care - Homecare,42389,3587799, 507.86 ,SANCTUARY HOME CARE LIMITED
Adults Services,Adult Social Care,Older People (Aged 65 or over) including Older Mental Ill,Older People Commissioning,Social Care - Homecare,42389,3587821, 914.14 ,SANCTUARY HOME CARE LIMITED
Adults Services,Adult Social Care,Older People (Aged 65 or over) including Older Mental Ill,Older People Commissioning,Social Care - Homecare,42389,3587834," 1,422.00 ",SANCTUARY HOME CARE LIMITED
Adults Services,Adult Social Care,Older People (Aged 65 or over) including Older Mental Ill,Older People Commissioning,Social Care - Homecare,42389,3587842," 1,073.76 ",SANCTUARY HOME CARE LIMITED
Adults Services,Adult Social Care,Older People (Aged 65 or over) including Older Mental Ill,Older People Commissioning,Social Care - Homecare,42389,3587859, 623.70 ,Soma Healthcare Ltd
Adults Services,Adult Social Care,Older People (Aged 65 or over) including Older Mental Ill,Older People Commissioning,Social Care - Homecare,42389,3587860," 1,358.78 ",Soma Healthcare Ltd
Adults Services,Adult Social Care,Older People (Aged 65 or over) including Older Mental Ill,Older People Commissioning,Social Care - Homecare,42389,3587864," 1,603.80 ",Soma Healthcare Ltd
Adults Services,Adult Social Care,Older People (Aged 65 or over) including Older Mental Ill,Older People Commissioning,Social Care - Homecare,42389,3587871, 761.06 ,Soma Healthcare Ltd
Adults Services,Adult Social Care,Older People (Aged 65 or over) including Older Mental Ill,Older People Commissioning,Social Care - Homecare,42389,3587891," 1,715.18 ",Soma Healthcare Ltd
Adults Services,Adult Social Care,Older People (Aged 65 or over) including Older Mental Ill,Older People Commissioning,Social Care - Homecare,42389,3587892," 1,247.40 ",Soma Healthcare Ltd
Adults Services,Adult Social Care,Older People (Aged 65 or over) including Older Mental Ill,Older People Commissioning,Social Care - Homecare,42389,3587898, 579.15 ,Soma Healthcare Ltd
Adults Services,Adult Social Care,Older People (Aged 65 or over) including Older Mental Ill,Older People Commissioning,Social Care - Homecare,42389,3587903, 549.45 ,Soma Healthcare Ltd
Adults Services,Adult Social Care,Older People (Aged 65 or over) including Older Mental Ill,Older People Commissioning,Social Care - Homecare,42389,3587909," 1,084.05 ",Soma Healthcare Ltd
Adults Services,Adult Social Care,Older People (Aged 65 or over) including Older Mental Ill,Older People Commissioning,Social Care - Homecare,42389,3587910," 1,299.38 ",Soma Healthcare Ltd
Adults Services,Adult Social Care,Older People (Aged 65 or over) including Older Mental Ill,Older People Commissioning,Social Care - Homecare,42389,3587911, 534.60 ,Soma Healthcare Ltd
Adults Services,Adult Social Care,Older People (Aged 65 or over) including Older Mental Ill,Older People Commissioning,Social Care - Homecare,42389,3587915, 634.84 ,Soma Healthcare Ltd
Adults Services,Adult Social Care,Older People (Aged 65 or over) including Older Mental Ill,Older People Commissioning,Social Care - Homecare,42389,3587919," 1,425.60 ",Soma Healthcare Ltd
Adults Services,Adult Social Care,Older People (Aged 65 or over) including Older Mental Ill,Older People Commissioning,Social Care - Homecare,42389,3587921, 564.30 ,Soma Healthcare Ltd
Adults Services,Adult Social Care,Older People (Aged 65 or over) including Older Mental Ill,Older People Commissioning,Social Care - Homecare,42389,3587931, 645.98 ,Soma Healthcare Ltd
Adults Services,Adult Social Care,Older People (Aged 65 or over) including Older Mental Ill,Older People Commissioning,Social Care - Homecare,42389,3587934," 1,028.36 ",Soma Healthcare Ltd
Adults Services,Adult Social Care,Older People (Aged 65 or over) including Older Mental Ill,Older People Commissioning,Social Care - Homecare,42389,3587935, 527.18 ,Soma Healthcare Ltd
Adults Services,Adult Social Care,Older People (Aged 65 or over) including Older Mental Ill,Older People Commissioning,Social Care - Homecare,42389,3587939, 504.90 ,Soma Healthcare Ltd
Adults Services,Adult Social Care,Older People (Aged 65 or over) including Older Mental Ill,Older People Commissioning,Social Care - Homecare,42389,3587955," 1,039.50 ",Soma Healthcare Ltd
Adults Services,Adult Social Care,Older People (Aged 65 or over) including Older Mental Ill,Older People Commissioning,Social Care - Homecare,42389,3587966, 542.03 ,Soma Healthcare Ltd
Adults Services,Adult Social Care,Older People (Aged 65 or over) including Older Mental Ill,Older People Commissioning,Social Care - Homecare,42389,3587967, 935.55 ,Soma Healthcare Ltd
Adults Services,Adult Social Care,Older People (Aged 65 or over) including Older Mental Ill,Older People Commissioning,Social Care - Homecare,42389,3587970, 549.45 ,Soma Healthcare Ltd
Adults Services,Adult Social Care,Older People (Aged 65 or over) including Older Mental Ill,Older People Commissioning,Social Care - Homecare,42389,3587977, 564.30 ,Soma Healthcare Ltd
Adults Services,Adult Social Care,Older People (Aged 65 or over) including Older Mental Ill,Older People Commissioning,Social Care - Homecare,42389,3587991, 527.18 ,Soma Healthcare Ltd
Adults Services,Adult Social Care,Older People (Aged 65 or over) including Older Mental Ill,Older People Commissioning,Social Care - Homecare,42389,3587993," 1,811.70 ",Soma Healthcare Ltd
Adults Services,Adult Social Care,Older People (Aged 65 or over) including Older Mental Ill,Older People Commissioning,Social Care - Direct Payments,42389,3586728, 574.56 ,Soma Healthcare Ltd
Adults Services,Adult Social Care,Older People (Aged 65 or over) including Older Mental Ill,Older People Commissioning,Social Care - Direct Payments,42389,3586731," 1,055.40 ",St Hilda's East Community Centre
Adults Services,Adult Social Care,Older People (Aged 65 or over) including Older Mental Ill,Older People Commissioning,Social Care - Direct Payments,42389,3586756, 850.78 ,DAVID HOWARD LTD CLIENT ACCOUNT
Adults Services,Adult Social Care,Older People (Aged 65 or over) including Older Mental Ill,Older People Commissioning,Social Care - Direct Payments,42389,3586764," 2,886.91 ",DAVID HOWARD LTD CLIENT ACCOUNT
Adults Services,Adult Social Care,Older People (Aged 65 or over) including Older Mental Ill,Older People Commissioning,Social Care - Direct Payments,42389,3586766, 649.23 ,Soma Healthcare Ltd
Adults Services,Adult Social Care,Older People (Aged 65 or over) including Older Mental Ill,Older People Commissioning,Social Care - Direct Payments,42389,3586767," 1,204.20 ",DAVID HOWARD LTD CLIENT ACCOUNT
Adults Services,Adult Social Care,Older People (Aged 65 or over) including Older Mental Ill,Older People Commissioning,Social Care - Direct Payments,42389,3586775, 701.18 ,DAVID HOWARD LTD CLIENT ACCOUNT
Adults Services,Adult Social Care,Older People (Aged 65 or over) including Older Mental Ill,Older People Commissioning,Social Care - Direct Payments,42389,3586777, 678.35 ,DAVID HOWARD LTD CLIENT ACCOUNT
Adults Services,Adult Social Care,Older People (Aged 65 or over) including Older Mental Ill,Older People Commissioning,Social Care - Direct Payments,42389,3586784, 917.56 ,DAVID HOWARD LTD CLIENT ACCOUNT
Adults Services,Adult Social Care,Older People (Aged 65 or over) including Older Mental Ill,Older People Commissioning,Social Care - Direct Payments,42389,3586816," 1,624.00 ",DAVID HOWARD LTD CLIENT ACCOUNT
Adults Services,Adult Social Care,Older People (Aged 65 or over) including Older Mental Ill,Older People Commissioning,Social Care - Direct Payments,42389,3586818," 1,331.39 ",DAVID HOWARD LTD CLIENT ACCOUNT
Adults Services,Adult Social Care,Older People (Aged 65 or over) including Older Mental Ill,Older People Commissioning,Social Care - Direct Payments,42389,3586841, 663.85 ,DAVID HOWARD LTD CLIENT ACCOUNT
Adults Services,Adult Social Care,Older People (Aged 65 or over) including Older Mental Ill,Older People Commissioning,Social Care - Direct Payments,42389,3586844, 814.90 ,DAVID HOWARD LTD CLIENT ACCOUNT
Adults Services,Adult Social Care,Older People (Aged 65 or over) including Older Mental Ill,Older People Commissioning,Social Care - Direct Payments,42389,3586854," 2,054.86 ",D D PAYROLL SERVICES
Adults Services,Adult Social Care,Older People (Aged 65 or over) including Older Mental Ill,Older People Commissioning,Social Care - Direct Payments,42389,3586874," 1,133.32 ",DAVID HOWARD LTD CLIENT ACCOUNT
Adults Services,Adult Social Care,Older People (Aged 65 or over) including Older Mental Ill,Older People Commissioning,Social Care - Direct Payments,42389,3586875, 756.24 ,DAVID HOWARD LTD CLIENT ACCOUNT
Adults Services,Adult Social Care,Older People (Aged 65 or over) including Older Mental Ill,Older People Commissioning,Social Care - Direct Payments,42389,3586876, 702.59 ,DAVID HOWARD LTD CLIENT ACCOUNT
Adults Services,Adult Social Care,Older People (Aged 65 or over) including Older Mental Ill,Older People Commissioning,Social Care - Direct Payments,42389,3586877," 1,110.62 ",DAVID HOWARD LTD CLIENT ACCOUNT
Adults Services,Adult Social Care,Older People (Aged 65 or over) including Older Mental Ill,Older People Commissioning,Social Care - Direct Payments,42389,3586880, 507.50 ,DAVID HOWARD LTD CLIENT ACCOUNT
Adults Services,Adult Social Care,Older People (Aged 65 or over) including Older Mental Ill,Older People Commissioning,Social Care - Direct Payments,42389,3586881, 796.21 ,DAVID HOWARD LTD CLIENT ACCOUNT
Adults Services,Adult Social Care,Older People (Aged 65 or over) including Older Mental Ill,Older People Commissioning,Social Care - Direct Payments,42389,3586896, 654.82 ,DAVID HOWARD LTD CLIENT ACCOUNT
Adults Services,Adult Social Care,Older People (Aged 65 or over) including Older Mental Ill,Older People Commissioning,Social Care - Direct Payments,42389,3586900, 600.92 ,DAVID HOWARD LTD CLIENT ACCOUNT
Adults Services,Adult Social Care,Older People (Aged 65 or over) including Older Mental Ill,Older People Commissioning,Social Care - Direct Payments,42389,3586905, 706.44 ,D D PAYROLL SERVICES
Adults Services,Adult Social Care,Older People (Aged 65 or over) including Older Mental Ill,Older People Commissioning,Social Care - Direct Payments,42389,3586911, 935.42 ,DAVID HOWARD LTD CLIENT ACCOUNT
Adults Services,Adult Social Care,Older People (Aged 65 or over) including Older Mental Ill,Older People Commissioning,Social Care - Direct Payments,42389,3586918, 738.92 ,DAVID HOWARD LTD CLIENT ACCOUNT
Adults Services,Adult Social Care,Older People (Aged 65 or over) including Older Mental Ill,Older People Commissioning,Social Care - Direct Payments,42389,3586919," 1,656.48 ",DAVID HOWARD LTD CLIENT ACCOUNT
Adults Services,Adult Social Care,Older People (Aged 65 or over) including Older Mental Ill,Older People Commissioning,Social Care - Direct Payments,42389,3586921, 853.76 ,DAVID HOWARD LTD CLIENT ACCOUNT
Adults Services,Adult Social Care,Older People (Aged 65 or over) including Older Mental Ill,Older People Commissioning,Social Care - Direct Payments,42389,3586929, 760.63 ,D D PAYROLL SERVICES
Adults Services,Adult Social Care,Older People (Aged 65 or over) including Older Mental Ill,Older People Commissioning,Social Care - Direct Payments,42389,3586932, 992.34 ,DAVID HOWARD LTD CLIENT ACCOUNT
Adults Services,Adult Social Care,Older People (Aged 65 or over) including Older Mental Ill,Older People Commissioning,Social Care - Direct Payments,42389,3586939, 863.37 ,DAVID HOWARD LTD CLIENT ACCOUNT
Adults Services,Adult Social Care,Older People (Aged 65 or over) including Older Mental Ill,Older People Commissioning,Social Care - Direct Payments,42389,3586940, 560.94 ,DAVID HOWARD LTD CLIENT ACCOUNT
Adults Services,Adult Social Care,Older People (Aged 65 or over) including Older Mental Ill,Older People Commissioning,Social Care - Direct Payments,42389,3586941, 518.81 ,DAVID HOWARD LTD CLIENT ACCOUNT
Adults Services,Adult Social Care,Older People (Aged 65 or over) including Older Mental Ill,Older People Commissioning,Social Care - Direct Payments,42389,3586946," 1,423.36 ",DAVID HOWARD LTD CLIENT ACCOUNT
Adults Services,Adult Social Care,Older People (Aged 65 or over) including Older Mental Ill,Older People Commissioning,Social Care - Direct Payments,42389,3586949, 652.96 ,D D PAYROLL SERVICES
Adults Services,Adult Social Care,Older People (Aged 65 or over) including Older Mental Ill,Older People Commissioning,Social Care - Direct Payments,42389,3586950, 903.52 ,D D PAYROLL SERVICES
Adults Services,Adult Social Care,Older People (Aged 65 or over) including Older Mental Ill,Older People Commissioning,Social Care - Direct Payments,42389,3586954, 570.72 ,D D PAYROLL SERVICES
Adults Services,Adult Social Care,Older People (Aged 65 or over) including Older Mental Ill,Older People Commissioning,Social Care - Direct Payments,42389,3586983," 1,013.84 ",DAVID HOWARD LTD CLIENT ACCOUNT
Adults Services,Adult Social Care,Older People (Aged 65 or over) including Older Mental Ill,Older People Commissioning,Social Care - Direct Payments,42389,3586988, 629.26 ,DAVID HOWARD LTD CLIENT ACCOUNT
Adults Services,Adult Social Care,Older People (Aged 65 or over) including Older Mental Ill,Older People Commissioning,Social Care - Direct Payments,42389,3586996," 2,497.56 ",D D PAYROLL SERVICES
Adults Services,Adult Social Care,Older People (Aged 65 or over) including Older Mental Ill,Older People Commissioning,Social Care - Direct Payments,42389,3587001, 679.76 ,D D PAYROLL SERVICES
Adults Services,Adult Social Care,Older People (Aged 65 or over) including Older Mental Ill,Older People Commissioning,Social Care - Direct Payments,42389,3587006," 2,331.02 ",D D PAYROLL SERVICES
Adults Services,Adult Social Care,Older People (Aged 65 or over) including Older Mental Ill,Older People Commissioning,Social Care - Direct Payments,42389,3587010, 833.87 ,D D PAYROLL SERVICES
Adults Services,Adult Social Care,Older People (Aged 65 or over) including Older Mental Ill,Older People Commissioning,Social Care - Direct Payments,42389,3587011, 863.21 ,D D PAYROLL SERVICES
Adults Services,Adult Social Care,Older People (Aged 65 or over) including Older Mental Ill,Older People Commissioning,Social Care - Direct Payments,42389,3587012," 1,024.90 ",DAVID HOWARD LTD CLIENT ACCOUNT
Adults Services,Adult Social Care,Older People (Aged 65 or over) including Older Mental Ill,Older People Commissioning,Social Care - Direct Payments,42389,3587021, 535.05 ,DAVID HOWARD LTD CLIENT ACCOUNT
Adults Services,Adult Social Care,Older People (Aged 65 or over) including Older Mental Ill,Older People Commissioning,Social Care - Direct Payments,42389,3587029, 953.23 ,DAVID HOWARD LTD CLIENT ACCOUNT
Adults Services,Adult Social Care,Older People (Aged 65 or over) including Older Mental Ill,Older People Commissioning,Social Care - Direct Payments,42389,3587031," 1,696.50 ",D D PAYROLL SERVICES
Adults Services,Adult Social Care,Older People (Aged 65 or over) including Older Mental Ill,Older People Commissioning,Social Care - Direct Payments,42389,3587037," 1,196.37 ",D D PAYROLL SERVICES
Adults Services,Adult Social Care,Older People (Aged 65 or over) including Older Mental Ill,Older People Commissioning,Social Care - Direct Payments,42389,3587044," 1,055.77 ",D D PAYROLL SERVICES
Adults Services,Adult Social Care,Older People (Aged 65 or over) including Older Mental Ill,Older People Commissioning,Social Care - Direct Payments,42389,3587068, 971.04 ,D D PAYROLL SERVICES
Adults Services,Adult Social Care,Older People (Aged 65 or over) including Older Mental Ill,Older People Commissioning,Social Care - Direct Payments,42389,3587070," 2,178.31 ",D D PAYROLL SERVICES
Adults Services,Adult Social Care,Older People (Aged 65 or over) including Older Mental Ill,Older People Commissioning,Social Care - Direct Payments,42389,3587073," 1,396.60 ",D D PAYROLL SERVICES
Adults Services,Adult Social Care,Older People (Aged 65 or over) including Older Mental Ill,Older People Commissioning,Social Care - Direct Payments,42389,3587078, 697.99 ,DAVID HOWARD LTD CLIENT ACCOUNT
Adults Services,Adult Social Care,Older People (Aged 65 or over) including Older Mental Ill,Older People Commissioning,Social Care - Direct Payments,42389,3587085, 985.59 ,DAVID HOWARD LTD CLIENT ACCOUNT
Adults Services,Adult Social Care,Older People (Aged 65 or over) including Older Mental Ill,Older People Commissioning,Social Care - Direct Payments,42389,3587087," 3,505.64 ",DAVID HOWARD LTD CLIENT ACCOUNT
Adults Services,Adult Social Care,Older People (Aged 65 or over) including Older Mental Ill,Older People Commissioning,Social Care - Direct Payments,42389,3587092," 1,032.57 ",DAVID HOWARD LTD CLIENT ACCOUNT
Adults Services,Adult Social Care,Older People (Aged 65 or over) including Older Mental Ill,Older People Commissioning,Social Care - Direct Payments,42389,3587096, 604.40 ,DAVID HOWARD LTD CLIENT ACCOUNT
Adults Services,Adult Social Care,Older People (Aged 65 or over) including Older Mental Ill,Older People Commissioning,Social Care - Direct Payments,42389,3587097, 676.57 ,DAVID HOWARD LTD CLIENT ACCOUNT
Adults Services,Adult Social Care,Older People (Aged 65 or over) including Older Mental Ill,Older People Commissioning,Social Care - Direct Payments,42389,3587102, 704.37 ,D D PAYROLL SERVICES
Adults Services,Adult Social Care,Older People (Aged 65 or over) including Older Mental Ill,Older People Commissioning,Social Care - Direct Payments,42389,3587106," 1,032.98 ",DAVID HOWARD LTD CLIENT ACCOUNT
Adults Services,Adult Social Care,Older People (Aged 65 or over) including Older Mental Ill,Older People Commissioning,Social Care - Direct Payments,42389,3587112, 957.00 ,DAVID HOWARD LTD CLIENT ACCOUNT
Adults Services,Adult Social Care,Older People (Aged 65 or over) including Older Mental Ill,Older People Commissioning,Social Care - Direct Payments,42389,3587124, 503.90 ,DAVID HOWARD LTD CLIENT ACCOUNT
Adults Services,Adult Social Care,Older People (Aged 65 or over) including Older Mental Ill,Older People Commissioning,Social Care - Direct Payments,42389,3587125, 520.76 ,D D PAYROLL SERVICES
Adults Services,Adult Social Care,Older People (Aged 65 or over) including Older Mental Ill,Older People Commissioning,Social Care - Direct Payments,42389,3587132, 533.27 ,DAVID HOWARD LTD CLIENT ACCOUNT
Adults Services,Adult Social Care,Older People (Aged 65 or over) including Older Mental Ill,Older People Commissioning,Social Care - Direct Payments,42389,3587136," 1,181.75 ",DAVID HOWARD LTD CLIENT ACCOUNT
Adults Services,Adult Social Care,Older People (Aged 65 or over) including Older Mental Ill,Older People Commissioning,Social Care - Direct Payments,42389,3587138, 844.15 ,DAVID HOWARD LTD CLIENT ACCOUNT
Adults Services,Adult Social Care,Older People (Aged 65 or over) including Older Mental Ill,Older People Commissioning,Social Care - Direct Payments,42389,3587142," 1,161.16 ",DAVID HOWARD LTD CLIENT ACCOUNT
Adults Services,Adult Social Care,Older People (Aged 65 or over) including Older Mental Ill,Older People Commissioning,Social Care - Direct Payments,42389,3587145, 594.13 ,DAVID HOWARD LTD CLIENT ACCOUNT
Adults Services,Adult Social Care,Older People (Aged 65 or over) including Older Mental Ill,Older People Commissioning,Social Care - Direct Payments,42389,3587160, 647.24 ,D D PAYROLL SERVICES
Adults Services,Adult Social Care,Older People (Aged 65 or over) including Older Mental Ill,Older People Commissioning,Social Care - Direct Payments,42389,3587163, 723.96 ,DAVID HOWARD LTD CLIENT ACCOUNT
Adults Services,Adult Social Care,Older People (Aged 65 or over) including Older Mental Ill,Older People Commissioning,Social Care - Direct Payments,42389,3587164, 570.43 ,DAVID HOWARD LTD CLIENT ACCOUNT
Adults Services,Adult Social Care,Older People (Aged 65 or over) including Older Mental Ill,Older People Commissioning,Social Care - Direct Payments,42389,3587170, 664.39 ,DAVID HOWARD LTD CLIENT ACCOUNT
Adults Services,Adult Social Care,Older People (Aged 65 or over) including Older Mental Ill,Older People Commissioning,Social Care - Direct Payments,42389,3587173, 601.46 ,DAVID HOWARD LTD CLIENT ACCOUNT
Adults Services,Adult Social Care,Older People (Aged 65 or over) including Older Mental Ill,Older People Commissioning,Social Care - Direct Payments,42389,3587176, 673.38 ,DAVID HOWARD LTD CLIENT ACCOUNT
Adults Services,Adult Social Care,Older People (Aged 65 or over) including Older Mental Ill,Older People Commissioning,Social Care - Direct Payments,42389,3587180, 656.27 ,DAVID HOWARD LTD CLIENT ACCOUNT
Adults Services,Adult Social Care,Older People (Aged 65 or over) including Older Mental Ill,Older People Commissioning,Social Care - Direct Payments,42389,3587181," 6,547.04 ",DAVID HOWARD LTD CLIENT ACCOUNT
Adults Services,Adult Social Care,Older People (Aged 65 or over) including Older Mental Ill,Older People Commissioning,Social Care - Direct Payments,42389,3587184," 1,272.48 ",D D PAYROLL SERVICES
Adults Services,Adult Social Care,Older People (Aged 65 or over) including Older Mental Ill,Older People Commissioning,Social Care - Direct Payments,42389,3587186, 979.70 ,DAVID HOWARD LTD CLIENT ACCOUNT
Adults Services,Adult Social Care,Older People (Aged 65 or over) including Older Mental Ill,Older People Commissioning,Social Care - Direct Payments,42389,3587187," 1,006.76 ",DAVID HOWARD LTD CLIENT ACCOUNT
Adults Services,Adult Social Care,Older People (Aged 65 or over) including Older Mental Ill,Older People Commissioning,Social Care - Direct Payments,42389,3587188, 735.81 ,D D PAYROLL SERVICES
Adults Services,Adult Social Care,Older People (Aged 65 or over) including Older Mental Ill,Older People Commissioning,Social Care - Direct Payments,42389,3587191, 568.44 ,DAVID HOWARD LTD CLIENT ACCOUNT
Adults Services,Adult Social Care,Older People (Aged 65 or over) including Older Mental Ill,Older People Commissioning,Social Care - Direct Payments,42389,3587196," 14,597.44 ",D D PAYROLL SERVICES
Adults Services,Adult Social Care,Older People (Aged 65 or over) including Older Mental Ill,Older People Commissioning,Social Care - Direct Payments,42389,3587198," 1,084.48 ",D D PAYROLL SERVICES
Adults Services,Adult Social Care,Older People (Aged 65 or over) including Older Mental Ill,Older People Commissioning,Social Care - Direct Payments,42389,3587203, 642.02 ,D D PAYROLL SERVICES
Adults Services,Adult Social Care,Older People (Aged 65 or over) including Older Mental Ill,Older People Commissioning,Social Care - Direct Payments,42389,3587204, 664.31 ,D D PAYROLL SERVICES
Adults Services,Adult Social Care,Older People (Aged 65 or over) including Older Mental Ill,Older People Commissioning,Social Care - Direct Payments,42389,3587219, 957.08 ,D D PAYROLL SERVICES
Adults Services,Adult Social Care,Older People (Aged 65 or over) including Older Mental Ill,Older People Commissioning,Social Care - Direct Payments,42389,3587227, 800.90 ,D D PAYROLL SERVICES
Adults Services,Adult Social Care,Older People (Aged 65 or over) including Older Mental Ill,Older People Commissioning,Social Care - Direct Payments,42389,3587231, 874.60 ,D D PAYROLL SERVICES
Adults Services,Adult Social Care,Older People (Aged 65 or over) including Older Mental Ill,Older People Commissioning,Social Care - Direct Payments,42389,3587249," 2,210.34 ",DAVID HOWARD LTD CLIENT ACCOUNT
Adults Services,Adult Social Care,Older People (Aged 65 or over) including Older Mental Ill,Older People Commissioning,Social Care - Direct Payments,42389,3587255, 669.86 ,D D PAYROLL SERVICES
Adults Services,Adult Social Care,Older People (Aged 65 or over) including Older Mental Ill,Older People Commissioning,Social Care - Direct Payments,42389,3587256," 7,401.75 ",PayPacket Ltd
Adults Services,Adult Social Care,Older People (Aged 65 or over) including Older Mental Ill,Older People Commissioning,Social Care - Direct Payments,42389,3587259, 699.98 ,DAVID HOWARD LTD CLIENT ACCOUNT
Adults Services,Adult Social Care,Older People (Aged 65 or over) including Older Mental Ill,Older People Commissioning,Social Care - Direct Payments,42389,3587260, 513.84 ,DAVID HOWARD LTD CLIENT ACCOUNT
Adults Services,Adult Social Care,Older People (Aged 65 or over) including Older Mental Ill,Older People Commissioning,Social Care - Direct Payments,42389,3587263, 847.46 ,DAVID HOWARD LTD CLIENT ACCOUNT
Adults Services,Adult Social Care,Older People (Aged 65 or over) including Older Mental Ill,Older People Commissioning,Social Care - Direct Payments,42389,3587268," 6,316.28 ",DAVID HOWARD LTD CLIENT ACCOUNT
Adults Services,Adult Social Care,Older People (Aged 65 or over) including Older Mental Ill,Older People Commissioning,Social Care - Direct Payments,42389,3587270," 2,874.98 ",D D PAYROLL SERVICES
Adults Services,Adult Social Care,Older People (Aged 65 or over) including Older Mental Ill,Older People Commissioning,Social Care - Direct Payments,42389,3587273, 508.04 ,DAVID HOWARD LTD CLIENT ACCOUNT
Adults Services,Adult Social Care,Older People (Aged 65 or over) including Older Mental Ill,Older People Commissioning,Social Care - Direct Payments,42389,3587281," 1,255.29 ",D D PAYROLL SERVICES
Adults Services,Adult Social Care,Older People (Aged 65 or over) including Older Mental Ill,Older People Commissioning,Social Care - Direct Payments,42389,3587284, 844.69 ,D D PAYROLL SERVICES
Adults Services,Adult Social Care,Older People (Aged 65 or over) including Older Mental Ill,Older People Commissioning,Social Care - Direct Payments,42389,3587285, 607.55 ,D D PAYROLL SERVICES
Adults Services,Adult Social Care,Older People (Aged 65 or over) including Older Mental Ill,Older People Commissioning,Social Care - Direct Payments,42389,3587291," 1,440.76 ",DAVID HOWARD LTD CLIENT ACCOUNT
Adults Services,Adult Social Care,Older People (Aged 65 or over) including Older Mental Ill,Older People Commissioning,Social Care - Direct Payments,42389,3587293," 1,624.99 ",DAVID HOWARD LTD CLIENT ACCOUNT
Adults Services,Adult Social Care,Older People (Aged 65 or over) including Older Mental Ill,Older People Commissioning,Social Care - Direct Payments,42389,3587294," 1,112.77 ",DAVID HOWARD LTD
Adults Services,Adult Social Care,Older People (Aged 65 or over) including Older Mental Ill,Older People Commissioning,Social Care - Direct Payments,42389,3587295, 883.71 ,DAVID HOWARD LTD CLIENT ACCOUNT
Adults Services,Adult Social Care,Older People (Aged 65 or over) including Older Mental Ill,Older People Commissioning,Social Care - Direct Payments,42389,3587299, 832.59 ,DAVID HOWARD LTD CLIENT ACCOUNT
Adults Services,Adult Social Care,Older People (Aged 65 or over) including Older Mental Ill,Older People Commissioning,Social Care - Direct Payments,42389,3587306,"-1,584.13 ",D D PAYROLL SERVICES
Adults Services,Adult Social Care,Older People (Aged 65 or over) including Older Mental Ill,Older People Commissioning,Social Care - Home Care (Short Term),42389,3587696, 975.62 ,MiHOMECARE LIMITED
Adults Services,Adult Social Care,Older People (Aged 65 or over) including Older Mental Ill,Older People Commissioning,Client Contributions for Social Care - Nursing Care,42389,3585980," 1,533.65 ",Loughton Care Centre
Adults Services,Adult Social Care,Older People (Aged 65 or over) including Older Mental Ill,Older People Commissioning,Client Contributions for Social Care - Nursing Care,42389,3586092,-548.92 ,LIFE STYLE CARE (2011) PLC
Adults Services,Adult Social Care,Older People (Aged 65 or over) including Older Mental Ill,Older People Commissioning,Client Contributions for Social Care - Nursing Care,42389,3586095,-694.45 ,LIFE STYLE CARE (2011) PLC
Adults Services,Adult Social Care,Older People (Aged 65 or over) including Older Mental Ill,Older People Commissioning,Client Contributions for Social Care - Nursing Care,42389,3587595,-559.32 ,JEWISH CARE
Adults Services,Adult Social Care,Older People (Aged 65 or over) including Older Mental Ill,Learning Dis Commissioning,Social Care - Residential Care,42389,3585983," 53,453.38 ",The Camden Society
Adults Services,Adult Social Care,Older People (Aged 65 or over) including Older Mental Ill,Learning Dis Commissioning,Social Care - Residential Care,42389,3586039," 26,656.37 ",MENCAP
Adults Services,Adult Social Care,Older People (Aged 65 or over) including Older Mental Ill,Learning Dis Commissioning,Social Care - Day Care,42389,3578878," 1,100.00 ",PERSON CENTRED CARE HOMES
Adults Services,Adult Social Care,Older People (Aged 65 or over) including Older Mental Ill,Learning Dis Commissioning,Social Care - Day Care,42389,3585957," 2,772.00 ",HOFFMANN FOUNDATION FOR AUTISM
Adults Services,Adult Social Care,Older People (Aged 65 or over) including Older Mental Ill,Learning Dis Commissioning,Social Care - Day Care,42389,3587637, 584.36 ,APASENTH
Adults Services,Adult Social Care,Older People (Aged 65 or over) including Older Mental Ill,Learning Dis Commissioning,Social Care - Day Care,42389,3587638," 2,173.73 ",Tower Project
Adults Services,Adult Social Care,Older People (Aged 65 or over) including Older Mental Ill,Learning Dis Commissioning,Social Care - Day Care,42389,3587639," 2,173.73 ",Tower Project
Adults Services,Adult Social Care,Older People (Aged 65 or over) including Older Mental Ill,Learning Dis Commissioning,Social Care - Day Care,42389,3587640," 2,173.73 ",Tower Project
Adults Services,Adult Social Care,Older People (Aged 65 or over) including Older Mental Ill,Learning Dis Commissioning,Social Care - Day Care,42389,3587641," 2,173.73 ",Tower Project
Adults Services,Adult Social Care,Older People (Aged 65 or over) including Older Mental Ill,Learning Dis Commissioning,Social Care - Day Care,42389,3587642," 1,533.64 ",Tower Project
Adults Services,Adult Social Care,Older People (Aged 65 or over) including Older Mental Ill,Learning Dis Commissioning,Social Care - Day Care,42389,3587643," 2,173.73 ",Tower Project
Adults Services,Adult Social Care,Older People (Aged 65 or over) including Older Mental Ill,Learning Dis Commissioning,Social Care - Day Care,42389,3587644," 2,114.71 ",Tower Project
Adults Services,Adult Social Care,Older People (Aged 65 or over) including Older Mental Ill,Learning Dis Commissioning,Social Care - Day Care,42389,3587645," 2,173.73 ",Tower Project
Adults Services,Adult Social Care,Older People (Aged 65 or over) including Older Mental Ill,Learning Dis Commissioning,Social Care - Day Care,42389,3587646," 1,533.64 ",Tower Project
Adults Services,Adult Social Care,Older People (Aged 65 or over) including Older Mental Ill,Learning Dis Commissioning,Social Care - Day Care,42389,3587647," 1,000.20 ",Tower Project
Adults Services,Adult Social Care,Older People (Aged 65 or over) including Older Mental Ill,Learning Dis Commissioning,Social Care - Day Care,42389,3587648, 866.84 ,Tower Project
Adults Services,Adult Social Care,Older People (Aged 65 or over) including Older Mental Ill,Learning Dis Commissioning,Social Care - Day Care,42389,3587650," 2,173.73 ",Tower Project
Adults Services,Adult Social Care,Older People (Aged 65 or over) including Older Mental Ill,Learning Dis Commissioning,Social Care - Day Care,42389,3587651," 2,173.73 ",Tower Project
Adults Services,Adult Social Care,Older People (Aged 65 or over) including Older Mental Ill,Learning Dis Commissioning,Social Care - Day Care,42389,3587652," 1,533.64 ",Tower Project
Adults Services,Adult Social Care,Older People (Aged 65 or over) including Older Mental Ill,Learning Dis Commissioning,Social Care - Day Care,42389,3587653," 2,173.73 ",Tower Project
Adults Services,Adult Social Care,Older People (Aged 65 or over) including Older Mental Ill,Learning Dis Commissioning,Social Care - Day Care,42389,3587654," 2,173.73 ",Tower Project
Adults Services,Adult Social Care,Older People (Aged 65 or over) including Older Mental Ill,Learning Dis Commissioning,Social Care - Day Care,42389,3587655," 1,533.64 ",Tower Project
Adults Services,Adult Social Care,Older People (Aged 65 or over) including Older Mental Ill,Learning Dis Commissioning,Social Care - Day Care,42389,3587656," 1,533.64 ",Tower Project
Adults Services,Adult Social Care,Older People (Aged 65 or over) including Older Mental Ill,Learning Dis Commissioning,Social Care - Day Care,42389,3587658," 2,173.73 ",Tower Project
Adults Services,Adult Social Care,Older People (Aged 65 or over) including Older Mental Ill,Learning Dis Commissioning,Social Care - Day Care,42389,3587659," 2,173.73 ",Tower Project
Adults Services,Adult Social Care,Older People (Aged 65 or over) including Older Mental Ill,Learning Dis Commissioning,Social Care - Day Care,42389,3587660," 2,173.73 ",Tower Project
Adults Services,Adult Social Care,Older People (Aged 65 or over) including Older Mental Ill,Learning Dis Commissioning,Social Care - Day Care,42389,3587661," 2,173.73 ",Tower Project
Adults Services,Adult Social Care,Older People (Aged 65 or over) including Older Mental Ill,Learning Dis Commissioning,Social Care - Day Care,42389,3587662," 2,173.73 ",Tower Project
Adults Services,Adult Social Care,Older People (Aged 65 or over) including Older Mental Ill,Learning Dis Commissioning,Social Care - Day Care,42389,3587664," 2,173.73 ",Tower Project
Adults Services,Adult Social Care,Older People (Aged 65 or over) including Older Mental Ill,Learning Dis Commissioning,Social Care - Day Care,42389,3587665," 2,507.23 ",Tower Project
Adults Services,Adult Social Care,Older People (Aged 65 or over) including Older Mental Ill,Learning Dis Commissioning,Social Care - Day Care,42389,3587666," 1,533.64 ",Tower Project
Adults Services,Adult Social Care,Older People (Aged 65 or over) including Older Mental Ill,Learning Dis Commissioning,Social Care - Day Care,42389,3587667," 1,333.60 ",Tower Project
Adults Services,Adult Social Care,Older People (Aged 65 or over) including Older Mental Ill,Learning Dis Commissioning,Social Care - Day Care,42389,3587668," 1,333.60 ",Tower Project
Adults Services,Adult Social Care,Older People (Aged 65 or over) including Older Mental Ill,Learning Dis Commissioning,Social Care - Day Care,42389,3587669," 2,173.73 ",Tower Project
Adults Services,Adult Social Care,Older People (Aged 65 or over) including Older Mental Ill,Learning Dis Commissioning,Social Care - Day Care,42389,3587670," 1,323.14 ",Tower Project
Adults Services,Adult Social Care,Older People (Aged 65 or over) including Older Mental Ill,Learning Dis Commissioning,Social Care - Day Care,42389,3587671," 2,173.73 ",Tower Project
Adults Services,Adult Social Care,Older People (Aged 65 or over) including Older Mental Ill,Learning Dis Commissioning,Social Care - Day Care,42389,3587672," 1,134.12 ",Tower Project
Adults Services,Adult Social Care,Older People (Aged 65 or over) including Older Mental Ill,Learning Dis Commissioning,Social Care - Day Care,42389,3587674," 2,173.73 ",Tower Project
Adults Services,Adult Social Care,Older People (Aged 65 or over) including Older Mental Ill,Learning Dis Commissioning,Social Care - Day Care,42389,3587675," 1,533.64 ",Tower Project
Adults Services,Adult Social Care,Older People (Aged 65 or over) including Older Mental Ill,Learning Dis Commissioning,Social Care - Day Care,42389,3587676," 1,085.14 ",Tower Project
Adults Services,Adult Social Care,Older People (Aged 65 or over) including Older Mental Ill,Learning Dis Commissioning,Social Care - Day Care,42389,3587677," 2,173.73 ",Tower Project
Adults Services,Adult Social Care,Older People (Aged 65 or over) including Older Mental Ill,Learning Dis Commissioning,Social Care - Day Care,42389,3587678," 1,085.14 ",Tower Project
Adults Services,Adult Social Care,Older People (Aged 65 or over) including Older Mental Ill,Learning Dis Commissioning,Social Care - Day Care,42389,3587679," 2,173.73 ",Tower Project
Adults Services,Adult Social Care,Older People (Aged 65 or over) including Older Mental Ill,Learning Dis Commissioning,Social Care - Day Care,42389,3587680," 2,173.73 ",Tower Project
Adults Services,Adult Social Care,Older People (Aged 65 or over) including Older Mental Ill,Learning Dis Commissioning,Social Care - Homecare,42389,3586061, 717.60 ,MEARS CARE LTD
Adults Services,Adult Social Care,Older People (Aged 65 or over) including Older Mental Ill,Learning Dis Commissioning,Social Care - Homecare,42389,3586064," 2,599.80 ",MEARS CARE LTD
Adults Services,Adult Social Care,Older People (Aged 65 or over) including Older Mental Ill,Learning Dis Commissioning,Social Care - Homecare,42389,3586065," 2,599.80 ",MEARS CARE LTD
Adults Services,Adult Social Care,Older People (Aged 65 or over) including Older Mental Ill,Learning Dis Commissioning,Social Care - Homecare,42389,3586066," 1,743.33 ",MEARS CARE LTD
Adults Services,Adult Social Care,Older People (Aged 65 or over) including Older Mental Ill,Learning Dis Commissioning,Social Care - Homecare,42389,3586067," 2,673.60 ",MEARS CARE LTD
Adults Services,Adult Social Care,Older People (Aged 65 or over) including Older Mental Ill,Learning Dis Commissioning,Social Care - Homecare,42389,3586068," 1,743.33 ",MEARS CARE LTD
Adults Services,Adult Social Care,Older People (Aged 65 or over) including Older Mental Ill,Learning Dis Commissioning,Social Care - Homecare,42389,3587450, 902.40 ,Oasis Care & Training Agency
Adults Services,Adult Social Care,Older People (Aged 65 or over) including Older Mental Ill,Learning Dis Commissioning,Social Care - Homecare,42389,3587473," 1,790.82 ",LONDON COMMUNITY HOMECARE LTD
Adults Services,Adult Social Care,Older People (Aged 65 or over) including Older Mental Ill,Learning Dis Commissioning,Social Care - Homecare,42389,3587519, 888.32 ,LONDON COMMUNITY HOMECARE LTD
Adults Services,Adult Social Care,Older People (Aged 65 or over) including Older Mental Ill,Learning Dis Commissioning,Social Care - Homecare,42389,3587538," 1,790.82 ",LONDON COMMUNITY HOMECARE LTD
Adults Services,Adult Social Care,Older People (Aged 65 or over) including Older Mental Ill,Learning Dis Commissioning,Social Care - Homecare,42389,3587583, 888.32 ,LONDON COMMUNITY HOMECARE LTD
Adults Services,Adult Social Care,Older People (Aged 65 or over) including Older Mental Ill,Learning Dis Commissioning,Social Care - Homecare,42389,3587862, 861.30 ,Soma Healthcare Ltd
Adults Services,Adult Social Care,Older People (Aged 65 or over) including Older Mental Ill,Learning Dis Commissioning,Social Care - Homecare,42389,3587954, 608.85 ,Soma Healthcare Ltd
Adults Services,Adult Social Care,Older People (Aged 65 or over) including Older Mental Ill,Learning Dis Commissioning,Social Care - Direct Payments,42389,3586917," 1,822.65 ",D D PAYROLL SERVICES
Adults Services,Adult Social Care,Older People (Aged 65 or over) including Older Mental Ill,Learning Dis Commissioning,Social Care - Direct Payments,42389,3586935, 661.57 ,DAVID HOWARD LTD CLIENT ACCOUNT
Adults Services,Adult Social Care,Older People (Aged 65 or over) including Older Mental Ill,Learning Dis Commissioning,Social Care - Direct Payments,42389,3586967," 1,054.73 ",DAVID HOWARD LTD CLIENT ACCOUNT
Adults Services,Adult Social Care,Older People (Aged 65 or over) including Older Mental Ill,Learning Dis Commissioning,Social Care - Direct Payments,42389,3586978," 1,033.02 ",D D PAYROLL SERVICES
Adults Services,Adult Social Care,Older People (Aged 65 or over) including Older Mental Ill,Learning Dis Commissioning,Social Care - Direct Payments,42389,3587002," 1,052.37 ",DAVID HOWARD LTD CLIENT ACCOUNT
Adults Services,Adult Social Care,Older People (Aged 65 or over) including Older Mental Ill,Learning Dis Commissioning,Social Care - Direct Payments,42389,3587024," 1,084.89 ",DAVID HOWARD LTD CLIENT ACCOUNT
Adults Services,Adult Social Care,Older People (Aged 65 or over) including Older Mental Ill,Learning Dis Commissioning,Social Care - Direct Payments,42389,3587035," 1,448.14 ",D D PAYROLL SERVICES
Adults Services,Adult Social Care,Older People (Aged 65 or over) including Older Mental Ill,Learning Dis Commissioning,Social Care - Direct Payments,42389,3587046, 745.71 ,D D PAYROLL SERVICES
Adults Services,Adult Social Care,Older People (Aged 65 or over) including Older Mental Ill,Learning Dis Commissioning,Social Care - Direct Payments,42389,3587049," 3,600.68 ",D D PAYROLL SERVICES
Adults Services,Adult Social Care,Older People (Aged 65 or over) including Older Mental Ill,Learning Dis Commissioning,Social Care - Direct Payments,42389,3587063," 3,173.39 ",DAVID HOWARD LTD CLIENT ACCOUNT
Adults Services,Adult Social Care,Older People (Aged 65 or over) including Older Mental Ill,Learning Dis Commissioning,Social Care - Direct Payments,42389,3587067, 604.90 ,D D PAYROLL SERVICES
Adults Services,Adult Social Care,Older People (Aged 65 or over) including Older Mental Ill,Learning Dis Commissioning,Social Care - Direct Payments,42389,3587072, 632.24 ,DAVID HOWARD LTD CLIENT ACCOUNT
Adults Services,Adult Social Care,Older People (Aged 65 or over) including Older Mental Ill,Learning Dis Commissioning,Social Care - Direct Payments,42389,3587075," 4,845.86 ",DAVID HOWARD LTD CLIENT ACCOUNT
Adults Services,Adult Social Care,Older People (Aged 65 or over) including Older Mental Ill,Learning Dis Commissioning,Social Care - Direct Payments,42389,3587077, 716.88 ,DAVID HOWARD LTD CLIENT ACCOUNT
Adults Services,Adult Social Care,Older People (Aged 65 or over) including Older Mental Ill,Learning Dis Commissioning,Social Care - Direct Payments,42389,3587084," 1,081.08 ",D D PAYROLL SERVICES
Adults Services,Adult Social Care,Older People (Aged 65 or over) including Older Mental Ill,Learning Dis Commissioning,Social Care - Direct Payments,42389,3587086, 778.65 ,D D PAYROLL SERVICES
Adults Services,Adult Social Care,Older People (Aged 65 or over) including Older Mental Ill,Learning Dis Commissioning,Social Care - Direct Payments,42389,3587089," 3,109.92 ",D D PAYROLL SERVICES
Adults Services,Adult Social Care,Older People (Aged 65 or over) including Older Mental Ill,Learning Dis Commissioning,Social Care - Direct Payments,42389,3587100," 2,199.19 ",D D PAYROLL SERVICES
Adults Services,Adult Social Care,Older People (Aged 65 or over) including Older Mental Ill,Learning Dis Commissioning,Social Care - Direct Payments,42389,3587109," 1,289.17 ",D D PAYROLL SERVICES
Adults Services,Adult Social Care,Older People (Aged 65 or over) including Older Mental Ill,Learning Dis Commissioning,Social Care - Direct Payments,42389,3587114," 4,039.29 ",D D PAYROLL SERVICES
Adults Services,Adult Social Care,Older People (Aged 65 or over) including Older Mental Ill,Learning Dis Commissioning,Social Care - Direct Payments,42389,3587129," 1,812.00 ",DAVID HOWARD LTD CLIENT ACCOUNT
Adults Services,Adult Social Care,Older People (Aged 65 or over) including Older Mental Ill,Learning Dis Commissioning,Social Care - Direct Payments,42389,3587134," 3,782.22 ",D D PAYROLL SERVICES
Adults Services,Adult Social Care,Older People (Aged 65 or over) including Older Mental Ill,Learning Dis Commissioning,Social Care - Direct Payments,42389,3587135," 1,806.53 ",D D PAYROLL SERVICES
Adults Services,Adult Social Care,Older People (Aged 65 or over) including Older Mental Ill,Learning Dis Commissioning,Social Care - Direct Payments,42389,3587148, 936.45 ,D D PAYROLL SERVICES
Adults Services,Adult Social Care,Older People (Aged 65 or over) including Older Mental Ill,Learning Dis Commissioning,Social Care - Direct Payments,42389,3587149," 2,863.21 ",D D PAYROLL SERVICES
Adults Services,Adult Social Care,Older People (Aged 65 or over) including Older Mental Ill,Learning Dis Commissioning,Social Care - Direct Payments,42389,3587151," 2,692.86 ",DAVID HOWARD LTD CLIENT ACCOUNT
Adults Services,Adult Social Care,Older People (Aged 65 or over) including Older Mental Ill,Learning Dis Commissioning,Social Care - Direct Payments,42389,3587158," 1,218.91 ",DAVID HOWARD LTD CLIENT ACCOUNT
Adults Services,Adult Social Care,Older People (Aged 65 or over) including Older Mental Ill,Learning Dis Commissioning,Social Care - Direct Payments,42389,3587161, 842.86 ,D D PAYROLL SERVICES
Adults Services,Adult Social Care,Older People (Aged 65 or over) including Older Mental Ill,Learning Dis Commissioning,Social Care - Direct Payments,42389,3587162, 842.86 ,D D PAYROLL SERVICES
Adults Services,Adult Social Care,Older People (Aged 65 or over) including Older Mental Ill,Learning Dis Commissioning,Social Care - Direct Payments,42389,3587165," 1,854.18 ",DAVID HOWARD LTD CLIENT ACCOUNT
Adults Services,Adult Social Care,Older People (Aged 65 or over) including Older Mental Ill,Learning Dis Commissioning,Social Care - Direct Payments,42389,3587166," 1,048.60 ",DAVID HOWARD LTD CLIENT ACCOUNT
Adults Services,Adult Social Care,Older People (Aged 65 or over) including Older Mental Ill,Learning Dis Commissioning,Social Care - Direct Payments,42389,3587167," 1,558.75 ",DAVID HOWARD LTD CLIENT ACCOUNT
Adults Services,Adult Social Care,Older People (Aged 65 or over) including Older Mental Ill,Learning Dis Commissioning,Social Care - Direct Payments,42389,3587185, 608.34 ,D D PAYROLL SERVICES
Adults Services,Adult Social Care,Older People (Aged 65 or over) including Older Mental Ill,Learning Dis Commissioning,Social Care - Direct Payments,42389,3587211, 925.51 ,D D PAYROLL SERVICES
Adults Services,Adult Social Care,Older People (Aged 65 or over) including Older Mental Ill,Learning Dis Commissioning,Social Care - Direct Payments,42389,3587218," 2,453.03 ",D D PAYROLL SERVICES
Adults Services,Adult Social Care,Older People (Aged 65 or over) including Older Mental Ill,Learning Dis Commissioning,Social Care - Direct Payments,42389,3587230," 4,870.76 ",DAVID HOWARD LTD CLIENT ACCOUNT
Adults Services,Adult Social Care,Older People (Aged 65 or over) including Older Mental Ill,Learning Dis Commissioning,Social Care - Direct Payments,42389,3587236," 2,531.49 ",DAVID HOWARD LTD CLIENT ACCOUNT
Adults Services,Adult Social Care,Older People (Aged 65 or over) including Older Mental Ill,Learning Dis Commissioning,Social Care - Direct Payments,42389,3587237," 2,081.12 ",DAVID HOWARD LTD CLIENT ACCOUNT
Adults Services,Adult Social Care,Older People (Aged 65 or over) including Older Mental Ill,Learning Dis Commissioning,Social Care - Direct Payments,42389,3587238," 3,236.32 ",DAVID HOWARD LTD CLIENT ACCOUNT
Adults Services,Adult Social Care,Older People (Aged 65 or over) including Older Mental Ill,Learning Dis Commissioning,Social Care - Direct Payments,42389,3587275," 7,849.64 ",D D PAYROLL SERVICES
Adults Services,Adult Social Care,Older People (Aged 65 or over) including Older Mental Ill,Learning Dis Commissioning,Social Care - Direct Payments,42389,3587276," 3,387.90 ",D D PAYROLL SERVICES
Adults Services,Adult Social Care,Older People (Aged 65 or over) including Older Mental Ill,Learning Dis Commissioning,Social Care - Direct Payments,42389,3587288," 2,890.31 ",DAVID HOWARD LTD CLIENT ACCOUNT
Adults Services,Adult Social Care,Older People (Aged 65 or over) including Older Mental Ill,Learning Dis Commissioning,Social Care - Direct Payments,42389,3587289, 745.71 ,DAVID HOWARD LTD CLIENT ACCOUNT
Adults Services,Adult Social Care,Older People (Aged 65 or over) including Older Mental Ill,Learning Dis Commissioning,Social Care - Direct Payments,42389,3587300, 689.50 ,DAVID HOWARD LTD CLIENT ACCOUNT
Adults Services,Adult Social Care,Older People (Aged 65 or over) including Older Mental Ill,Learning Dis Commissioning,Social Care - Direct Payments,42389,3587305," 1,562.04 ",D D PAYROLL SERVICES
Adults Services,Adult Social Care,Older People (Aged 65 or over) including Older Mental Ill,Learning Dis Commissioning,Social Care - Direct Payments,42389,3587314,"-2,453.03 ",D D PAYROLL SERVICES
Adults Services,Adult Social Care,Older People (Aged 65 or over) including Older Mental Ill,Learning Dis Commissioning,Social Care - Help to Live at Home,42389,3585958," 9,821.73 ",PEMBROKE HOUSE
Adults Services,Adult Social Care,Older People (Aged 65 or over) including Older Mental Ill,Learning Dis Commissioning,Social Care - Prevention & Support - Block,42389,3587304," 33,202.09 ",D D PAYROLL SERVICES
Adults Services,Adult Social Care,Older People (Aged 65 or over) including Older Mental Ill,Physical Dis Commissioning,Social Care - Nursing Care,42389,3586091," 5,795.67 ",LIFE STYLE CARE (2011) PLC
Adults Services,Adult Social Care,Older People (Aged 65 or over) including Older Mental Ill,Physical Dis Commissioning,Social Care - Nursing Care,42389,3586094," 3,981.77 ",LIFE STYLE CARE (2011) PLC
Adults Services,Adult Social Care,Older People (Aged 65 or over) including Older Mental Ill,Physical Dis Commissioning,Social Care - Day Care,42389,3587649, 660.52 ,Tower Project
Adults Services,Adult Social Care,Older People (Aged 65 or over) including Older Mental Ill,Physical Dis Commissioning,Social Care - Homecare,42389,3585984," 1,240.00 ",TRIANGLE COMMUNITY SERVICES
Adults Services,Adult Social Care,Older People (Aged 65 or over) including Older Mental Ill,Physical Dis Commissioning,Social Care - Homecare,42389,3585987," 1,056.40 ",Carewatch Newham Ltd
Adults Services,Adult Social Care,Older People (Aged 65 or over) including Older Mental Ill,Physical Dis Commissioning,Social Care - Homecare,42389,3586009," 1,289.13 ",Carewatch Newham Ltd
Adults Services,Adult Social Care,Older People (Aged 65 or over) including Older Mental Ill,Physical Dis Commissioning,Social Care - Homecare,42389,3586015, 580.36 ,Carewatch Newham Ltd
Adults Services,Adult Social Care,Older People (Aged 65 or over) including Older Mental Ill,Physical Dis Commissioning,Social Care - Homecare,42389,3586024, 673.58 ,Carewatch Newham Ltd
Adults Services,Adult Social Care,Older People (Aged 65 or over) including Older Mental Ill,Physical Dis Commissioning,Social Care - Homecare,42389,3586051, 516.38 ,Mantra Recruitment
Adults Services,Adult Social Care,Older People (Aged 65 or over) including Older Mental Ill,Physical Dis Commissioning,Social Care - Homecare,42389,3586055," 1,412.80 ",TRIANGLE COMMUNITY SERVICES
Adults Services,Adult Social Care,Older People (Aged 65 or over) including Older Mental Ill,Physical Dis Commissioning,Social Care - Homecare,42389,3586056," 1,078.08 ",TRIANGLE COMMUNITY SERVICES
Adults Services,Adult Social Care,Older People (Aged 65 or over) including Older Mental Ill,Physical Dis Commissioning,Social Care - Homecare,42389,3586069, 860.80 ,TRIANGLE COMMUNITY SERVICES
Adults Services,Adult Social Care,Older People (Aged 65 or over) including Older Mental Ill,Physical Dis Commissioning,Social Care - Homecare,42389,3587354," 1,239.75 ",SEVACARE UK LTD
